Workbook

Sheet Main
B10: 2023-03-01
B12: Sheet No. | C12: Template Name | D12: Summary
B13: 1 | C13: Future Intra | D13: For Intraday trading in F&O segment
B14: 2 | C14: Cash Intra | D14: For Intraday trading in cash market segment
B15: 3 | C15: Mid-cap Intra | D15: For Intraday trading in Mid-cap stocks
B16: 4 | C16: Bulk Deals | D16: Reveals Bulk Deals carried on NSE & BSE
B17: 5 | C17: Call Tracker
K27: `

Sheet Future Intra
M5: Back to Main Page
A6: FOR INTRA DAY TRADING | L6: =Main!B10 -> 2023-03-01
A9: Sr.no | B9: Sector | C9: Scrip | D9: Expiry Date | E9: CLOSE RATE | F9: Pivot Point | G9: Supports | J9: Resistances
E10: Point | F10: Point | G10: S1 | H10: S2 | I10: S3 | J10: R1 | K10: R2 | L10: R3 | M10: HIGH | N10: LOW | O10: OI | P10: % Change in OI
A11: 1 | B11: Index | C11: NIFTY | D11: 2023-03-29 | E11: 17403.40 | F11: 17427.47 | G11: 17320.93 | H11: 17238.47 | I11: 17131.93 | J11: 17509.93 | K11: 17616.47 | L11: 17698.93 | M11: 17534 | N11: 17345 | O11: 13541350 | P11: 5.46%
A12: 2 | B12: Index | C12: BANKNIFTY | D12: 2023-03-29 | E12: 40487.55 | F12: 40472.85 | G12: 40294.70 | H12: 40101.85 | I12: 39923.70 | J12: 40665.70 | K12: 40843.85 | L12: 41036.70 | M12: 40651 | N12: 40280 | O12: 4714200 | P12: 6.60%
A13: 3 | B13: Index | C13: FINNIFTY | D13: 2023-03-28 | E13: 18120.65 | F13: 18201.88 | G13: 17953.77 | H13: 17786.88 | I13: 17538.77 | J13: 18368.77 | K13: 18616.88 | L13: 18783.77 | M13: 18450 | N13: 18035 | O13: 22320 | P13: -40.13%
A14: 4 | B14: Index | C14: MIDCPNIFTY | D14: 2023-03-28 | E14: 7282.85 | F14: 2427.62 | G14: 4855.23 | H14: 2427.62 | I14: 4855.23 | J14: 4855.23 | K14: 2427.62 | L14: 4855.23 | M14: 0 | N14: 0 | O14: 0
A15: 5 | B15: Chemical | C15: AARTIIND | D15: 2023-03-29 | E15: 532.60 | F15: 533.67 | G15: 527.13 | H15: 521.67 | I15: 515.13 | J15: 539.13 | K15: 545.67 | L15: 551.13 | M15: 540.2 | N15: 528.2 | O15: 4165000 | P15: 1.70%
A16: 6 | B16: Capital_Goods | C16: ABB | D16: 2023-03-29 | E16: 3226.15 | F16: 3194.15 | G16: 3150.80 | H16: 3075.45 | I16: 3032.10 | J16: 3269.50 | K16: 3312.85 | L16: 3388.20 | M16: 3237.5 | N16: 3118.8 | O16: 1462500 | P16: 2.20%
A17: 7 | B17: Pharma | C17: ABBOTINDIA | D17: 2023-03-29 | E17: 20355.10 | F17: 20467.13 | G17: 20188.47 | H17: 20021.83 | I17: 19743.17 | J17: 20633.77 | K17: 20912.43 | L17: 21079.07 | M17: 20745.8 | N17: 20300.5 | O17: 47720 | P17: 0.34%
A18: 8 | B18: Others | C18: ABCAPITAL | D18: 2023-03-29 | E18: 146.40 | F18: 145.33 | G18: 143.27 | H18: 140.13 | I18: 138.07 | J18: 148.47 | K18: 150.53 | L18: 153.67 | M18: 147.4 | N18: 142.2 | O18: 30607200 | P18: 0.67%
A19: 9 | B19: Textile | C19: ABFRL | D19: 2023-03-29 | E19: 231.50 | F19: 232.40 | G19: 229.95 | H19: 228.40 | I19: 225.95 | J19: 233.95 | K19: 236.40 | L19: 237.95 | M19: 234.85 | N19: 230.85 | O19: 21013200 | P19: -0.43%
A20: 10 | B20: Cement | C20: ACC | D20: 2023-03-29 | E20: 1744.75 | F20: 1737.67 | G20: 1689.63 | H20: 1634.52 | I20: 1586.48 | J20: 1792.78 | K20: 1840.82 | L20: 1895.93 | M20: 1785.7 | N20: 1682.55 | O20: 4749750 | P20: 6.84%
A21: 11 | B21: Others | C21: ADANIENT | D21: 2023-03-29 | E21: 1374.40 | F21: 1296.25 | G21: 1186.20 | H21: 998.00 | I21: 887.95 | J21: 1484.45 | K21: 1594.50 | L21: 1782.70 | M21: 1406.3 | N21: 1108.05 | O21: 12897000 | P21: -12.45%
A22: 12 | B22: Others | C22: ADANIPORTS | D22: 2023-03-29 | E22: 596.75 | F22: 590.08 | G22: 561.52 | H22: 526.28 | I22: 497.72 | J22: 625.32 | K22: 653.88 | L22: 689.12 | M22: 618.65 | N22: 554.85 | O22: 47278125 | P22: 3.02%
A23: 13 | B23: Pharma | C23: ALKEM | D23: 2023-03-29 | E23: 3185.70 | F23: 3213.32 | G23: 3131.38 | H23: 3077.07 | I23: 2995.13 | J23: 3267.63 | K23: 3349.57 | L23: 3403.88 | M23: 3295.25 | N23: 3159 | O23: 456200 | P23: -4.64%
A24: 14 | B24: Cement | C24: AMBUJACEM | D24: 2023-03-29 | E24: 344.50 | F24: 342.17 | G24: 328.33 | H24: 312.17 | I24: 298.33 | J24: 358.33 | K24: 372.17 | L24: 388.33 | M24: 356 | N24: 326 | O24: 62841600 | P24: 1.62%
A25: 15 | B25: Others | C25: APOLLOHOSP | D25: 2023-03-29 | E25: 4424.65 | F25: 4436.13 | G25: 4379.52 | H25: 4334.38 | I25: 4277.77 | J25: 4481.27 | K25: 4537.88 | L25: 4583.02 | M25: 4492.75 | N25: 4391 | O25: 1454000 | P25: -1.55%
A26: 16 | B26: Automobile | C26: APOLLOTYRE | D26: 2023-03-29 | E26: 314.95 | F26: 316.97 | G26: 311.58 | H26: 308.22 | I26: 302.83 | J26: 320.33 | K26: 325.72 | L26: 329.08 | M26: 322.35 | N26: 313.6 | O26: 11602500 | P26: 2.54%
A27: 17 | B27: Automobile | C27: ASHOKLEY | D27: 2023-03-29 | E27: 146.05 | F27: 144.98 | G27: 143.47 | H27: 140.88 | I27: 139.37 | J27: 147.57 | K27: 149.08 | L27: 151.67 | M27: 146.5 | N27: 142.4 | O27: 62050000 | P27: -2.58%
A28: 18 | B28: FMCG | C28: ASIANPAINT | D28: 2023-03-29 | E28: 2849.20 | F28: 2817.90 | G28: 2779.30 | H28: 2709.40 | I28: 2670.80 | J28: 2887.80 | K28: 2926.40 | L28: 2996.30 | M28: 2856.5 | N28: 2748 | O28: 7379200 | P28: -3.05%
A29: 19 | B29: Others | C29: ASTRAL | D29: 2023-03-29 | E29: 1901.60 | F29: 1892.37 | G29: 1878.73 | H29: 1855.87 | I29: 1842.23 | J29: 1915.23 | K29: 1928.87 | L29: 1951.73 | M29: 1906 | N29: 1869.5 | O29: 1880725 | P29: 1.03%
A30: 20 | B30: Others | C30: ATUL | D30: 2023-03-29 | E30: 7067.60 | F30: 7091.50 | G30: 6966.90 | H30: 6866.20 | I30: 6741.60 | J30: 7192.20 | K30: 7316.80 | L30: 7417.50 | M30: 7216.1 | N30: 6990.8 | O30: 175425 | P30: -3.31%
A31: 21 | B31: Banking | C31: AUBANK | D31: 2023-03-29 | E31: 593.45 | F31: 595.52 | G31: 586.83 | H31: 580.22 | I31: 571.53 | J31: 602.13 | K31: 610.82 | L31: 617.43 | M31: 604.2 | N31: 588.9 | O31: 10871000 | P31: 0.90%
A32: 22 | B32: Pharma | C32: AUROPHARMA | D32: 2023-03-29 | E32: 465.40 | F32: 464.78 | G32: 460.17 | H32: 454.93 | I32: 450.32 | J32: 470.02 | K32: 474.63 | L32: 479.87 | M32: 469.4 | N32: 459.55 | O32: 13967000 | P32: -0.80%
A33: 23 | B33: Banking | C33: AXISBANK | D33: 2023-03-29 | E33: 849.75 | F33: 853.07 | G33: 843.48 | H33: 837.22 | I33: 827.63 | J33: 859.33 | K33: 868.92 | L33: 875.18 | M33: 862.65 | N33: 846.8 | O33: 49551600 | P33: 1.64%
A34: 24 | B34: Automobile | C34: BAJAJ-AUTO | D34: 2023-03-29 | E34: 3681.85 | F34: 3695.75 | G34: 3636.70 | H34: 3591.55 | I34: 3532.50 | J34: 3740.90 | K34: 3799.95 | L34: 3845.10 | M34: 3754.8 | N34: 3650.6 | O34: 1266000 | P34: 5.96%
A35: 25 | B35: Finance | C35: BAJAJFINSV | D35: 2023-03-29 | E35: 1344.05 | F35: 1354.15 | G35: 1330.15 | H35: 1316.25 | I35: 1292.25 | J35: 1368.05 | K35: 1392.05 | L35: 1405.95 | M35: 1378.15 | N35: 1340.25 | O35: 10034000 | P35: 2.78%
A36: 26 | B36: Finance | C36: BAJFINANCE | D36: 2023-03-29 | E36: 6152.75 | F36: 6185.27 | G36: 6097.53 | H36: 6042.32 | I36: 5954.58 | J36: 6240.48 | K36: 6328.22 | L36: 6383.43 | M36: 6273 | N36: 6130.05 | O36: 4721125 | P36: 1.73%
A37: 27 | B37: Automobile | C37: BALKRISIND | D37: 2023-03-29 | E37: 2028.65 | F37: 2035.93 | G37: 2016.87 | H37: 2005.08 | I37: 1986.02 | J37: 2047.72 | K37: 2066.78 | L37: 2078.57 | M37: 2055 | N37: 2024.15 | O37: 1723200 | P37: -0.17%
A38: 28 | B38: Others | C38: BALRAMCHIN | D38: 2023-03-29 | E38: 358.40 | F38: 358.37 | G38: 353.53 | H38: 348.67 | I38: 343.83 | J38: 363.23 | K38: 368.07 | L38: 372.93 | M38: 363.2 | N38: 353.5 | O38: 6080000 | P38: 1.09%
A39: 29 | B39: Banking | C39: BANDHANBNK | D39: 2023-03-29 | E39: 232.45 | F39: 230.92 | G39: 228.18 | H39: 223.92 | I39: 221.18 | J39: 235.18 | K39: 237.92 | L39: 242.18 | M39: 233.65 | N39: 226.65 | O39: 37278000 | P39: 0.15%
A40: 30 | B40: Banking | C40: BANKBARODA | D40: 2023-03-29 | E40: 159.20 | F40: 159.18 | G40: 157.32 | H40: 155.43 | I40: 153.57 | J40: 161.07 | K40: 162.93 | L40: 164.82 | M40: 161.05 | N40: 157.3 | O40: 108722250 | P40: 4.20%
A41: 31 | B41: FMCG | C41: BATAINDIA | D41: 2023-03-29 | E41: 1419.75 | F41: 1414.22 | G41: 1404.43 | H41: 1389.12 | I41: 1379.33 | J41: 1429.53 | K41: 1439.32 | L41: 1454.63 | M41: 1424 | N41: 1398.9 | O41: 2707375 | P41: 4.30%
A42: 32 | B42: Capital_Goods | C42: BEL | D42: 2023-03-29 | E42: 95.20 | F42: 95.55 | G42: 94.70 | H42: 94.20 | I42: 93.35 | J42: 96.05 | K42: 96.90 | L42: 97.40 | M42: 96.4 | N42: 95.05 | O42: 98889300 | P42: 1.75%
A43: 33 | B43: FMCG | C43: BERGEPAINT | D43: 2023-03-29 | E43: 578.35 | F43: 570.28 | G43: 560.92 | H43: 543.48 | I43: 534.12 | J43: 587.72 | K43: 597.08 | L43: 614.52 | M43: 579.65 | N43: 552.85 | O43: 6946500 | P43: 0.19%
A44: 34 | B44: Automobile | C44: BHARATFORG | D44: 2023-03-29 | E44: 821.00 | F44: 822.52 | G44: 814.78 | H44: 808.57 | I44: 800.83 | J44: 828.73 | K44: 836.47 | L44: 842.68 | M44: 830.25 | N44: 816.3 | O44: 6960000 | P44: 0.52%
A45: 35 | B45: Telecom | C45: BHARTIARTL | D45: 2023-03-29 | E45: 747.25 | F45: 752.17 | G45: 739.93 | H45: 732.62 | I45: 720.38 | J45: 759.48 | K45: 771.72 | L45: 779.03 | M45: 764.4 | N45: 744.85 | O45: 44051500 | P45: 0.47%
A46: 36 | B46: Capital_Goods | C46: BHEL | D46: 2023-03-29 | E46: 69.95 | F46: 69.43 | G46: 68.27 | H46: 66.58 | I46: 65.42 | J46: 71.12 | K46: 72.28 | L46: 73.97 | M46: 70.6 | N46: 67.75 | O46: 75589500 | P46: -2.47%
A47: 37 | B47: Pharma | C47: BIOCON | D47: 2023-03-29 | E47: 230.85 | F47: 229.68 | G47: 225.82 | H47: 220.78 | I47: 216.92 | J47: 234.72 | K47: 238.58 | L47: 243.62 | M47: 233.55 | N47: 224.65 | O47: 35114100 | P47: 5.21%
A48: 38 | B48: Automobile | C48: BOSCHLTD | D48: 2023-03-29 | E48: 17986.35 | F48: 17960.20 | G48: 17836.15 | H48: 17685.95 | I48: 17561.90 | J48: 18110.40 | K48: 18234.45 | L48: 18384.65 | M48: 18084.25 | N48: 17810 | O48: 147750 | P48: -0.87%
A49: 39 | B49: Oil_Gas | C49: BPCL | D49: 2023-03-29 | E49: 318.85 | F49: 319.23 | G49: 315.37 | H49: 311.88 | I49: 308.02 | J49: 322.72 | K49: 326.58 | L49: 330.07 | M49: 323.1 | N49: 315.75 | O49: 14959800 | P49: 1.01%
A50: 40 | B50: FMCG | C50: BRITANNIA | D50: 2023-03-29 | E50: 4480.45 | F50: 4463.78 | G50: 4436.47 | H50: 4392.48 | I50: 4365.17 | J50: 4507.77 | K50: 4535.08 | L50: 4579.07 | M50: 4491.1 | N50: 4419.8 | O50: 1410800 | P50: -2.49%
A51: 41 | B51: Technology | C51: BSOFT | D51: 2023-03-29 | E51: 276.90 | F51: 278.70 | G51: 274.30 | H51: 271.70 | I51: 267.30 | J51: 281.30 | K51: 285.70 | L51: 288.30 | M51: 283.1 | N51: 276.1 | O51: 8020000 | P51: -0.55%
A52: 42 | B52: Banking | C52: CANBK | D52: 2023-03-29 | E52: 280.85 | F52: 279.28 | G52: 276.82 | H52: 272.78 | I52: 270.32 | J52: 283.32 | K52: 285.78 | L52: 289.82 | M52: 281.75 | N52: 275.25 | O52: 39546900 | P52: -2.38%
A53: 43 | B53: Finance | C53: CANFINHOME | D53: 2023-03-29 | E53: 577.00 | F53: 576.07 | G53: 571.23 | H53: 565.47 | I53: 560.63 | J53: 581.83 | K53: 586.67 | L53: 592.43 | M53: 580.9 | N53: 570.3 | O53: 2947425 | P53: -1.14%
A54: 44 | B54: Others | C54: CHAMBLFERT | D54: 2023-03-29 | E54: 275.75 | F54: 274.87 | G54: 272.23 | H54: 268.72 | I54: 266.08 | J54: 278.38 | K54: 281.02 | L54: 284.53 | M54: 277.5 | N54: 271.35 | O54: 4906500 | P54: 0.18%
A55: 45 | B55: Finance | C55: CHOLAFIN | D55: 2023-03-29 | E55: 760.15 | F55: 763.13 | G55: 752.87 | H55: 745.58 | I55: 735.32 | J55: 770.42 | K55: 780.68 | L55: 787.97 | M55: 773.4 | N55: 755.85 | O55: 11051250 | P55: 1.45%
A56: 46 | B56: Pharma | C56: CIPLA | D56: 2023-03-29 | E56: 913.00 | F56: 924.47 | G56: 899.23 | H56: 885.47 | I56: 860.23 | J56: 938.23 | K56: 963.47 | L56: 977.23 | M56: 949.7 | N56: 910.7 | O56: 11406850 | P56: 22.07%
A57: 47 | B57: Others | C57: COALINDIA | D57: 2023-03-29 | E57: 214.55 | F57: 214.80 | G57: 212.05 | H57: 209.55 | I57: 206.80 | J57: 217.30 | K57: 220.05 | L57: 222.55 | M57: 217.55 | N57: 212.3 | O57: 42067200 | P57: 9.23%
A58: 48 | B58: Technology | C58: COFORGE | D58: 2023-03-29 | E58: 4309.45 | F58: 4313.38 | G58: 4272.97 | H58: 4236.48 | I58: 4196.07 | J58: 4349.87 | K58: 4390.28 | L58: 4426.77 | M58: 4353.8 | N58: 4276.9 | O58: 935700 | P58: -1.84%
A59: 49 | B59: FMCG | C59: COLPAL | D59: 2023-03-29 | E59: 1480.75 | F59: 1476.02 | G59: 1465.13 | H59: 1449.52 | I59: 1438.63 | J59: 1491.63 | K59: 1502.52 | L59: 1518.13 | M59: 1486.9 | N59: 1460.4 | O59: 1852900 | P59: -3.22%
A60: 50 | B60: Others | C60: CONCOR | D60: 2023-03-29 | E60: 594.55 | F60: 596.63 | G60: 591.47 | H60: 588.38 | I60: 583.22 | J60: 599.72 | K60: 604.88 | L60: 607.97 | M60: 601.8 | N60: 593.55 | O60: 9947000 | P60: 2.69%
A61: 51 | B61: Others | C61: COROMANDEL | D61: 2023-03-29 | E61: 904.70 | F61: 905.23 | G61: 894.97 | H61: 885.23 | I61: 874.97 | J61: 914.97 | K61: 925.23 | L61: 934.97 | M61: 915.5 | N61: 895.5 | O61: 1715000 | P61: 0.29%
A62: 52 | B62: Capital_Goods | C62: CROMPTON | D62: 2023-03-29 | E62: 305.25 | F62: 304.98 | G62: 301.47 | H62: 297.68 | I62: 294.17 | J62: 308.77 | K62: 312.28 | L62: 316.07 | M62: 308.5 | N62: 301.2 | O62: 5956500 | P62: -0.23%
A63: 53 | B63: Banking | C63: CUB | D63: 2023-03-29 | E63: 138.85 | F63: 138.02 | G63: 136.33 | H63: 133.82 | I63: 132.13 | J63: 140.53 | K63: 142.22 | L63: 144.73 | M63: 139.7 | N63: 135.5 | O63: 12025000 | P63: -6.42%
A64: 54 | B64: Capital_Goods | C64: CUMMINSIND | D64: 2023-03-29 | E64: 1578.30 | F64: 1579.65 | G64: 1565.40 | H64: 1552.50 | I64: 1538.25 | J64: 1592.55 | K64: 1606.80 | L64: 1619.70 | M64: 1593.9 | N64: 1566.75 | O64: 2848200 | P64: 0.98%
A65: 55 | B65: FMCG | C65: DABUR | D65: 2023-03-29 | E65: 535.05 | F65: 533.20 | G65: 529.70 | H65: 524.35 | I65: 520.85 | J65: 538.55 | K65: 542.05 | L65: 547.40 | M65: 536.7 | N65: 527.85 | O65: 9947500 | P65: -1.77%
A66: 56 | B66: Cement | C66: DALBHARAT | D66: 2023-03-29 | E66: 1844.40 | F66: 1843.90 | G66: 1825.45 | H66: 1806.50 | I66: 1788.05 | J66: 1862.85 | K66: 1881.30 | L66: 1900.25 | M66: 1862.35 | N66: 1824.95 | O66: 1915500 | P66: 7.25%
A67: 57 | B67: Chemical | C67: DEEPAKNTR | D67: 2023-03-29 | E67: 1805.45 | F67: 1799.10 | G67: 1779.20 | H67: 1752.95 | I67: 1733.05 | J67: 1825.35 | K67: 1845.25 | L67: 1871.50 | M67: 1819 | N67: 1772.85 | O67: 1441500 | P67: 1.23%
A68: 58 | B68: Others | C68: DELTACORP | D68: 2023-03-29 | E68: 188.45 | F68: 186.43 | G68: 184.02 | H68: 179.58 | I68: 177.17 | J68: 190.87 | K68: 193.28 | L68: 197.72 | M68: 188.85 | N68: 182 | O68: 18155200 | P68: -4.18%
A69: 59 | B69: Pharma | C69: DIVISLAB | D69: 2023-03-29 | E69: 2845.25 | F69: 2860.08 | G69: 2822.17 | H69: 2799.08 | I69: 2761.17 | J69: 2883.17 | K69: 2921.08 | L69: 2944.17 | M69: 2898 | N69: 2837 | O69: 3072450 | P69: 1.20%
A70: 60 | B70: Others | C70: DIXON | D70: 2023-03-29 | E70: 2897.10 | F70: 2860.85 | G70: 2806.70 | H70: 2716.30 | I70: 2662.15 | J70: 2951.25 | K70: 3005.40 | L70: 3095.80 | M70: 2915 | N70: 2770.45 | O70: 895875 | P70: -2.45%
A71: 61 | B71: Realty | C71: DLF | D71: 2023-03-29 | E71: 353.05 | F71: 353.08 | G71: 350.37 | H71: 347.68 | I71: 344.97 | J71: 355.77 | K71: 358.48 | L71: 361.17 | M71: 355.8 | N71: 350.4 | O71: 45107700 | P71: -1.32%
A72: 62 | B72: Pharma | C72: DRREDDY | D72: 2023-03-29 | E72: 4347.40 | F72: 4379.08 | G72: 4300.47 | H72: 4253.53 | I72: 4174.92 | J72: 4426.02 | K72: 4504.63 | L72: 4551.57 | M72: 4457.7 | N72: 4332.15 | O72: 2169250 | P72: 4.54%
A73: 63 | B73: Automobile | C73: EICHERMOT | D73: 2023-03-29 | E73: 3126.95 | F73: 3146.40 | G73: 3098.50 | H73: 3070.05 | I73: 3022.15 | J73: 3174.85 | K73: 3222.75 | L73: 3251.20 | M73: 3194.3 | N73: 3117.95 | O73: 3125150 | P73: -0.04%
A74: 64 | B74: Automobile | C74: ESCORTS | D74: 2023-03-29 | E74: 2011.70 | F74: 1999.83 | G74: 1971.07 | H74: 1930.43 | I74: 1901.67 | J74: 2040.47 | K74: 2069.23 | L74: 2109.87 | M74: 2028.6 | N74: 1959.2 | O74: 1386550 | P74: 12.54%
A75: 65 | B75: Automobile | C75: EXIDEIND | D75: 2023-03-29 | E75: 176.45 | F75: 175.85 | G75: 174.00 | H75: 171.55 | I75: 169.70 | J75: 178.30 | K75: 180.15 | L75: 182.60 | M75: 177.7 | N75: 173.4 | O75: 19166400 | P75: -1.93%
A76: 66 | B76: Banking | C76: FEDERALBNK | D76: 2023-03-29 | E76: 129.65 | F76: 129.62 | G76: 128.48 | H76: 127.32 | I76: 126.18 | J76: 130.78 | K76: 131.92 | L76: 133.08 | M76: 130.75 | N76: 128.45 | O76: 66180000 | P76: -1.87%
A77: 67 | B77: Technology | C77: FSL | D77: 2023-03-29 | E77: 113.15 | F77: 113.10 | G77: 111.60 | H77: 110.05 | I77: 108.55 | J77: 114.65 | K77: 116.15 | L77: 117.70 | M77: 114.6 | N77: 111.55 | O77: 15901600 | P77: -1.67%
A78: 68 | B78: Oil_Gas | C78: GAIL | D78: 2023-03-29 | E78: 103.50 | F78: 103.80 | G78: 102.80 | H78: 102.10 | I78: 101.10 | J78: 104.50 | K78: 105.50 | L78: 106.20 | M78: 104.8 | N78: 103.1 | O78: 71488950 | P78: 4.30%
A79: 69 | B79: Pharma | C79: GLENMARK | D79: 2023-03-29 | E79: 431.10 | F79: 429.80 | G79: 424.55 | H79: 418.00 | I79: 412.75 | J79: 436.35 | K79: 441.60 | L79: 448.15 | M79: 435.05 | N79: 423.25 | O79: 4609550 | P79: 2.58%
A80: 70 | B80: Infrastructure | C80: GMRINFRA | D80: 2023-03-29 | E80: 38.10 | F80: 38.00 | G80: 37.75 | H80: 37.40 | I80: 37.15 | J80: 38.35 | K80: 38.60 | L80: 38.95 | M80: 38.25 | N80: 37.65 | O80: 123165000 | P80: -0.62%
A81: 71 | B81: Others | C81: GNFC | D81: 2023-03-29 | E81: 528.75 | F81: 529.12 | G81: 523.33 | H81: 517.92 | I81: 512.13 | J81: 534.53 | K81: 540.32 | L81: 545.73 | M81: 534.9 | N81: 523.7 | O81: 8880300 | P81: -0.22%
A82: 72 | B82: FMCG | C82: GODREJCP | D82: 2023-03-29 | E82: 927.80 | F82: 926.07 | G82: 921.13 | H82: 914.47 | I82: 909.53 | J82: 932.73 | K82: 937.67 | L82: 944.33 | M82: 931 | N82: 919.4 | O82: 5167000 | P82: -3.29%
A83: 73 | B83: Realty | C83: GODREJPROP | D83: 2023-03-29 | E83: 1106.30 | F83: 1106.62 | G83: 1097.78 | H83: 1089.27 | I83: 1080.43 | J83: 1115.13 | K83: 1123.97 | L83: 1132.48 | M83: 1115.45 | N83: 1098.1 | O83: 4655450 | P83: 0.44%
A84: 74 | B84: Pharma | C84: GRANULES | D84: 2023-03-29 | E84: 281.75 | F84: 283.38 | G84: 279.52 | H84: 277.28 | I84: 273.42 | J84: 285.62 | K84: 289.48 | L84: 291.72 | M84: 287.25 | N84: 281.15 | O84: 6798000 | P84: 0.35%
A85: 75 | B85: Cement | C85: GRASIM | D85: 2023-03-29 | E85: 1585.70 | F85: 1582.28 | G85: 1571.72 | H85: 1557.73 | I85: 1547.17 | J85: 1596.27 | K85: 1606.83 | L85: 1620.82 | M85: 1592.85 | N85: 1568.3 | O85: 9252050 | P85: 1.87%
A86: 76 | B86: Oil_Gas | C86: GUJGASLTD | D86: 2023-03-29 | E86: 508.50 | F86: 507.43 | G86: 501.07 | H86: 493.63 | I86: 487.27 | J86: 514.87 | K86: 521.23 | L86: 528.67 | M86: 513.8 | N86: 500 | O86: 3835000 | P86: 8.91%
A87: 77 | B87: Others | C87: HAL | D87: 2023-03-29 | E87: 2581.25 | F87: 2585.92 | G87: 2559.58 | H87: 2537.92 | I87: 2511.58 | J87: 2607.58 | K87: 2633.92 | L87: 2655.58 | M87: 2612.25 | N87: 2564.25 | O87: 3065700 | P87: -0.17%
A88: 78 | B88: Capital_Goods | C88: HAVELLS | D88: 2023-03-29 | E88: 1204.65 | F88: 1198.12 | G88: 1181.63 | H88: 1158.62 | I88: 1142.13 | J88: 1221.13 | K88: 1237.62 | L88: 1260.63 | M88: 1214.6 | N88: 1175.1 | O88: 4774000 | P88: 0.04%
A89: 79 | B89: Technology | C89: HCLTECH | D89: 2023-03-29 | E89: 1085.35 | F89: 1087.72 | G89: 1073.73 | H89: 1062.12 | I89: 1048.13 | J89: 1099.33 | K89: 1113.32 | L89: 1124.93 | M89: 1101.7 | N89: 1076.1 | O89: 14574000 | P89: 10.03%
A90: 80 | B90: Finance | C90: HDFC | D90: 2023-03-29 | E90: 2621.35 | F90: 2614.55 | G90: 2597.80 | H90: 2574.25 | I90: 2557.50 | J90: 2638.10 | K90: 2654.85 | L90: 2678.40 | M90: 2631.3 | N90: 2591 | O90: 22725600 | P90: -2.63%
A91: 81 | B91: Finance | C91: HDFCAMC | D91: 2023-03-29 | E91: 1816.40 | F91: 1811.52 | G91: 1800.88 | H91: 1785.37 | I91: 1774.73 | J91: 1827.03 | K91: 1837.67 | L91: 1853.18 | M91: 1822.15 | N91: 1796 | O91: 2696400 | P91: 3.67%
A92: 82 | B92: Banking | C92: HDFCBANK | D92: 2023-03-29 | E92: 1608.35 | F92: 1606.03 | G92: 1597.07 | H92: 1585.78 | I92: 1576.82 | J92: 1617.32 | K92: 1626.28 | L92: 1637.57 | M92: 1615 | N92: 1594.75 | O92: 65244300 | P92: -0.41%
A93: 83 | B93: Finance | C93: HDFCLIFE | D93: 2023-03-29 | E93: 491.25 | F93: 491.10 | G93: 487.85 | H93: 484.45 | I93: 481.20 | J93: 494.50 | K93: 497.75 | L93: 501.15 | M93: 494.35 | N93: 487.7 | O93: 22954800 | P93: -1.55%
A94: 84 | B94: Automobile | C94: HEROMOTOCO | D94: 2023-03-29 | E94: 2434.45 | F94: 2447.08 | G94: 2414.02 | H94: 2393.58 | I94: 2360.52 | J94: 2467.52 | K94: 2500.58 | L94: 2521.02 | M94: 2480.15 | N94: 2426.65 | O94: 2916000 | P94: 2.08%
A95: 85 | B95: Metals | C95: HINDALCO | D95: 2023-03-29 | E95: 402.00 | F95: 406.17 | G95: 397.08 | H95: 392.17 | I95: 383.08 | J95: 411.08 | K95: 420.17 | L95: 425.08 | M95: 415.25 | N95: 401.25 | O95: 27106800 | P95: 5.38%
A96: 86 | B96: Metals | C96: HINDCOPPER | D96: 2023-03-29 | E96: 97.95 | F96: 97.73 | G96: 96.77 | H96: 95.58 | I96: 94.62 | J96: 98.92 | K96: 99.88 | L96: 101.07 | M96: 98.7 | N96: 96.55 | O96: 20865600 | P96: -1.47%
A97: 87 | B97: Oil_Gas | C97: HINDPETRO | D97: 2023-03-29 | E97: 216.40 | F97: 216.03 | G97: 214.32 | H97: 212.23 | I97: 210.52 | J97: 218.12 | K97: 219.83 | L97: 221.92 | M97: 217.75 | N97: 213.95 | O97: 24156900 | P97: 1.82%
A98: 88 | B98: FMCG | C98: HINDUNILVR | D98: 2023-03-29 | E98: 2472.05 | F98: 2470.73 | G98: 2451.47 | H98: 2430.88 | I98: 2411.62 | J98: 2491.32 | K98: 2510.58 | L98: 2531.17 | M98: 2490 | N98: 2450.15 | O98: 9494400 | P98: 0.35%
A99: 89 | B99: Others | C99: HONAUT | D99: 2023-03-29 | E99: 34730.60 | F99: 34936.18 | G99: 34397.42 | H99: 34064.23 | I99: 33525.47 | J99: 35269.37 | K99: 35808.13 | L99: 36141.32 | M99: 35474.95 | N99: 34603 | O99: 25320 | P99: 6.16%
A100: 90 | B100: Finance | C100: IBULHSGFIN | D100: 2023-03-29 | E100: 101.30 | F100: 100.88 | G100: 99.57 | H100: 97.83 | I100: 96.52 | J100: 102.62 | K100: 103.93 | L100: 105.67 | M100: 102.2 | N100: 99.15 | O100: 45556000 | P100: 1.44%
A101: 91 | B101: Banking | C101: ICICIBANK | D101: 2023-03-29 | E101: 858.55 | F101: 860.63 | G101: 851.42 | H101: 844.28 | I101: 835.07 | J101: 867.77 | K101: 876.98 | L101: 884.12 | M101: 869.85 | N101: 853.5 | O101: 75418700 | P101: -2.15%
A102: 92 | B102: Finance | C102: ICICIGI | D102: 2023-03-29 | E102: 1106.35 | F102: 1104.78 | G102: 1096.12 | H102: 1085.88 | I102: 1077.22 | J102: 1115.02 | K102: 1123.68 | L102: 1133.92 | M102: 1113.45 | N102: 1094.55 | O102: 3316275 | P102: -1.09%
A103: 93 | B103: Finance | C103: ICICIPRULI | D103: 2023-03-29 | E103: 410.65 | F103: 409.32 | G103: 405.88 | H103: 401.12 | I103: 397.68 | J103: 414.08 | K103: 417.52 | L103: 422.28 | M103: 412.75 | N103: 404.55 | O103: 13836000 | P103: -1.66%
A104: 94 | B104: Telecom | C104: IDEA | D104: 2023-03-29 | E104: 6.85 | F104: 6.82 | G104: 6.73 | H104: 6.62 | I104: 6.53 | J104: 6.93 | K104: 7.02 | L104: 7.13 | M104: 6.9 | N104: 6.7 | O104: 461300000 | P104: 0.15%
A105: 95 | B105: Finance | C105: IDFC | D105: 2023-03-29 | E105: 76.35 | F105: 76.05 | G105: 75.30 | H105: 74.25 | I105: 73.50 | J105: 77.10 | K105: 77.85 | L105: 78.90 | M105: 76.8 | N105: 75 | O105: 174750000 | P105: -0.82%
A106: 96 | B106: Banking | C106: IDFCFIRSTB | D106: 2023-03-29 | E106: 55.05 | F106: 54.95 | G106: 54.45 | H106: 53.85 | I106: 53.35 | J106: 55.55 | K106: 56.05 | L106: 56.65 | M106: 55.45 | N106: 54.35 | O106: 193425000 | P106: 2.56%
A107: 97 | B107: Others | C107: IEX | D107: 2023-03-29 | E107: 145.30 | F107: 144.62 | G107: 143.33 | H107: 141.37 | I107: 140.08 | J107: 146.58 | K107: 147.87 | L107: 149.83 | M107: 145.9 | N107: 142.65 | O107: 39993750 | P107: 0.40%
A108: 98 | B108: Oil_Gas | C108: IGL | D108: 2023-03-29 | E108: 441.80 | F108: 439.83 | G108: 436.67 | H108: 431.53 | I108: 428.37 | J108: 444.97 | K108: 448.13 | L108: 453.27 | M108: 443 | N108: 434.7 | O108: 8142750 | P108: 2.97%
A109: 99 | B109: Infrastructure | C109: INDHOTEL | D109: 2023-03-29 | E109: 312.90 | F109: 314.47 | G109: 309.58 | H109: 306.27 | I109: 301.38 | J109: 317.78 | K109: 322.67 | L109: 325.98 | M109: 319.35 | N109: 311.15 | O109: 25420000 | P109: 2.62%
A110: 100 | B110: Cement | C110: INDIACEM | D110: 2023-03-29 | E110: 188.25 | F110: 187.75 | G110: 185.75 | H110: 183.25 | I110: 181.25 | J110: 190.25 | K110: 192.25 | L110: 194.75 | M110: 189.75 | N110: 185.25 | O110: 15120600 | P110: 0.42%
A111: 101 | B111: Others | C111: INDIAMART | D111: 2023-03-29 | E111: 4775.15 | F111: 4738.27 | G111: 4688.58 | H111: 4602.02 | I111: 4552.33 | J111: 4824.83 | K111: 4874.52 | L111: 4961.08 | M111: 4787.95 | N111: 4651.7 | O111: 281100 | P111: 4.93%
A112: 102 | B112: Others | C112: INDIGO | D112: 2023-03-29 | E112: 1868.10 | F112: 1864.23 | G112: 1851.57 | H112: 1835.03 | I112: 1822.37 | J112: 1880.77 | K112: 1893.43 | L112: 1909.97 | M112: 1876.9 | N112: 1847.7 | O112: 3445500 | P112: -0.42%
A113: 103 | B113: Banking | C113: INDUSINDBK | D113: 2023-03-29 | E113: 1085.00 | F113: 1085.48 | G113: 1073.97 | H113: 1062.93 | I113: 1051.42 | J113: 1096.52 | K113: 1108.03 | L113: 1119.07 | M113: 1097 | N113: 1074.45 | O113: 25789950 | P113: 0.81%
A114: 104 | B114: Telecom | C114: INDUSTOWER | D114: 2023-03-29 | E114: 158.55 | F114: 158.85 | G114: 155.75 | H114: 152.95 | I114: 149.85 | J114: 161.65 | K114: 164.75 | L114: 167.55 | M114: 161.95 | N114: 156.05 | O114: 31026800 | P114: 2.46%
A115: 105 | B115: Technology | C115: INFY | D115: 2023-03-29 | E115: 1497.00 | F115: 1506.42 | G115: 1481.23 | H115: 1465.47 | I115: 1440.28 | J115: 1522.18 | K115: 1547.37 | L115: 1563.13 | M115: 1531.6 | N115: 1490.65 | O115: 35167600 | P115: 1.99%
A116: 106 | B116: Technology | C116: INTELLECT | D116: 2023-03-29 | E116: 451.90 | F116: 453.87 | G116: 448.08 | H116: 444.27 | I116: 438.48 | J116: 457.68 | K116: 463.47 | L116: 467.28 | M116: 459.65 | N116: 450.05 | O116: 4091000 | P116: 0.20%
A117: 107 | B117: Oil_Gas | C117: IOC | D117: 2023-03-29 | E117: 76.40 | F117: 76.80 | G117: 75.70 | H117: 75.00 | I117: 73.90 | J117: 77.50 | K117: 78.60 | L117: 79.30 | M117: 77.9 | N117: 76.1 | O117: 71136000 | P117: 2.70%
A118: 108 | B118: Pharma | C118: IPCALAB | D118: 2023-03-29 | E118: 810.75 | F118: 813.77 | G118: 806.63 | H118: 802.52 | I118: 795.38 | J118: 817.88 | K118: 825.02 | L118: 829.13 | M118: 820.9 | N118: 809.65 | O118: 1749800 | P118: 0.98%
A119: 109 | B119: Others | C119: IRCTC | D119: 2023-03-29 | E119: 611.30 | F119: 609.68 | G119: 604.97 | H119: 598.63 | I119: 593.92 | J119: 616.02 | K119: 620.73 | L119: 627.07 | M119: 614.4 | N119: 603.35 | O119: 13679750 | P119: 0.10%
A120: 110 | B120: FMCG | C120: ITC | D120: 2023-03-29 | E120: 377.35 | F120: 379.03 | G120: 373.82 | H120: 370.28 | I120: 365.07 | J120: 382.57 | K120: 387.78 | L120: 391.32 | M120: 384.25 | N120: 375.5 | O120: 59292800 | P120: -1.91%
A121: 111 | B121: Metals | C121: JINDALSTEL | D121: 2023-03-29 | E121: 552.90 | F121: 553.58 | G121: 547.32 | H121: 541.73 | I121: 535.47 | J121: 559.17 | K121: 565.43 | L121: 571.02 | M121: 559.85 | N121: 548 | O121: 22241250 | P121: 2.45%
A122: 112 | B122: Cement | C122: JKCEMENT | D122: 2023-03-29 | E122: 2776.60 | F122: 2785.60 | G122: 2747.20 | H122: 2717.80 | I122: 2679.40 | J122: 2815.00 | K122: 2853.40 | L122: 2882.80 | M122: 2824 | N122: 2756.2 | O122: 505000 | P122: 1.71%
A123: 113 | B123: Metals | C123: JSWSTEEL | D123: 2023-03-29 | E123: 671.85 | F123: 675.45 | G123: 666.90 | H123: 661.95 | I123: 653.40 | J123: 680.40 | K123: 688.95 | L123: 693.90 | M123: 684 | N123: 670.5 | O123: 24331050 | P123: 1.57%
A124: 114 | B124: Others | C124: JUBLFOOD | D124: 2023-03-29 | E124: 443.00 | F124: 441.37 | G124: 436.88 | H124: 430.77 | I124: 426.28 | J124: 447.48 | K124: 451.97 | L124: 458.08 | M124: 445.85 | N124: 435.25 | O124: 14942500 | P124: -1.64%
A125: 115 | B125: Banking | C125: KOTAKBANK | D125: 2023-03-29 | E125: 1737.55 | F125: 1738.53 | G125: 1729.17 | H125: 1720.78 | I125: 1711.42 | J125: 1746.92 | K125: 1756.28 | L125: 1764.67 | M125: 1747.9 | N125: 1730.15 | O125: 40931200 | P125: -1.56%
A126: 116 | B126: Finance | C126: L&TFH | D126: 2023-03-29 | E126: 87.90 | F126: 88.13 | G126: 87.12 | H126: 86.33 | I126: 85.32 | J126: 88.92 | K126: 89.93 | L126: 90.72 | M126: 89.15 | N126: 87.35 | O126: 66225004 | P126: 0.79%
A127: 117 | B127: Others | C127: LALPATHLAB | D127: 2023-03-29 | E127: 1956.75 | F127: 1940.28 | G127: 1906.67 | H127: 1856.58 | I127: 1822.97 | J127: 1990.37 | K127: 2023.98 | L127: 2074.07 | M127: 1973.9 | N127: 1890.2 | O127: 812500 | P127: 6.70%
A128: 118 | B128: Pharma | C128: LAURUSLABS | D128: 2023-03-29 | E128: 316.30 | F128: 317.30 | G128: 314.00 | H128: 311.70 | I128: 308.40 | J128: 319.60 | K128: 322.90 | L128: 325.20 | M128: 320.6 | N128: 315 | O128: 9758100 | P128: 0.80%
A129: 119 | B129: Finance | C129: LICHSGFIN | D129: 2023-03-29 | E129: 353.05 | F129: 353.52 | G129: 351.03 | H129: 349.02 | I129: 346.53 | J129: 355.53 | K129: 358.02 | L129: 360.03 | M129: 356 | N129: 351.5 | O129: 11726000 | P129: 1.09%
A130: 120 | B130: Capital_Goods | C130: LT | D130: 2023-03-29 | E130: 2119.35 | F130: 2120.73 | G130: 2095.17 | H130: 2070.98 | I130: 2045.42 | J130: 2144.92 | K130: 2170.48 | L130: 2194.67 | M130: 2146.3 | N130: 2096.55 | O130: 7945500 | P130: -0.68%
A131: 121 | B131: Technology | C131: LTIM | D131: 2023-03-29 | E131: 4754.45 | F131: 4789.90 | G131: 4702.65 | H131: 4650.85 | I131: 4563.60 | J131: 4841.70 | K131: 4928.95 | L131: 4980.75 | M131: 4877.15 | N131: 4738.1 | O131: 1268850 | P131: 8.42%
A132: 122 | B132: Technology | C132: LTTS | D132: 2023-03-29 | E132: 3640.05 | F132: 3638.23 | G132: 3603.82 | H132: 3567.58 | I132: 3533.17 | J132: 3674.47 | K132: 3708.88 | L132: 3745.12 | M132: 3672.65 | N132: 3602 | O132: 1053200 | P132: 2.41%
A133: 123 | B133: Pharma | C133: LUPIN | D133: 2023-03-29 | E133: 662.20 | F133: 661.65 | G133: 655.00 | H133: 647.80 | I133: 641.15 | J133: 668.85 | K133: 675.50 | L133: 682.70 | M133: 668.3 | N133: 654.45 | O133: 7661900 | P133: -0.27%
A134: 124 | B134: Automobile | C134: M&M | D134: 2023-03-29 | E134: 1277.10 | F134: 1280.25 | G134: 1263.10 | H134: 1249.10 | I134: 1231.95 | J134: 1294.25 | K134: 1311.40 | L134: 1325.40 | M134: 1297.4 | N134: 1266.25 | O134: 13031900 | P134: 1.63%
A135: 125 | B135: Finance | C135: M&MFIN | D135: 2023-03-29 | E135: 252.35 | F135: 253.13 | G135: 250.27 | H135: 248.18 | I135: 245.32 | J135: 255.22 | K135: 258.08 | L135: 260.17 | M135: 256 | N135: 251.05 | O135: 22856000 | P135: -0.19%
A136: 126 | B136: Finance | C136: MANAPPURAM | D136: 2023-03-29 | E136: 103.15 | F136: 102.83 | G136: 101.87 | H136: 100.58 | I136: 99.62 | J136: 104.12 | K136: 105.08 | L136: 106.37 | M136: 103.8 | N136: 101.55 | O136: 41442000 | P136: 0.04%
A137: 127 | B137: FMCG | C137: MARICO | D137: 2023-03-29 | E137: 490.05 | F137: 489.62 | G137: 486.13 | H137: 482.22 | I137: 478.73 | J137: 493.53 | K137: 497.02 | L137: 500.93 | M137: 493.1 | N137: 485.7 | O137: 8124000 | P137: 1.53%
A138: 128 | B138: Automobile | C138: MARUTI | D138: 2023-03-29 | E138: 8682.75 | F138: 8706.48 | G138: 8646.27 | H138: 8609.78 | I138: 8549.57 | J138: 8742.97 | K138: 8803.18 | L138: 8839.67 | M138: 8766.7 | N138: 8670 | O138: 2305100 | P138: 3.04%
A139: 129 | B139: FMCG | C139: MCDOWELL-N | D139: 2023-03-29 | E139: 744.70 | F139: 746.18 | G139: 739.02 | H139: 733.33 | I139: 726.17 | J139: 751.87 | K139: 759.03 | L139: 764.72 | M139: 753.35 | N139: 740.5 | O139: 13493750 | P139: 0.13%
A140: 130 | B140: Others | C140: MCX | D140: 2023-03-29 | E140: 1412.05 | F140: 1402.75 | G140: 1384.35 | H140: 1356.65 | I140: 1338.25 | J140: 1430.45 | K140: 1448.85 | L140: 1476.55 | M140: 1421.15 | N140: 1375.05 | O140: 937200 | P140: -5.45%
A141: 131 | B141: Pharma | C141: METROPOLIS | D141: 2023-03-29 | E141: 1320.80 | F141: 1321.50 | G141: 1310.50 | H141: 1300.20 | I141: 1289.20 | J141: 1331.80 | K141: 1342.80 | L141: 1353.10 | M141: 1332.5 | N141: 1311.2 | O141: 1006000 | P141: 1.90%
A142: 132 | B142: Finance | C142: MFSL | D142: 2023-03-29 | E142: 696.10 | F142: 697.55 | G142: 687.80 | H142: 679.50 | I142: 669.75 | J142: 705.85 | K142: 715.60 | L142: 723.90 | M142: 707.3 | N142: 689.25 | O142: 2796950 | P142: 5.23%
A143: 133 | B143: Oil_Gas | C143: MGL | D143: 2023-03-29 | E143: 899.15 | F143: 891.62 | G143: 882.38 | H143: 865.62 | I143: 856.38 | J143: 908.38 | K143: 917.62 | L143: 934.38 | M143: 900.85 | N143: 874.85 | O143: 2093600 | P143: -0.15%
A144: 134 | B144: Automobile | C144: MOTHERSON | D144: 2023-03-29 | E144: 80.20 | F144: 80.38 | G144: 79.07 | H144: 77.93 | I144: 76.62 | J144: 81.52 | K144: 82.83 | L144: 83.97 | M144: 81.7 | N144: 79.25 | O144: 63112500 | P144: 0.06%
A145: 135 | B145: Technology | C145: MPHASIS | D145: 2023-03-29 | E145: 2045.50 | F145: 2054.58 | G145: 2019.27 | H145: 1993.03 | I145: 1957.72 | J145: 2080.82 | K145: 2116.13 | L145: 2142.37 | M145: 2089.9 | N145: 2028.35 | O145: 2039400 | P145: 6.75%
A146: 136 | B146: Automobile | C146: MRF | D146: 2023-03-29 | E146: 85377.55 | F146: 85167.82 | G146: 84635.63 | H146: 83893.72 | I146: 83361.53 | J146: 85909.73 | K146: 86441.92 | L146: 87183.83 | M146: 85700 | N146: 84425.9 | O146: 59580 | P146: -1.10%
A147: 137 | B147: Finance | C147: MUTHOOTFIN | D147: 2023-03-29 | E147: 962.10 | F147: 961.25 | G147: 955.90 | H147: 949.70 | I147: 944.35 | J147: 967.45 | K147: 972.80 | L147: 979.00 | M147: 966.6 | N147: 955.05 | O147: 6773250 | P147: 2.16%
A148: 138 | B148: Metals | C148: NATIONALUM | D148: 2023-03-29 | E148: 78.60 | F148: 78.28 | G148: 77.42 | H148: 76.23 | I148: 75.37 | J148: 79.47 | K148: 80.33 | L148: 81.52 | M148: 79.15 | N148: 77.1 | O148: 51607500 | P148: -0.91%
A149: 139 | B149: Others | C149: NAUKRI | D149: 2023-03-29 | E149: 3513.05 | F149: 3531.75 | G149: 3477.85 | H149: 3442.65 | I149: 3388.75 | J149: 3566.95 | K149: 3620.85 | L149: 3656.05 | M149: 3585.65 | N149: 3496.55 | O149: 1640375 | P149: 1.73%
A150: 140 | B150: Chemical | C150: NAVINFLUOR | D150: 2023-03-29 | E150: 4121.00 | F150: 4114.07 | G150: 4084.28 | H150: 4047.57 | I150: 4017.78 | J150: 4150.78 | K150: 4180.57 | L150: 4217.28 | M150: 4143.85 | N150: 4077.35 | O150: 388800 | P150: 1.85%
A151: 141 | B151: FMCG | C151: NESTLEIND | D151: 2023-03-29 | E151: 18746.30 | F151: 18694.42 | G151: 18591.53 | H151: 18436.77 | I151: 18333.88 | J151: 18849.18 | K151: 18952.07 | L151: 19106.83 | M151: 18797.3 | N151: 18539.65 | O151: 266480 | P151: -2.84%
A152: 142 | B152: Metals | C152: NMDC | D152: 2023-03-29 | E152: 111.95 | F152: 112.28 | G152: 111.02 | H152: 110.08 | I152: 108.82 | J152: 113.22 | K152: 114.48 | L152: 115.42 | M152: 113.55 | N152: 111.35 | O152: 49014000 | P152: 4.72%
A153: 143 | B153: Power | C153: NTPC | D153: 2023-03-29 | E153: 171.75 | F153: 172.32 | G153: 170.78 | H153: 169.82 | I153: 168.28 | J153: 173.28 | K153: 174.82 | L153: 175.78 | M153: 173.85 | N153: 171.35 | O153: 73843500 | P153: 2.42%
A154: 144 | B154: Realty | C154: OBEROIRLTY | D154: 2023-03-29 | E154: 861.35 | F154: 862.73 | G154: 852.72 | H154: 844.08 | I154: 834.07 | J154: 871.37 | K154: 881.38 | L154: 890.02 | M154: 872.75 | N154: 854.1 | O154: 5971700 | P154: -0.95%
A155: 145 | B155: Technology | C155: OFSS | D155: 2023-03-29 | E155: 3180.40 | F155: 3180.18 | G155: 3159.97 | H155: 3139.53 | I155: 3119.32 | J155: 3200.62 | K155: 3220.83 | L155: 3241.27 | M155: 3200.4 | N155: 3159.75 | O155: 317600 | P155: -2.70%
A156: 146 | B156: Oil_Gas | C156: ONGC | D156: 2023-03-29 | E156: 153.05 | F156: 153.98 | G156: 151.67 | H156: 150.28 | I156: 147.97 | J156: 155.37 | K156: 157.68 | L156: 159.07 | M156: 156.3 | N156: 152.6 | O156: 35150500 | P156: 3.86%
A157: 147 | B157: Textile | C157: PAGEIND | D157: 2023-03-29 | E157: 38198.85 | F157: 38278.85 | G157: 37989.95 | H157: 37781.05 | I157: 37492.15 | J157: 38487.75 | K157: 38776.65 | L157: 38985.55 | M157: 38567.75 | N157: 38069.95 | O157: 126435 | P157: 0.96%
A158: 148 | B158: Pharma | C158: PEL | D158: 2023-03-29 | E158: 774.30 | F158: 778.73 | G158: 764.72 | H158: 755.13 | I158: 741.12 | J158: 788.32 | K158: 802.33 | L158: 811.92 | M158: 792.75 | N158: 769.15 | O158: 6420150 | P158: 5.31%
A159: 149 | B159: Technology | C159: PERSISTENT | D159: 2023-03-29 | E159: 4794.25 | F159: 4808.95 | G159: 4741.30 | H159: 4688.35 | I159: 4620.70 | J159: 4861.90 | K159: 4929.55 | L159: 4982.50 | M159: 4876.6 | N159: 4756 | O159: 873600 | P159: 2.55%
A160: 150 | B160: Oil_Gas | C160: PETRONET | D160: 2023-03-29 | E160: 224.05 | F160: 223.87 | G160: 221.78 | H160: 219.52 | I160: 217.43 | J160: 226.13 | K160: 228.22 | L160: 230.48 | M160: 225.95 | N160: 221.6 | O160: 11823000 | P160: 1.42%
A161: 151 | B161: Finance | C161: PFC | D161: 2023-03-29 | E161: 145.95 | F161: 145.03 | G161: 143.82 | H161: 141.68 | I161: 140.47 | J161: 147.17 | K161: 148.38 | L161: 150.52 | M161: 146.25 | N161: 142.9 | O161: 46295400 | P161: -1.05%
A162: 152 | B162: FMCG | C162: PIDILITIND | D162: 2023-03-29 | E162: 2311.05 | F162: 2304.88 | G162: 2286.17 | H162: 2261.28 | I162: 2242.57 | J162: 2329.77 | K162: 2348.48 | L162: 2373.37 | M162: 2323.6 | N162: 2280 | O162: 2985000 | P162: 1.49%
A163: 153 | B163: Chemical | C163: PIIND | D163: 2023-03-29 | E163: 3112.30 | F163: 3094.15 | G163: 3048.25 | H163: 2984.20 | I163: 2938.30 | J163: 3158.20 | K163: 3204.10 | L163: 3268.15 | M163: 3140.05 | N163: 3030.1 | O163: 2022750 | P163: -0.11%
A164: 154 | B164: Banking | C164: PNB | D164: 2023-03-29 | E164: 48.70 | F164: 48.50 | G164: 48.05 | H164: 47.40 | I164: 46.95 | J164: 49.15 | K164: 49.60 | L164: 50.25 | M164: 48.95 | N164: 47.85 | O164: 200112000 | P164: 0.07%
A165: 155 | B165: Others | C165: POLYCAB | D165: 2023-03-29 | E165: 3037.90 | F165: 3023.93 | G165: 2998.97 | H165: 2960.03 | I165: 2935.07 | J165: 3062.87 | K165: 3087.83 | L165: 3126.77 | M165: 3048.9 | N165: 2985 | O165: 879300 | P165: 9.45%
A166: 156 | B166: Power | C166: POWERGRID | D166: 2023-03-29 | E166: 223.20 | F166: 222.25 | G166: 220.70 | H166: 218.20 | I166: 216.65 | J166: 224.75 | K166: 226.30 | L166: 228.80 | M166: 223.8 | N166: 219.75 | O166: 27704700 | P166: -11.79%
A167: 157 | B167: Media | C167: PVR | D167: 2023-03-29 | E167: 1516.15 | F167: 1511.48 | G167: 1501.17 | H167: 1486.18 | I167: 1475.87 | J167: 1526.47 | K167: 1536.78 | L167: 1551.77 | M167: 1521.8 | N167: 1496.5 | O167: 2507527 | P167: 1.65%
A168: 158 | B168: Others | C168: RAIN | D168: 2023-03-29 | E168: 154.50 | F168: 154.35 | G168: 151.35 | H168: 148.20 | I168: 145.20 | J168: 157.50 | K168: 160.50 | L168: 163.65 | M168: 157.35 | N168: 151.2 | O168: 10577000 | P168: 1.41%
A169: 159 | B169: Cement | C169: RAMCOCEM | D169: 2023-03-29 | E169: 717.45 | F169: 715.48 | G169: 709.07 | H169: 700.68 | I169: 694.27 | J169: 723.87 | K169: 730.28 | L169: 738.67 | M169: 721.9 | N169: 707.1 | O169: 2536400 | P169: -2.45%
A170: 160 | B170: Banking | C170: RBLBANK | D170: 2023-03-29 | E170: 156.45 | F170: 155.58 | G170: 153.57 | H170: 150.68 | I170: 148.67 | J170: 158.47 | K170: 160.48 | L170: 163.37 | M170: 157.6 | N170: 152.7 | O170: 23425000 | P170: -3.34%
A171: 161 | B171: Power | C171: RECLTD | D171: 2023-03-29 | E171: 114.75 | F171: 114.13 | G171: 113.32 | H171: 111.88 | I171: 111.07 | J171: 115.57 | K171: 116.38 | L171: 117.82 | M171: 114.95 | N171: 112.7 | O171: 42832000 | P171: -4.48%
A172: 162 | B172: Oil_Gas | C172: RELIANCE | D172: 2023-03-29 | E172: 2334.45 | F172: 2347.75 | G172: 2314.95 | H172: 2295.45 | I172: 2262.65 | J172: 2367.25 | K172: 2400.05 | L172: 2419.55 | M172: 2380.55 | N172: 2328.25 | O172: 38747500 | P172: 4.61%
A173: 163 | B173: Metals | C173: SAIL | D173: 2023-03-29 | E173: 83.05 | F173: 82.97 | G173: 82.13 | H173: 81.22 | I173: 80.38 | J173: 83.88 | K173: 84.72 | L173: 85.63 | M173: 83.8 | N173: 82.05 | O173: 108640000 | P173: 1.56%
A174: 164 | B174: Banking | C174: SBICARD | D174: 2023-03-29 | E174: 753.40 | F174: 752.40 | G174: 747.20 | H174: 741.00 | I174: 735.80 | J174: 758.60 | K174: 763.80 | L174: 770.00 | M174: 757.6 | N174: 746.2 | O174: 7760800 | P174: 0.75%
A175: 165 | B175: Finance | C175: SBILIFE | D175: 2023-03-29 | E175: 1125.05 | F175: 1124.83 | G175: 1111.27 | H175: 1097.48 | I175: 1083.92 | J175: 1138.62 | K175: 1152.18 | L175: 1165.97 | M175: 1138.4 | N175: 1111.05 | O175: 5657250 | P175: -1.89%
A176: 166 | B176: Banking | C176: SBIN | D176: 2023-03-29 | E176: 526.35 | F176: 527.42 | G176: 523.18 | H176: 520.02 | I176: 515.78 | J176: 530.58 | K176: 534.82 | L176: 537.98 | M176: 531.65 | N176: 524.25 | O176: 86673000 | P176: -0.82%
A177: 167 | B177: Cement | C177: SHREECEM | D177: 2023-03-29 | E177: 25611.60 | F177: 25455.38 | G177: 25231.32 | H177: 24851.03 | I177: 24626.97 | J177: 25835.67 | K177: 26059.73 | L177: 26440.02 | M177: 25679.45 | N177: 25075.1 | O177: 366225 | P177: 2.20%
A178: 168 | B178: Capital_Goods | C178: SIEMENS | D178: 2023-03-29 | E178: 3260.45 | F178: 3245.38 | G178: 3216.42 | H178: 3172.38 | I178: 3143.42 | J178: 3289.42 | K178: 3318.38 | L178: 3362.42 | M178: 3274.35 | N178: 3201.35 | O178: 2092475 | P178: 2.92%
A179: 169 | B179: Textile | C179: SRF | D179: 2023-03-29 | E179: 2177.20 | F179: 2180.95 | G179: 2158.25 | H179: 2139.30 | I179: 2116.60 | J179: 2199.90 | K179: 2222.60 | L179: 2241.55 | M179: 2203.65 | N179: 2162 | O179: 3999750 | P179: -0.55%
A180: 170 | B180: Finance | C180: SHRIRAMFIN | D180: 2023-03-29 | E180: 1211.80 | F180: 1208.37 | G180: 1197.48 | H180: 1183.17 | I180: 1172.28 | J180: 1222.68 | K180: 1233.57 | L180: 1247.88 | M180: 1219.25 | N180: 1194.05 | O180: 4396200 | P180: 0.12%
A181: 171 | B181: Pharma | C181: SUNPHARMA | D181: 2023-03-29 | E181: 962.90 | F181: 967.98 | G181: 956.57 | H181: 950.23 | I181: 938.82 | J181: 974.32 | K181: 985.73 | L181: 992.07 | M181: 979.4 | N181: 961.65 | O181: 16202900 | P181: 0.40%
A182: 172 | B182: Media | C182: SUNTV | D182: 2023-03-29 | E182: 430.30 | F182: 429.75 | G182: 426.05 | H182: 421.80 | I182: 418.10 | J182: 434.00 | K182: 437.70 | L182: 441.95 | M182: 433.45 | N182: 425.5 | O182: 8280000 | P182: -0.11%
A183: 173 | B183: Pharma | C183: SYNGENE | D183: 2023-03-29 | E183: 582.70 | F183: 579.28 | G183: 575.02 | H183: 567.33 | I183: 563.07 | J183: 586.97 | K183: 591.23 | L183: 598.92 | M183: 583.55 | N183: 571.6 | O183: 2377000 | P183: -2.78%
A184: 174 | B184: Chemical | C184: TATACHEM | D184: 2023-03-29 | E184: 982.05 | F184: 980.05 | G184: 973.00 | H184: 963.95 | I184: 956.90 | J184: 989.10 | K184: 996.15 | L184: 1005.20 | M184: 987.1 | N184: 971 | O184: 5574000 | P184: 1.69%
A185: 175 | B185: Telecom | C185: TATACOMM | D185: 2023-03-29 | E185: 1213.30 | F185: 1206.48 | G185: 1194.37 | H185: 1175.43 | I185: 1163.32 | J185: 1225.42 | K185: 1237.53 | L185: 1256.47 | M185: 1218.6 | N185: 1187.55 | O185: 2182500 | P185: -3.81%
A186: 176 | B186: FMCG | C186: TATACONSUM | D186: 2023-03-29 | E186: 718.05 | F186: 715.80 | G186: 710.85 | H186: 703.65 | I186: 698.70 | J186: 723.00 | K186: 727.95 | L186: 735.15 | M186: 720.75 | N186: 708.6 | O186: 10674900 | P186: -3.02%
A187: 177 | B187: Automobile | C187: TATAMOTORS | D187: 2023-03-29 | E187: 422.75 | F187: 423.27 | G187: 419.98 | H187: 417.22 | I187: 413.93 | J187: 426.03 | K187: 429.32 | L187: 432.08 | M187: 426.55 | N187: 420.5 | O187: 60431400 | P187: -2.56%
A188: 178 | B188: Power | C188: TATAPOWER | D188: 2023-03-29 | E188: 203.40 | F188: 202.72 | G188: 201.23 | H188: 199.07 | I188: 197.58 | J188: 204.88 | K188: 206.37 | L188: 208.53 | M188: 204.2 | N188: 200.55 | O188: 100480500 | P188: -2.11%
A189: 179 | B189: Metals | C189: TATASTEEL | D189: 2023-03-29 | E189: 104.70 | F189: 105.60 | G189: 103.60 | H189: 102.50 | I189: 100.50 | J189: 106.70 | K189: 108.70 | L189: 109.80 | M189: 107.6 | N189: 104.5 | O189: 188611500 | P189: 6.81%
A190: 180 | B190: Technology | C190: TCS | D190: 2023-03-29 | E190: 3333.90 | F190: 3353.97 | G190: 3301.93 | H190: 3269.97 | I190: 3217.93 | J190: 3385.93 | K190: 3437.97 | L190: 3469.93 | M190: 3406 | N190: 3322 | O190: 10243450 | P190: 0.33%
A191: 181 | B191: Technology | C191: TECHM | D191: 2023-03-29 | E191: 1107.95 | F191: 1117.63 | G191: 1095.77 | H191: 1083.58 | I191: 1061.72 | J191: 1129.82 | K191: 1151.68 | L191: 1163.87 | M191: 1139.5 | N191: 1105.45 | O191: 10941600 | P191: 6.34%
A192: 182 | B192: FMCG | C192: TITAN | D192: 2023-03-29 | E192: 2388.60 | F192: 2401.67 | G192: 2368.38 | H192: 2348.17 | I192: 2314.88 | J192: 2421.88 | K192: 2455.17 | L192: 2475.38 | M192: 2434.95 | N192: 2381.45 | O192: 7201875 | P192: 4.89%
A193: 183 | B193: Pharma | C193: TORNTPHARM | D193: 2023-03-29 | E193: 1470.00 | F193: 1479.07 | G193: 1454.93 | H193: 1439.87 | I193: 1415.73 | J193: 1494.13 | K193: 1518.27 | L193: 1533.33 | M193: 1503.2 | N193: 1464 | O193: 1933000 | P193: 3.23%
A194: 184 | B194: Power | C194: TORNTPOWER | D194: 2023-03-29 | E194: 510.15 | F194: 510.45 | G194: 503.00 | H194: 495.85 | I194: 488.40 | J194: 517.60 | K194: 525.05 | L194: 532.20 | M194: 517.9 | N194: 503.3 | O194: 3264000 | P194: 4.82%
A195: 185 | B195: Others | C195: TRENT | D195: 2023-03-29 | E195: 1286.75 | F195: 1294.45 | G195: 1276.60 | H195: 1266.45 | I195: 1248.60 | J195: 1304.60 | K195: 1322.45 | L195: 1332.60 | M195: 1312.3 | N195: 1284.3 | O195: 3828400 | P195: -0.03%
A196: 186 | B196: Automobile | C196: TVSMOTOR | D196: 2023-03-29 | E196: 1081.80 | F196: 1084.72 | G196: 1073.48 | H196: 1065.17 | I196: 1053.93 | J196: 1093.03 | K196: 1104.27 | L196: 1112.58 | M196: 1095.95 | N196: 1076.4 | O196: 5833100 | P196: 0.26%
A197: 187 | B197: FMCG | C197: UBL | D197: 2023-03-29 | E197: 1447.70 | F197: 1449.42 | G197: 1433.88 | H197: 1420.07 | I197: 1404.53 | J197: 1463.23 | K197: 1478.77 | L197: 1492.58 | M197: 1464.95 | N197: 1435.6 | O197: 1141600 | P197: -2.09%
A198: 188 | B198: Cement | C198: ULTRACEMCO | D198: 2023-03-29 | E198: 7295.25 | F198: 7267.22 | G198: 7224.43 | H198: 7153.62 | I198: 7110.83 | J198: 7338.03 | K198: 7380.82 | L198: 7451.63 | M198: 7310 | N198: 7196.4 | O198: 1986500 | P198: -1.82%
A199: 189 | B199: Chemical | C199: UPL | D199: 2023-03-29 | E199: 699.00 | F199: 703.17 | G199: 693.83 | H199: 688.67 | I199: 679.33 | J199: 708.33 | K199: 717.67 | L199: 722.83 | M199: 712.5 | N199: 698 | O199: 15476500 | P199: 4.49%
A200: 190 | B200: Metals | C200: VEDL | D200: 2023-03-29 | E200: 270.25 | F200: 272.98 | G200: 260.62 | H200: 250.98 | I200: 238.62 | J200: 282.62 | K200: 294.98 | L200: 304.62 | M200: 285.35 | N200: 263.35 | O200: 39446000 | P200: 20.29%
A201: 191 | B201: Capital_Goods | C201: VOLTAS | D201: 2023-03-29 | E201: 897.70 | F201: 895.02 | G201: 882.68 | H201: 867.67 | I201: 855.33 | J201: 910.03 | K201: 922.37 | L201: 937.38 | M201: 907.35 | N201: 880 | O201: 4579200 | P201: 3.74%
A202: 192 | B202: Capital_Goods | C202: WHIRLPOOL | D202: 2023-03-29 | E202: 1310.15 | F202: 1317.20 | G202: 1297.00 | H202: 1283.85 | I202: 1263.65 | J202: 1330.35 | K202: 1350.55 | L202: 1363.70 | M202: 1337.4 | N202: 1304.05 | O202: 900900 | P202: 0.74%
A203: 193 | B203: Technology | C203: WIPRO | D203: 2023-03-29 | E203: 388.70 | F203: 390.30 | G203: 385.70 | H203: 382.70 | I203: 378.10 | J203: 393.30 | K203: 397.90 | L203: 400.90 | M203: 394.9 | N203: 387.3 | O203: 37323000 | P203: 1.22%
A204: 194 | B204: Media | C204: ZEEL | D204: 2023-03-29 | E204: 196.25 | F204: 194.87 | G204: 190.93 | H204: 185.62 | I204: 181.68 | J204: 200.18 | K204: 204.12 | L204: 209.43 | M204: 198.8 | N204: 189.55 | O204: 69069000 | P204: 3.51%
A205: 195 | B205: Pharma | C205: ZYDUSLIFE | D205: 2023-03-29 | E205: 467.70 | F205: 464.20 | G205: 459.60 | H205: 451.50 | I205: 446.90 | J205: 472.30 | K205: 476.90 | L205: 485.00 | M205: 468.8 | N205: 456.1 | O205: 6868800 | P205: -2.33%
A222: Pivot Point: This is trigger point for intra day buy/sell based on the price range of the previous day
... 14 more rows

Sheet Cash Intra
M5: Back to Main Page
A6: FOR INTRA DAY TRADING | K6: =Main!B10 -> 2023-03-01
A8: Sr.no | C8: CLOSE RATE | D8: Pivot Point | E8: Supports | H8: Resistances
E9: S1 | F9: S2 | G9: S3 | H9: R1 | I9: R2 | J9: R3 | K9: HIGH | L9: LOW | M9: Total Trade Quanity in Lakhs
A10: 1 | B10: Nifty 50 | C10: 17303.95 | D10: 17333.20 | E10: 17225.95 | F10: 17147.95 | G10: 17040.70 | H10: 17411.20 | I10: 17518.45 | J10: 17596.45 | K10: 17440.45 | L10: 17255.20
A11: 2 | B11: Nifty Bank | C11: 40269.05 | D11: 40244.50 | E11: 40097.55 | F11: 39926.05 | G11: 39779.10 | H11: 40416.00 | I11: 40562.95 | J11: 40734.45 | K11: 40391.45 | L11: 40073.00
A12: 3 | B12: Nifty CPSE | C12: 2880.50 | D12: 2885.43 | E12: 2870.37 | F12: 2860.23 | G12: 2845.17 | H12: 2895.57 | I12: 2910.63 | J12: 2920.77 | K12: 2900.50 | L12: 2875.30
A13: 4 | B13: Nifty Infra | C13: 5016.90 | D13: 5019.75 | E13: 4995.15 | F13: 4973.40 | G13: 4948.80 | H13: 5041.50 | I13: 5066.10 | J13: 5087.85 | K13: 5044.35 | L13: 4998.00
A14: 5 | B14: Nifty IT | C14: 29663.95 | D14: 29855.78 | E14: 29417.12 | F14: 29170.28 | G14: 28731.62 | H14: 30102.62 | I14: 30541.28 | J14: 30788.12 | K14: 30294.45 | L14: 29608.95
A15: 6 | B15: Nifty PSE | C15: 4389.50 | D15: 4390.68 | E15: 4373.27 | F15: 4357.03 | G15: 4339.62 | H15: 4406.92 | I15: 4424.33 | J15: 4440.57 | K15: 4408.10 | L15: 4374.45
A16: 7 | B16: Nifty Midcap 50 | C16: 8456.70 | D16: 8455.52 | E16: 8427.63 | F16: 8398.57 | G16: 8370.68 | H16: 8484.58 | I16: 8512.47 | J16: 8541.53 | K16: 8483.40 | L16: 8426.45
A17: 8 | B17: ABB | C17: 3217.35 | D17: 3189.72 | E17: 3132.43 | F17: 3047.52 | G17: 2990.23 | H17: 3274.63 | I17: 3331.92 | J17: 3416.83 | K17: 3247 | L17: 3104.8 | M17: 9.23123
A18: 9 | B18: ACC | C18: 1731.7 | D18: 1725.63 | E18: 1677.82 | F18: 1623.93 | G18: 1576.12 | H18: 1779.52 | I18: 1827.33 | J18: 1881.22 | K18: 1773.45 | L18: 1671.75 | M18: 20.34912
A19: 10 | B19: AUBANK | C19: 592.9 | D19: 596.13 | E19: 586.27 | F19: 579.63 | G19: 569.77 | H19: 602.77 | I19: 612.63 | J19: 619.27 | K19: 606 | L19: 589.5 | M19: 13.60975
A20: 11 | B20: ABBOTINDIA | C20: 20210.55 | D20: 20329.63 | E20: 20008.07 | F20: 19805.58 | G20: 19484.02 | H20: 20532.12 | I20: 20853.68 | J20: 21056.17 | K20: 20651.2 | L20: 20127.15 | M20: 0.11412
A21: 12 | B21: ADANIENT | C21: 1363.85 | D21: 1288.53 | E21: 1179.07 | F21: 994.28 | G21: 884.82 | H21: 1473.32 | I21: 1582.78 | J21: 1767.57 | K21: 1398 | L21: 1103.75 | M21: 339.48366
A22: 13 | B22: ADANIGREEN | C22: 485.3 | D22: 469.90 | E22: 454.50 | F22: 423.70 | G22: 408.30 | H22: 500.70 | I22: 516.10 | J22: 546.90 | K22: 485.3 | L22: 439.1 | M22: 86.13869
A23: 14 | B23: ADANIPORTS | C23: 592.45 | D23: 586.28 | E23: 558.12 | F23: 523.78 | G23: 495.62 | H23: 620.62 | I23: 648.78 | J23: 683.12 | K23: 614.45 | L23: 551.95 | M23: 253.60275
A24: 15 | B24: ATGL | C24: 678.55 | D24: 678.55 | E24: 678.55 | F24: 678.55 | G24: 678.55 | H24: 678.55 | I24: 678.55 | J24: 678.55 | K24: 678.55 | L24: 678.55 | M24: 9.08341
A25: 16 | B25: ADANITRANS | C25: 642.9 | D25: 653.40 | E25: 632.40 | F25: 621.90 | G25: 600.90 | H25: 663.90 | I25: 684.90 | J25: 695.40 | K25: 674.4 | L25: 642.9 | M25: 46.07943
A26: 17 | B26: AWL | C26: 361.65 | D26: 350.18 | E26: 338.72 | F26: 315.78 | G26: 304.32 | H26: 373.12 | I26: 384.58 | J26: 407.52 | K26: 361.65 | L26: 327.25 | M26: 143.17673
A27: 18 | B27: ABCAPITAL | C27: 145.85 | D27: 144.68 | E27: 142.52 | F27: 139.18 | G27: 137.02 | H27: 148.02 | I27: 150.18 | J27: 153.52 | K27: 146.85 | L27: 141.35 | M27: 33.63671
A28: 19 | B28: ABFRL | C28: 229.7 | D28: 230.85 | E28: 227.75 | F28: 225.80 | G28: 222.70 | H28: 232.80 | I28: 235.90 | J28: 237.85 | K28: 233.95 | L28: 228.9 | M28: 14.05768
A29: 20 | B29: ALKEM | C29: 3175 | D29: 3209.90 | E29: 3109.80 | F29: 3044.60 | G29: 2944.50 | H29: 3275.10 | I29: 3375.20 | J29: 3440.40 | K29: 3310 | L29: 3144.7 | M29: 1.31796
A30: 21 | B30: AMBUJACEM | C30: 342.1 | D30: 339.95 | E30: 326.45 | F30: 310.80 | G30: 297.30 | H30: 355.60 | I30: 369.10 | J30: 384.75 | K30: 353.45 | L30: 324.3 | M30: 219.86286
A31: 22 | B31: APOLLOHOSP | C31: 4401.65 | D31: 4412.12 | E31: 4350.83 | F31: 4300.02 | G31: 4238.73 | H31: 4462.93 | I31: 4524.22 | J31: 4575.03 | K31: 4473.4 | L31: 4361.3 | M31: 3.12308
A32: 23 | B32: ASHOKLEY | C32: 145.5 | D32: 144.15 | E32: 142.35 | F32: 139.20 | G32: 137.40 | H32: 147.30 | I32: 149.10 | J32: 152.25 | K32: 145.95 | L32: 141 | M32: 135.32276
A33: 24 | B33: ASIANPAINT | C33: 2828.8 | D33: 2798.42 | E33: 2757.83 | F33: 2686.87 | G33: 2646.28 | H33: 2869.38 | I33: 2909.97 | J33: 2980.93 | K33: 2839 | L33: 2727.45 | M33: 18.15923
A34: 25 | B34: ASTRAL | C34: 1888.5 | D34: 1882.78 | E34: 1867.77 | F34: 1847.03 | G34: 1832.02 | H34: 1903.52 | I34: 1918.53 | J34: 1939.27 | K34: 1897.8 | L34: 1862.05 | M34: 4.41927
A35: 26 | B35: AUROPHARMA | C35: 462.75 | D35: 462.18 | E35: 457.47 | F35: 452.18 | G35: 447.47 | H35: 467.47 | I35: 472.18 | J35: 477.47 | K35: 466.9 | L35: 456.9 | M35: 18.28482
A36: 27 | B36: DMART | C36: 3416.95 | D36: 3432.65 | E36: 3357.30 | F36: 3297.65 | G36: 3222.30 | H36: 3492.30 | I36: 3567.65 | J36: 3627.30 | K36: 3508 | L36: 3373 | M36: 3.28221
A37: 28 | B37: AXISBANK | C37: 844.1 | D37: 847.23 | E37: 836.87 | F37: 829.63 | G37: 819.27 | H37: 854.47 | I37: 864.83 | J37: 872.07 | K37: 857.6 | L37: 840 | M37: 130.12372
A38: 29 | B38: BAJAJ-AUTO | C38: 3661.2 | D38: 3676.60 | E38: 3610.20 | F38: 3559.20 | G38: 3492.80 | H38: 3727.60 | I38: 3794.00 | J38: 3845.00 | K38: 3743 | L38: 3625.6 | M38: 7.23245
A39: 30 | B39: BAJFINANCE | C39: 6112.1 | D39: 6149.57 | E39: 6052.53 | F39: 5992.97 | G39: 5895.93 | H39: 6209.13 | I39: 6306.17 | J39: 6365.73 | K39: 6246.6 | L39: 6090 | M39: 9.77852
A40: 31 | B40: BAJAJFINSV | C40: 1334.9 | D40: 1345.60 | E40: 1319.30 | F40: 1303.70 | G40: 1277.40 | H40: 1361.20 | I40: 1387.50 | J40: 1403.10 | K40: 1371.9 | L40: 1330 | M40: 15.9738
A41: 32 | B41: BAJAJHLDNG | C41: 6254.15 | D41: 6261.10 | E41: 5987.20 | F41: 5720.25 | G41: 5446.35 | H41: 6528.05 | I41: 6801.95 | J41: 7068.90 | K41: 6535 | L41: 5994.15 | M41: 1.78171
A42: 33 | B42: BALKRISIND | C42: 2014.35 | D42: 2023.75 | E42: 1994.45 | F42: 1974.55 | G42: 1945.25 | H42: 2043.65 | I42: 2072.95 | J42: 2092.85 | K42: 2053.05 | L42: 2003.85 | M42: 3.12408
A43: 34 | B43: BANDHANBNK | C43: 230.9 | D43: 229.47 | E43: 226.93 | F43: 222.97 | G43: 220.43 | H43: 233.43 | I43: 235.97 | J43: 239.93 | K43: 232 | L43: 225.5 | M43: 42.06214
A44: 35 | B44: BANKBARODA | C44: 159 | D44: 159.15 | E44: 157.05 | F44: 155.10 | G44: 153.00 | H44: 161.10 | I44: 163.20 | J44: 165.15 | K44: 161.25 | L44: 157.2 | M44: 1792.42251
A45: 36 | B45: BANKINDIA | C45: 70.85 | D45: 69.93 | E45: 68.47 | F45: 66.08 | G45: 64.62 | H45: 72.32 | I45: 73.78 | J45: 76.17 | K45: 71.4 | L45: 67.55 | M45: 155.10921
A46: 37 | B46: BATAINDIA | C46: 1411.15 | D46: 1404.08 | E46: 1393.77 | F46: 1376.38 | G46: 1366.07 | H46: 1421.47 | I46: 1431.78 | J46: 1449.17 | K46: 1414.4 | L46: 1386.7 | M46: 2.25394
A47: 38 | B47: BERGEPAINT | C47: 579.6 | D47: 571.03 | E47: 559.12 | F47: 538.63 | G47: 526.72 | H47: 591.52 | I47: 603.43 | J47: 623.92 | K47: 582.95 | L47: 550.55 | M47: 11.7418
A48: 39 | B48: BEL | C48: 94.6 | D48: 95.05 | E48: 93.95 | F48: 93.30 | G48: 92.20 | H48: 95.70 | I48: 96.80 | J48: 97.45 | K48: 96.15 | L48: 94.4 | M48: 109.65145
A49: 40 | B49: BHARATFORG | C49: 816 | D49: 818.57 | E49: 810.28 | F49: 804.57 | G49: 796.28 | H49: 824.28 | I49: 832.57 | J49: 838.28 | K49: 826.85 | L49: 812.85 | M49: 11.04103
A50: 41 | B50: BHEL | C50: 69.8 | D50: 69.10 | E50: 67.95 | F50: 66.10 | G50: 64.95 | H50: 70.95 | I50: 72.10 | J50: 73.95 | K50: 70.25 | L50: 67.25 | M50: 177.0091
A51: 42 | B51: BPCL | C51: 317.35 | D51: 317.68 | E51: 313.72 | F51: 310.08 | G51: 306.12 | H51: 321.32 | I51: 325.28 | J51: 328.92 | K51: 321.65 | L51: 314.05 | M51: 39.26329
A52: 43 | B52: BHARTIARTL | C52: 742.25 | D52: 746.33 | E52: 735.57 | F52: 728.88 | G52: 718.12 | H52: 753.02 | I52: 763.78 | J52: 770.47 | K52: 757.1 | L52: 739.65 | M52: 105.62614
A53: 44 | B53: BIOCON | C53: 229.15 | D53: 228.17 | E53: 224.28 | F53: 219.42 | G53: 215.53 | H53: 233.03 | I53: 236.92 | J53: 241.78 | K53: 232.05 | L53: 223.3 | M53: 516.17861
A54: 45 | B54: BOSCHLTD | C54: 17996.25 | D54: 17990.32 | E54: 17841.23 | F54: 17686.22 | G54: 17537.13 | H54: 18145.33 | I54: 18294.42 | J54: 18449.43 | K54: 18139.4 | L54: 17835.3 | M54: 0.22621
A55: 46 | B55: BRITANNIA | C55: 4461.75 | D55: 4439.00 | E55: 4402.75 | F55: 4343.75 | G55: 4307.50 | H55: 4498.00 | I55: 4534.25 | J55: 4593.25 | K55: 4475.25 | L55: 4380 | M55: 3.49283
A56: 47 | B56: CANBK | C56: 279.55 | D56: 277.98 | E56: 275.57 | F56: 271.58 | G56: 269.17 | H56: 281.97 | I56: 284.38 | J56: 288.37 | K56: 280.4 | L56: 274 | M56: 61.61412
A57: 48 | B57: CHOLAFIN | C57: 756.5 | D57: 759.30 | E57: 748.60 | F57: 740.70 | G57: 730.00 | H57: 767.20 | I57: 777.90 | J57: 785.80 | K57: 770 | L57: 751.4 | M57: 8.45969
A58: 49 | B58: CIPLA | C58: 906.4 | D58: 918.47 | E58: 891.03 | F58: 875.67 | G58: 848.23 | H58: 933.83 | I58: 961.27 | J58: 976.63 | K58: 945.9 | L58: 903.1 | M58: 53.80673
A59: 50 | B59: CLEAN | C59: 1377.85 | D59: 1380.43 | E59: 1368.47 | F59: 1359.08 | G59: 1347.12 | H59: 1389.82 | I59: 1401.78 | J59: 1411.17 | K59: 1392.4 | L59: 1371.05 | M59: 0.24501
A60: 51 | B60: COALINDIA | C60: 215.4 | D60: 214.78 | E60: 212.62 | F60: 209.83 | G60: 207.67 | H60: 217.57 | I60: 219.73 | J60: 222.52 | K60: 216.95 | L60: 212 | M60: 60.54079
A61: 52 | B61: COFORGE | C61: 4298.65 | D61: 4300.38 | E61: 4262.92 | F61: 4227.18 | G61: 4189.72 | H61: 4336.12 | I61: 4373.58 | J61: 4409.32 | K61: 4337.85 | L61: 4264.65 | M61: 2.48384
A62: 53 | B62: COLPAL | C62: 1473.5 | D62: 1469.85 | E62: 1457.70 | F62: 1441.90 | G62: 1429.75 | H62: 1485.65 | I62: 1497.80 | J62: 1513.60 | K62: 1482 | L62: 1454.05 | M62: 8.8556
A63: 54 | B63: CONCOR | C63: 590.5 | D63: 592.55 | E63: 585.65 | F63: 580.80 | G63: 573.90 | H63: 597.40 | I63: 604.30 | J63: 609.15 | K63: 599.45 | L63: 587.7 | M63: 15.00634
A64: 55 | B64: COROMANDEL | C64: 898.55 | D64: 901.02 | E64: 890.08 | F64: 881.62 | G64: 870.68 | H64: 909.48 | I64: 920.42 | J64: 928.88 | K64: 911.95 | L64: 892.55 | M64: 3.91761
A65: 56 | B65: CROMPTON | C65: 303.85 | D65: 303.50 | E65: 299.50 | F65: 295.15 | G65: 291.15 | H65: 307.85 | I65: 311.85 | J65: 316.20 | K65: 307.5 | L65: 299.15 | M65: 14.49139
A66: 57 | B66: CUMMINSIND | C66: 1570.1 | D66: 1572.05 | E66: 1554.85 | F66: 1539.60 | G66: 1522.40 | H66: 1587.30 | I66: 1604.50 | J66: 1619.75 | K66: 1589.25 | L66: 1556.8 | M66: 6.40541
A67: 58 | B67: DLF | C67: 351.65 | D67: 351.45 | E67: 349.05 | F67: 346.45 | G67: 344.05 | H67: 354.05 | I67: 356.45 | J67: 359.05 | K67: 353.85 | L67: 348.85 | M67: 25.20202
A68: 59 | B68: DABUR | C68: 532.6 | D68: 529.95 | E68: 524.90 | F68: 517.20 | G68: 512.15 | H68: 537.65 | I68: 542.70 | J68: 550.40 | K68: 535 | L68: 522.25 | M68: 23.30523
A69: 60 | B69: DALBHARAT | C69: 1833.9 | D69: 1833.55 | E69: 1812.35 | F69: 1790.80 | G69: 1769.60 | H69: 1855.10 | I69: 1876.30 | J69: 1897.85 | K69: 1854.75 | L69: 1812 | M69: 3.59886
A70: 61 | B70: DEEPAKNTR | C70: 1799.15 | D70: 1798.28 | E70: 1778.62 | F70: 1758.08 | G70: 1738.42 | H70: 1818.82 | I70: 1838.48 | J70: 1859.02 | K70: 1817.95 | L70: 1777.75 | M70: 3.13914
A71: 62 | B71: DELHIVERY | C71: 345.6 | D71: 344.88 | E71: 339.57 | F71: 333.53 | G71: 328.22 | H71: 350.92 | I71: 356.23 | J71: 362.27 | K71: 350.2 | L71: 338.85 | M71: 78.9973
A72: 63 | B72: DIVISLAB | C72: 2825.6 | D72: 2841.53 | E72: 2800.57 | F72: 2775.53 | G72: 2734.57 | H72: 2866.57 | I72: 2907.53 | J72: 2932.57 | K72: 2882.5 | L72: 2816.5 | M72: 3.4004
A73: 64 | B73: DIXON | C73: 2890.65 | D73: 2851.62 | E73: 2799.23 | F73: 2707.82 | G73: 2655.43 | H73: 2943.03 | I73: 2995.42 | J73: 3086.83 | K73: 2904 | L73: 2760.2 | M73: 7.08324
A74: 65 | B74: LALPATHLAB | C74: 1989.35 | D74: 1963.12 | E74: 1926.23 | F74: 1863.12 | G74: 1826.23 | H74: 2026.23 | I74: 2063.12 | J74: 2126.23 | K74: 2000 | L74: 1900 | M74: 3.13031
A75: 66 | B75: DRREDDY | C75: 4316.6 | D75: 4351.87 | E75: 4264.73 | F75: 4212.87 | G75: 4125.73 | H75: 4403.73 | I75: 4490.87 | J75: 4542.73 | K75: 4439 | L75: 4300 | M75: 5.39975
A76: 67 | B76: EICHERMOT | C76: 3105.9 | D76: 3126.02 | E76: 3071.03 | F76: 3036.17 | G76: 2981.18 | H76: 3160.88 | I76: 3215.87 | J76: 3250.73 | K76: 3181 | L76: 3091.15 | M76: 9.741
A77: 68 | B77: EMAMILTD | C77: 399.35 | D77: 396.27 | E77: 386.63 | F77: 373.92 | G77: 364.28 | H77: 408.98 | I77: 418.62 | J77: 431.33 | K77: 405.9 | L77: 383.55 | M77: 3.57502
A78: 69 | B78: ESCORTS | C78: 2075.35 | D78: 2060.45 | E78: 1992.90 | F78: 1910.45 | G78: 1842.90 | H78: 2142.90 | I78: 2210.45 | J78: 2292.90 | K78: 2128 | L78: 1978 | M78: 13.70275
A79: 70 | B79: NYKAA | C79: 139.95 | D79: 140.38 | E79: 138.27 | F79: 136.58 | G79: 134.47 | H79: 142.07 | I79: 144.18 | J79: 145.87 | K79: 142.5 | L79: 138.7 | M79: 51.14855
A80: 71 | B80: FEDERALBNK | C80: 129.15 | D80: 128.92 | E80: 127.83 | F80: 126.52 | G80: 125.43 | H80: 130.23 | I80: 131.32 | J80: 132.63 | K80: 130 | L80: 127.6 | M80: 81.78756
A81: 72 | B81: FORTIS | C81: 267.25 | D81: 266.90 | E81: 262.70 | F81: 258.15 | G81: 253.95 | H81: 271.45 | I81: 275.65 | J81: 280.20 | K81: 271.1 | L81: 262.35 | M81: 8.27201
A82: 73 | B82: GAIL | C82: 102.65 | D82: 103.05 | E82: 101.90 | F82: 101.15 | G82: 100.00 | H82: 103.80 | I82: 104.95 | J82: 105.70 | K82: 104.2 | L82: 102.3 | M82: 176.17907
A83: 74 | B83: GLAND | C83: 1318.05 | D83: 1310.68 | E83: 1272.37 | F83: 1226.68 | G83: 1188.37 | H83: 1356.37 | I83: 1394.68 | J83: 1440.37 | K83: 1349 | L83: 1265 | M83: 9.14979
A84: 75 | B84: GODREJCP | C84: 923.3 | D84: 921.63 | E84: 916.17 | F84: 909.03 | G84: 903.57 | H84: 928.77 | I84: 934.23 | J84: 941.37 | K84: 927.1 | L84: 914.5 | M84: 10.66639
A85: 76 | B85: GODREJPROP | C85: 1100.4 | D85: 1099.92 | E85: 1090.83 | F85: 1081.27 | G85: 1072.18 | H85: 1109.48 | I85: 1118.57 | J85: 1128.13 | K85: 1109 | L85: 1090.35 | M85: 3.16964
A86: 77 | B86: GRASIM | C86: 1578.55 | D86: 1573.70 | E86: 1562.95 | F86: 1547.35 | G86: 1536.60 | H86: 1589.30 | I86: 1600.05 | J86: 1615.65 | K86: 1584.45 | L86: 1558.1 | M86: 7.39148
A87: 78 | B87: GUJGASLTD | C87: 504.9 | D87: 504.72 | E87: 497.83 | F87: 490.77 | G87: 483.88 | H87: 511.78 | I87: 518.67 | J87: 525.73 | K87: 511.6 | L87: 497.65 | M87: 11.11464
A88: 79 | B88: GSPL | C88: 282.85 | D88: 279.38 | E88: 275.27 | F88: 267.68 | G88: 263.57 | H88: 286.97 | I88: 291.08 | J88: 298.67 | K88: 283.5 | L88: 271.8 | M88: 10.21432
A89: 80 | B89: HCLTECH | C89: 1077.6 | D89: 1080.87 | E89: 1064.83 | F89: 1052.07 | G89: 1036.03 | H89: 1093.63 | I89: 1109.67 | J89: 1122.43 | K89: 1096.9 | L89: 1068.1 | M89: 207.93703
A90: 81 | B90: HDFCAMC | C90: 1809.75 | D90: 1803.85 | E90: 1790.90 | F90: 1772.05 | G90: 1759.10 | H90: 1822.70 | I90: 1835.65 | J90: 1854.50 | K90: 1816.8 | L90: 1785 | M90: 4.10054
A91: 82 | B91: HDFCBANK | C91: 1599.6 | D91: 1597.87 | E91: 1590.43 | F91: 1581.27 | G91: 1573.83 | H91: 1607.03 | I91: 1614.47 | J91: 1623.63 | K91: 1605.3 | L91: 1588.7 | M91: 94.96996
A92: 83 | B92: HDFCLIFE | C92: 488.8 | D92: 488.35 | E92: 485.00 | F92: 481.20 | G92: 477.85 | H92: 492.15 | I92: 495.50 | J92: 499.30 | K92: 491.7 | L92: 484.55 | M92: 32.71808
A93: 84 | B93: HAVELLS | C93: 1197.05 | D93: 1190.00 | E93: 1174.00 | F93: 1150.95 | G93: 1134.95 | H93: 1213.05 | I93: 1229.05 | J93: 1252.10 | K93: 1206 | L93: 1166.95 | M93: 11.24099
A94: 85 | B94: HEROMOTOCO | C94: 2419.1 | D94: 2433.82 | E94: 2395.63 | F94: 2372.17 | G94: 2333.98 | H94: 2457.28 | I94: 2495.47 | J94: 2518.93 | K94: 2472 | L94: 2410.35 | M94: 5.42868
A95: 86 | B95: HINDALCO | C95: 399.2 | D95: 403.70 | E95: 393.50 | F95: 387.80 | G95: 377.60 | H95: 409.40 | I95: 419.60 | J95: 425.30 | K95: 413.9 | L95: 398 | M95: 121.74759
A96: 87 | B96: HAL | C96: 2574.3 | D96: 2579.15 | E96: 2551.30 | F96: 2528.30 | G96: 2500.45 | H96: 2602.15 | I96: 2630.00 | J96: 2653.00 | K96: 2607 | L96: 2556.15 | M96: 7.61085
A97: 88 | B97: HINDPETRO | C97: 215.25 | D97: 214.75 | E97: 213.05 | F97: 210.85 | G97: 209.15 | H97: 216.95 | I97: 218.65 | J97: 220.85 | K97: 216.45 | L97: 212.55 | M97: 55.92321
A98: 89 | B98: HINDUNILVR | C98: 2460.65 | D98: 2456.88 | E98: 2439.42 | F98: 2418.18 | G98: 2400.72 | H98: 2478.12 | I98: 2495.58 | J98: 2516.82 | K98: 2474.35 | L98: 2435.65 | M98: 17.80454
A99: 90 | B99: HINDZINC | C99: 304 | D99: 302.50 | E99: 297.45 | F99: 290.90 | G99: 285.85 | H99: 309.05 | I99: 314.10 | J99: 320.65 | K99: 307.55 | L99: 295.95 | M99: 6.36946
A100: 91 | B100: HONAUT | C100: 34487.25 | D100: 34716.27 | E100: 34155.78 | F100: 33824.32 | G100: 33263.83 | H100: 35047.73 | I100: 35608.22 | J100: 35939.68 | K100: 35276.75 | L100: 34384.8 | M100: 0.05368
A101: 92 | B101: HDFC | C101: 2609.45 | D101: 2597.17 | E101: 2572.28 | F101: 2535.12 | G101: 2510.23 | H101: 2634.33 | I101: 2659.22 | J101: 2696.38 | K101: 2622.05 | L101: 2560 | M101: 56.98126
A102: 93 | B102: ICICIBANK | C102: 854.85 | D102: 854.28 | E102: 850.57 | F102: 846.28 | G102: 842.57 | H102: 858.57 | I102: 862.28 | J102: 866.57 | K102: 858 | L102: 850 | M102: 196.00146
A103: 94 | B103: ICICIGI | C103: 1101.85 | D103: 1099.87 | E103: 1090.68 | F103: 1079.52 | G103: 1070.33 | H103: 1111.03 | I103: 1120.22 | J103: 1131.38 | K103: 1109.05 | L103: 1088.7 | M103: 4.75223
A104: 95 | B104: ICICIPRULI | C104: 408.9 | D104: 407.30 | E104: 403.70 | F104: 398.50 | G104: 394.90 | H104: 412.50 | I104: 416.10 | J104: 421.30 | K104: 410.9 | L104: 402.1 | M104: 14.98917
A105: 96 | B105: ISEC | C105: 466.2 | D105: 467.35 | E105: 461.75 | F105: 457.30 | G105: 451.70 | H105: 471.80 | I105: 477.40 | J105: 481.85 | K105: 472.95 | L105: 462.9 | M105: 1.02485
A106: 97 | B106: IDFCFIRSTB | C106: 55.15 | D106: 54.92 | E106: 54.33 | F106: 53.52 | G106: 52.93 | H106: 55.73 | I106: 56.32 | J106: 57.13 | K106: 55.5 | L106: 54.1 | M106: 255.7948
A107: 98 | B107: ITC | C107: 376.7 | D107: 378.65 | E107: 373.05 | F107: 369.40 | G107: 363.80 | H107: 382.30 | I107: 387.90 | J107: 391.55 | K107: 384.25 | L107: 375 | M107: 163.67477
A108: 99 | B108: INDIAMART | C108: 4848.95 | D108: 4821.63 | E108: 4777.32 | F108: 4705.68 | G108: 4661.37 | H108: 4893.27 | I108: 4937.58 | J108: 5009.22 | K108: 4865.95 | L108: 4750 | M108: 0.81511
A109: 100 | B109: INDIANB | C109: 257.1 | D109: 257.75 | E109: 251.55 | F109: 246.00 | G109: 239.80 | H109: 263.30 | I109: 269.50 | J109: 275.05 | K109: 263.95 | L109: 252.2 | M109: 18.67802
A110: 101 | B110: IEX | C110: 144.55 | D110: 143.85 | E110: 142.70 | F110: 140.85 | G110: 139.70 | H110: 145.70 | I110: 146.85 | J110: 148.70 | K110: 145 | L110: 142 | M110: 31.26399
A111: 102 | B111: INDHOTEL | C111: 310.75 | D111: 312.60 | E111: 306.85 | F111: 302.95 | G111: 297.20 | H111: 316.50 | I111: 322.25 | J111: 326.15 | K111: 318.35 | L111: 308.7 | M111: 64.13231
A112: 103 | B112: IOC | C112: 76.05 | D112: 76.30 | E112: 75.55 | F112: 75.05 | G112: 74.30 | H112: 76.80 | I112: 77.55 | J112: 78.05 | K112: 77.05 | L112: 75.8 | M112: 100.00095
A113: 104 | B113: IRCTC | C113: 609.25 | D113: 606.83 | E113: 603.02 | F113: 596.78 | G113: 592.97 | H113: 613.07 | I113: 616.88 | J113: 623.12 | K113: 610.65 | L113: 600.6 | M113: 11.69989
A114: 105 | B114: IGL | C114: 438.65 | D114: 436.73 | E114: 433.52 | F114: 428.38 | G114: 425.17 | H114: 441.87 | I114: 445.08 | J114: 450.22 | K114: 439.95 | L114: 431.6 | M114: 17.36382
A115: 106 | B115: INDUSTOWER | C115: 170.9 | D115: 170.48 | E115: 165.97 | F115: 161.03 | G115: 156.52 | H115: 175.42 | I115: 179.93 | J115: 184.87 | K115: 175 | L115: 165.55 | M115: 57.75867
A116: 107 | B116: INDUSINDBK | C116: 1077.7 | D116: 1078.55 | E116: 1067.20 | F116: 1056.70 | G116: 1045.35 | H116: 1089.05 | I116: 1100.40 | J116: 1110.90 | K116: 1089.9 | L116: 1068.05 | M116: 13.60243
A117: 108 | B117: NAUKRI | C117: 3491.7 | D117: 3509.60 | E117: 3454.45 | F117: 3417.20 | G117: 3362.05 | H117: 3546.85 | I117: 3602.00 | J117: 3639.25 | K117: 3564.75 | L117: 3472.35 | M117: 4.00273
A118: 109 | B118: INFY | C118: 1487.55 | D118: 1497.62 | E118: 1471.23 | F118: 1454.92 | G118: 1428.53 | H118: 1513.93 | I118: 1540.32 | J118: 1556.63 | K118: 1524 | L118: 1481.3 | M118: 96.79811
A119: 110 | B119: INDIGO | C119: 1856.35 | D119: 1852.12 | E119: 1839.53 | F119: 1822.72 | G119: 1810.13 | H119: 1868.93 | I119: 1881.52 | J119: 1898.33 | K119: 1864.7 | L119: 1835.3 | M119: 4.58233
A120: 111 | B120: IPCALAB | C120: 807.95 | D120: 810.35 | E120: 802.60 | F120: 797.25 | G120: 789.50 | H120: 815.70 | I120: 823.45 | J120: 828.80 | K120: 818.1 | L120: 805 | M120: 1.40848
A121: 112 | B121: JSWENERGY | C121: 234.65 | D121: 226.53 | E121: 216.27 | F121: 197.88 | G121: 187.62 | H121: 244.92 | I121: 255.18 | J121: 273.57 | K121: 236.8 | L121: 208.15 | M121: 72.70738
A122: 113 | B122: JSWSTEEL | C122: 667.2 | D122: 672.02 | E122: 660.08 | F122: 652.97 | G122: 641.03 | H122: 679.13 | I122: 691.07 | J122: 698.18 | K122: 683.95 | L122: 664.9 | M122: 19.15622
A123: 114 | B123: JINDALSTEL | C123: 549.2 | D123: 550.58 | E123: 544.27 | F123: 539.33 | G123: 533.02 | H123: 555.52 | I123: 561.83 | J123: 566.77 | K123: 556.9 | L123: 545.65 | M123: 57.58384
A124: 115 | B124: JUBLFOOD | C124: 440.85 | D124: 439.75 | E124: 435.45 | F124: 430.05 | G124: 425.75 | H124: 445.15 | I124: 449.45 | J124: 454.85 | K124: 444.05 | L124: 434.35 | M124: 25.49501
A125: 116 | B125: KOTAKBANK | C125: 1729.25 | D125: 1730.77 | E125: 1720.13 | F125: 1711.02 | G125: 1700.38 | H125: 1739.88 | I125: 1750.52 | J125: 1759.63 | K125: 1741.4 | L125: 1721.65 | M125: 43.95098
A126: 117 | B126: L&TFH | C126: 87.35 | D126: 87.57 | E126: 86.63 | F126: 85.92 | G126: 84.98 | H126: 88.28 | I126: 89.22 | J126: 89.93 | K126: 88.5 | L126: 86.85 | M126: 36.84684
A127: 118 | B127: LTTS | C127: 3684.75 | D127: 3673.22 | E127: 3643.43 | F127: 3602.12 | G127: 3572.33 | H127: 3714.53 | I127: 3744.32 | J127: 3785.63 | K127: 3703 | L127: 3631.9 | M127: 1.96705
A128: 119 | B128: LICHSGFIN | C128: 350.55 | D128: 351.43 | E128: 348.62 | F128: 346.68 | G128: 343.87 | H128: 353.37 | I128: 356.18 | J128: 358.12 | K128: 354.25 | L128: 349.5 | M128: 12.86065
A129: 120 | B129: LTIM | C129: 4722.05 | D129: 4758.35 | E129: 4661.70 | F129: 4601.35 | G129: 4504.70 | H129: 4818.70 | I129: 4915.35 | J129: 4975.70 | K129: 4855 | L129: 4698 | M129: 5.00908
A130: 121 | B130: LT | C130: 2109.15 | D130: 2110.82 | E130: 2083.33 | F130: 2057.52 | G130: 2030.03 | H130: 2136.63 | I130: 2164.12 | J130: 2189.93 | K130: 2138.3 | L130: 2085 | M130: 21.08587
A131: 122 | B131: LAURUSLABS | C131: 314.35 | D131: 315.12 | E131: 312.23 | F131: 310.12 | G131: 307.23 | H131: 317.23 | I131: 320.12 | J131: 322.23 | K131: 318 | L131: 313 | M131: 7.96465
A132: 123 | B132: LICI | C132: 578.4 | D132: 576.25 | E132: 569.75 | F132: 561.10 | G132: 554.60 | H132: 584.90 | I132: 591.40 | J132: 600.05 | K132: 582.75 | L132: 567.6 | M132: 22.074
A133: 124 | B133: LINDEINDIA | C133: 3721.8 | D133: 3746.37 | E133: 3656.78 | F133: 3591.77 | G133: 3502.18 | H133: 3811.38 | I133: 3900.97 | J133: 3965.98 | K133: 3835.95 | L133: 3681.35 | M133: 0.56432
A134: 125 | B134: LUPIN | C134: 659.25 | D134: 658.30 | E134: 651.35 | F134: 643.45 | G134: 636.50 | H134: 666.20 | I134: 673.15 | J134: 681.05 | K134: 665.25 | L134: 650.4 | M134: 15.59108
A135: 126 | B135: MRF | C135: 85256.6 | D135: 85264.93 | E135: 84631.67 | F135: 84006.73 | G135: 83373.47 | H135: 85889.87 | I135: 86523.13 | J135: 87148.07 | K135: 85898.2 | L135: 84640 | M135: 0.09473
A136: 127 | B136: M&MFIN | C136: 251.8 | D136: 252.55 | E136: 249.45 | F136: 247.10 | G136: 244.00 | H136: 254.90 | I136: 258.00 | J136: 260.35 | K136: 255.65 | L136: 250.2 | M136: 27.6772
A137: 128 | B137: M&M | C137: 1269.6 | D137: 1274.28 | E137: 1255.32 | F137: 1241.03 | G137: 1222.07 | H137: 1288.57 | I137: 1307.53 | J137: 1321.82 | K137: 1293.25 | L137: 1260 | M137: 34.07211
A138: 129 | B138: MARICO | C138: 491.9 | D138: 491.38 | E138: 487.32 | F138: 482.73 | G138: 478.67 | H138: 495.97 | I138: 500.03 | J138: 504.62 | K138: 495.45 | L138: 486.8 | M138: 19.95562
A139: 130 | B139: MARUTI | C139: 8624.35 | D139: 8646.22 | E139: 8583.43 | F139: 8542.52 | G139: 8479.73 | H139: 8687.13 | I139: 8749.92 | J139: 8790.83 | K139: 8709 | L139: 8605.3 | M139: 3.70998
A140: 131 | B140: MFSL | C140: 692.45 | D140: 694.50 | E140: 683.05 | F140: 673.65 | G140: 662.20 | H140: 703.90 | I140: 715.35 | J140: 724.75 | K140: 705.95 | L140: 685.1 | M140: 6.49099
A141: 132 | B141: MAXHEALTH | C141: 426.1 | D141: 427.73 | E141: 421.47 | F141: 416.83 | G141: 410.57 | H141: 432.37 | I141: 438.63 | J141: 443.27 | K141: 434 | L141: 423.1 | M141: 15.38948
A142: 133 | B142: MSUMI | C142: 49.5 | D142: 49.68 | E142: 48.87 | F142: 48.23 | G142: 47.42 | H142: 50.32 | I142: 51.13 | J142: 51.77 | K142: 50.5 | L142: 49.05 | M142: 73.97534
A143: 134 | B143: MPHASIS | C143: 2035.4 | D143: 2048.33 | E143: 2010.67 | F143: 1985.93 | G143: 1948.27 | H143: 2073.07 | I143: 2110.73 | J143: 2135.47 | K143: 2086 | L143: 2023.6 | M143: 15.2784
A144: 135 | B144: MUTHOOTFIN | C144: 972.6 | D144: 969.50 | E144: 961.10 | F144: 949.60 | G144: 941.20 | H144: 981.00 | I144: 989.40 | J144: 1000.90 | K144: 977.9 | L144: 958 | M144: 4.0503
A145: 136 | B145: NTPC | C145: 170.5 | D145: 171.12 | E145: 169.23 | F145: 167.97 | G145: 166.08 | H145: 172.38 | I145: 174.27 | J145: 175.53 | K145: 173 | L145: 169.85 | M145: 190.4491
A146: 137 | B146: NATIONALUM | C146: 78.25 | D146: 78.03 | E146: 77.07 | F146: 75.88 | G146: 74.92 | H146: 79.22 | I146: 80.18 | J146: 81.37 | K146: 79 | L146: 76.85 | M146: 99.51311
A147: 138 | B147: NAVINFLUOR | C147: 4128.1 | D147: 4116.10 | E147: 4083.35 | F147: 4038.60 | G147: 4005.85 | H147: 4160.85 | I147: 4193.60 | J147: 4238.35 | K147: 4148.85 | L147: 4071.35 | M147: 1.10008
A148: 139 | B148: NESTLEIND | C148: 18670 | D148: 18618.38 | E148: 18511.77 | F148: 18353.53 | G148: 18246.92 | H148: 18776.62 | I148: 18883.23 | J148: 19041.47 | K148: 18725 | L148: 18460.15 | M148: 1.09182
A149: 140 | B149: NAM-INDIA | C149: 221.35 | D149: 220.58 | E149: 215.77 | F149: 210.18 | G149: 205.37 | H149: 226.17 | I149: 230.98 | J149: 236.57 | K149: 225.4 | L149: 215 | M149: 4.30691
A150: 141 | B150: OBEROIRLTY | C150: 857.4 | D150: 858.50 | E150: 848.00 | F150: 838.60 | G150: 828.10 | H150: 867.90 | I150: 878.40 | J150: 887.80 | K150: 869 | L150: 849.1 | M150: 6.02997
A151: 142 | B151: ONGC | C151: 152.05 | D151: 152.90 | E151: 150.35 | F151: 148.65 | G151: 146.10 | H151: 154.60 | I151: 157.15 | J151: 158.85 | K151: 155.45 | L151: 151.2 | M151: 176.07584
A152: 143 | B152: OIL | C152: 247.05 | D152: 246.70 | E152: 242.65 | F152: 238.25 | G152: 234.20 | H152: 251.10 | I152: 255.15 | J152: 259.55 | K152: 250.75 | L152: 242.3 | M152: 18.9145
A153: 144 | B153: PAYTM | C153: 597.25 | D153: 602.97 | E153: 572.98 | F153: 548.72 | G153: 518.73 | H153: 627.23 | I153: 657.22 | J153: 681.48 | K153: 632.95 | L153: 578.7 | M153: 103.75035
A154: 145 | B154: OFSS | C154: 3169.1 | D154: 3168.68 | E154: 3147.47 | F154: 3125.83 | G154: 3104.62 | H154: 3190.32 | I154: 3211.53 | J154: 3233.17 | K154: 3189.9 | L154: 3147.05 | M154: 0.67186
A155: 146 | B155: POLICYBZR | C155: 558.25 | D155: 558.08 | E155: 545.47 | F155: 532.68 | G155: 520.07 | H155: 570.87 | I155: 583.48 | J155: 596.27 | K155: 570.7 | L155: 545.3 | M155: 26.12326
A156: 147 | B156: PIIND | C156: 3099.55 | D156: 3080.50 | E156: 3029.05 | F156: 2958.55 | G156: 2907.10 | H156: 3151.00 | I156: 3202.45 | J156: 3272.95 | K156: 3131.95 | L156: 3010 | M156: 5.12177
A157: 148 | B157: PAGEIND | C157: 37969.65 | D157: 38078.57 | E157: 37747.63 | F157: 37525.62 | G157: 37194.68 | H157: 38300.58 | I157: 38631.52 | J157: 38853.53 | K157: 38409.5 | L157: 37856.55 | M157: 0.25983
A158: 149 | B158: PATANJALI | C158: 923.8 | D158: 916.27 | E158: 902.53 | F158: 881.27 | G158: 867.53 | H158: 937.53 | I158: 951.27 | J158: 972.53 | K158: 930 | L158: 895 | M158: 2.25934
A159: 150 | B159: PERSISTENT | C159: 4793.1 | D159: 4804.30 | E159: 4733.60 | F159: 4674.10 | G159: 4603.40 | H159: 4863.80 | I159: 4934.50 | J159: 4994.00 | K159: 4875 | L159: 4744.8 | M159: 2.36414
A160: 151 | B160: PETRONET | C160: 222.55 | D160: 222.43 | E160: 220.27 | F160: 217.98 | G160: 215.82 | H160: 224.72 | I160: 226.88 | J160: 229.17 | K160: 224.6 | L160: 220.15 | M160: 28.208
A161: 152 | B161: PIDILITIND | C161: 2300.8 | D161: 2293.70 | E161: 2273.80 | F161: 2246.80 | G161: 2226.90 | H161: 2320.70 | I161: 2340.60 | J161: 2367.60 | K161: 2313.6 | L161: 2266.7 | M161: 3.12343
A162: 153 | B162: POLYCAB | C162: 3081.35 | D162: 3052.10 | E162: 3004.25 | F162: 2927.15 | G162: 2879.30 | H162: 3129.20 | I162: 3177.05 | J162: 3254.15 | K162: 3099.95 | L162: 2975 | M162: 3.62293
A163: 154 | B163: POONAWALLA | C163: 289.1 | D163: 289.55 | E163: 286.10 | F163: 283.10 | G163: 279.65 | H163: 292.55 | I163: 296.00 | J163: 299.00 | K163: 293 | L163: 286.55 | M163: 10.99938
A164: 155 | B164: PFC | C164: 145.4 | D164: 144.52 | E164: 143.03 | F164: 140.67 | G164: 139.18 | H164: 146.88 | I164: 148.37 | J164: 150.73 | K164: 146 | L164: 142.15 | M164: 56.13323
A165: 156 | B165: POWERGRID | C165: 222.25 | D165: 221.33 | E165: 219.67 | F165: 217.08 | G165: 215.42 | H165: 223.92 | I165: 225.58 | J165: 228.17 | K165: 223 | L165: 218.75 | M165: 274.19459
A166: 157 | B166: PRESTIGE | C166: 405.95 | D166: 404.65 | E166: 400.30 | F166: 394.65 | G166: 390.30 | H166: 410.30 | I166: 414.65 | J166: 420.30 | K166: 409 | L166: 399 | M166: 5.31556
A167: 158 | B167: PGHH | C167: 13771.35 | D167: 13757.38 | E167: 13693.67 | F167: 13615.98 | G167: 13552.27 | H167: 13835.07 | I167: 13898.78 | J167: 13976.47 | K167: 13821.1 | L167: 13679.7 | M167: 0.0208
A168: 159 | B168: PNB | C168: 48.35 | D168: 48.20 | E168: 47.80 | F168: 47.25 | G168: 46.85 | H168: 48.75 | I168: 49.15 | J168: 49.70 | K168: 48.6 | L168: 47.65 | M168: 455.5304
A169: 160 | B169: RECLTD | C169: 114.3 | D169: 113.75 | E169: 112.50 | F169: 110.70 | G169: 109.45 | H169: 115.55 | I169: 116.80 | J169: 118.60 | K169: 115 | L169: 111.95 | M169: 90.34566
A170: 161 | B170: RELIANCE | C170: 2322.55 | D170: 2334.40 | E170: 2301.80 | F170: 2281.05 | G170: 2248.45 | H170: 2355.15 | I170: 2387.75 | J170: 2408.50 | K170: 2367 | L170: 2313.65 | M170: 101.50245
A171: 162 | B171: SBICARD | C171: 750.45 | D171: 749.22 | E171: 743.83 | F171: 737.22 | G171: 731.83 | H171: 755.83 | I171: 761.22 | J171: 767.83 | K171: 754.6 | L171: 742.6 | M171: 9.15717
A172: 163 | B172: SBILIFE | C172: 1121 | D172: 1121.65 | E172: 1108.40 | F172: 1095.80 | G172: 1082.55 | H172: 1134.25 | I172: 1147.50 | J172: 1160.10 | K172: 1134.9 | L172: 1109.05 | M172: 12.19508
A173: 164 | B173: SRF | C173: 2168.55 | D173: 2171.20 | E173: 2151.40 | F173: 2134.25 | G173: 2114.45 | H173: 2188.35 | I173: 2208.15 | J173: 2225.30 | K173: 2191 | L173: 2154.05 | M173: 5.69085
A174: 165 | B174: MOTHERSON | C174: 79.65 | D174: 79.95 | E174: 78.50 | F174: 77.35 | G174: 75.90 | H174: 81.10 | I174: 82.55 | J174: 83.70 | K174: 81.4 | L174: 78.8 | M174: 122.73404
A175: 166 | B175: SHREECEM | C175: 26087.95 | D175: 25974.32 | E175: 25734.63 | F175: 25381.32 | G175: 25141.63 | H175: 26327.63 | I175: 26567.32 | J175: 26920.63 | K175: 26214 | L175: 25621 | M175: 0.63139
A176: 167 | B176: SRTRANSFIN
A177: 168 | B177: SIEMENS | C177: 3246.6 | D177: 3230.32 | E177: 3196.28 | F177: 3145.97 | G177: 3111.93 | H177: 3280.63 | I177: 3314.67 | J177: 3364.98 | K177: 3264.35 | L177: 3180 | M177: 3.93706
A178: 169 | B178: SONACOMS | C178: 448.1 | D178: 451.73 | E178: 441.47 | F178: 434.83 | G178: 424.57 | H178: 458.37 | I178: 468.63 | J178: 475.27 | K178: 462 | L178: 445.1 | M178: 3.8105
A179: 170 | B179: SBIN | C179: 522.8 | D179: 524.10 | E179: 519.75 | F179: 516.70 | G179: 512.35 | H179: 527.15 | I179: 531.50 | J179: 534.55 | K179: 528.45 | L179: 521.05 | M179: 157.6801
A180: 171 | B180: SAIL | C180: 82.75 | D180: 82.72 | E180: 81.83 | F180: 80.92 | G180: 80.03 | H180: 83.63 | I180: 84.52 | J180: 85.43 | K180: 83.6 | L180: 81.8 | M180: 146.83471
A181: 172 | B181: SUNPHARMA | C181: 956.6 | D181: 962.20 | E181: 948.40 | F181: 940.20 | G181: 926.40 | H181: 970.40 | I181: 984.20 | J181: 992.40 | K181: 976 | L181: 954 | M181: 38.19644
A182: 173 | B182: SUNTV | C182: 428.7 | D182: 429.55 | E182: 425.30 | F182: 421.90 | G182: 417.65 | H182: 432.95 | I182: 437.20 | J182: 440.60 | K182: 433.8 | L182: 426.15 | M182: 2.43065
A183: 174 | B183: SYNGENE | C183: 580.75 | D183: 576.78 | E183: 571.57 | F183: 562.38 | G183: 557.17 | H183: 585.97 | I183: 591.18 | J183: 600.37 | K183: 582 | L183: 567.6 | M183: 6.39989
A184: 175 | B184: TVSMOTOR | C184: 1080.3 | D184: 1082.12 | E184: 1070.88 | F184: 1061.47 | G184: 1050.23 | H184: 1091.53 | I184: 1102.77 | J184: 1112.18 | K184: 1093.35 | L184: 1072.7 | M184: 14.18799
A185: 176 | B185: TATACHEM | C185: 975 | D185: 973.72 | E185: 966.48 | F185: 957.97 | G185: 950.73 | H185: 982.23 | I185: 989.47 | J185: 997.98 | K185: 980.95 | L185: 965.2 | M185: 7.15101
A186: 177 | B186: TATACOMM | C186: 1208.55 | D186: 1202.50 | E186: 1190.05 | F186: 1171.55 | G186: 1159.10 | H186: 1221.00 | I186: 1233.45 | J186: 1251.95 | K186: 1214.95 | L186: 1184 | M186: 4.68191
A187: 178 | B187: TCS | C187: 3312.85 | D187: 3334.92 | E187: 3277.83 | F187: 3242.82 | G187: 3185.73 | H187: 3369.93 | I187: 3427.02 | J187: 3462.03 | K187: 3392 | L187: 3299.9 | M187: 41.16217
A188: 179 | B188: TATACONSUM | C188: 715.3 | D188: 712.87 | E188: 707.98 | F188: 700.67 | G188: 695.78 | H188: 720.18 | I188: 725.07 | J188: 732.38 | K188: 717.75 | L188: 705.55 | M188: 23.95442
A189: 180 | B189: TATAELXSI | C189: 6129.25 | D189: 6202.75 | E189: 6015.50 | F189: 5901.75 | G189: 5714.50 | H189: 6316.50 | I189: 6503.75 | J189: 6617.50 | K189: 6390 | L189: 6089 | M189: 2.03406
A190: 181 | B190: TATAMOTORS | C190: 420.7 | D190: 421.50 | E190: 418.20 | F190: 415.70 | G190: 412.40 | H190: 424.00 | I190: 427.30 | J190: 429.80 | K190: 424.8 | L190: 419 | M190: 96.52088
A191: 182 | B191: TATAPOWER | C191: 202.55 | D191: 201.68 | E191: 200.42 | F191: 198.28 | G191: 197.02 | H191: 203.82 | I191: 205.08 | J191: 207.22 | K191: 202.95 | L191: 199.55 | M191: 67.95039
A192: 183 | B192: TATASTEEL | C192: 103.95 | D192: 104.85 | E192: 102.65 | F192: 101.35 | G192: 99.15 | H192: 106.15 | I192: 108.35 | J192: 109.65 | K192: 107.05 | L192: 103.55 | M192: 765.40448
A193: 184 | B193: TTML | C193: 56.05 | D193: 54.90 | E193: 53.65 | F193: 51.25 | G193: 50.00 | H193: 57.30 | I193: 58.55 | J193: 60.95 | K193: 56.15 | L193: 52.5 | M193: 80.44125
A194: 185 | B194: TECHM | C194: 1100.25 | D194: 1110.83 | E194: 1086.17 | F194: 1072.08 | G194: 1047.42 | H194: 1124.92 | I194: 1149.58 | J194: 1163.67 | K194: 1135.5 | L194: 1096.75 | M194: 38.94204
A195: 186 | B195: RAMCOCEM | C195: 714.5 | D195: 712.12 | E195: 705.48 | F195: 696.47 | G195: 689.83 | H195: 721.13 | I195: 727.77 | J195: 736.78 | K195: 718.75 | L195: 703.1 | M195: 1.50319
A196: 187 | B196: TITAN | C196: 2372.8 | D196: 2387.13 | E196: 2349.27 | F196: 2325.73 | G196: 2287.87 | H196: 2410.67 | I196: 2448.53 | J196: 2472.07 | K196: 2425 | L196: 2363.6 | M196: 14.30349
A197: 188 | B197: TORNTPHARM | C197: 1459.85 | D197: 1470.40 | E197: 1443.45 | F197: 1427.05 | G197: 1400.10 | H197: 1486.80 | I197: 1513.75 | J197: 1530.15 | K197: 1497.35 | L197: 1454 | M197: 4.57718
A198: 189 | B198: TORNTPOWER | C198: 506.35 | D198: 506.95 | E198: 499.65 | F198: 492.95 | G198: 485.65 | H198: 513.65 | I198: 520.95 | J198: 527.65 | K198: 514.25 | L198: 500.25 | M198: 6.83583
A199: 190 | B199: TRENT | C199: 1278.15 | D199: 1286.27 | E199: 1264.88 | F199: 1251.62 | G199: 1230.23 | H199: 1299.53 | I199: 1320.92 | J199: 1334.18 | K199: 1307.65 | L199: 1273 | M199: 9.07835
A200: 191 | B200: TRIDENT | C200: 30.3 | D200: 30.12 | E200: 29.53 | F200: 28.77 | G200: 28.18 | H200: 30.88 | I200: 31.47 | J200: 32.23 | K200: 30.7 | L200: 29.35 | M200: 61.49985
A201: 192 | B201: TIINDIA | C201: 2771.8 | D201: 2744.58 | E201: 2627.22 | F201: 2482.63 | G201: 2365.27 | H201: 2889.17 | I201: 3006.53 | J201: 3151.12 | K201: 2861.95 | L201: 2600 | M201: 7.07344
A202: 193 | B202: UPL | C202: 694.2 | D202: 699.35 | E202: 688.10 | F202: 682.00 | G202: 670.75 | H202: 705.45 | I202: 716.70 | J202: 722.80 | K202: 710.6 | L202: 693.25 | M202: 26.76043
A203: 194 | B203: ULTRACEMCO | C203: 7261.3 | D203: 7235.82 | E203: 7187.68 | F203: 7114.07 | G203: 7065.93 | H203: 7309.43 | I203: 7357.57 | J203: 7431.18 | K203: 7283.95 | L203: 7162.2 | M203: 4.29256
A204: 195 | B204: UNIONBANK | C204: 67.25 | D204: 67.03 | E204: 66.47 | F204: 65.68 | G204: 65.12 | H204: 67.82 | I204: 68.38 | J204: 69.17 | K204: 67.6 | L204: 66.25 | M204: 87.70598
A205: 196 | B205: UBL | C205: 1446.9 | D205: 1447.30 | E205: 1432.60 | F205: 1418.30 | G205: 1403.60 | H205: 1461.60 | I205: 1476.30 | J205: 1490.60 | K205: 1462 | L205: 1433 | M205: 2.30334
... 29 more rows

Sheet MidCap Intra
L5: Back To Main Page
A6: FOR INTRA DAY TRADING | K6: =Main!B10 -> 2023-03-01
A9: Sr.no | B9: Scrip | C9: CLOSE RATE | D9: Pivot Point | E9: Supports | H9: Resistances
E10: S1 | F10: S2 | G10: S3 | H10: R1 | I10: R2 | J10: R3 | K10: HIGH | L10: LOW | M10: Total Trade Quanity in Lakhs
A11: 1 | B11: 3MINDIA | C11: 22888.85 | D11: 22686.17 | E11: 22173.33 | F11: 21457.82 | G11: 20944.98 | H11: 23401.68 | I11: 23914.52 | J11: 24630.03 | K11: 23199 | L11: 21970.65 | M11: 0.11895
A12: 2 | B12: ABB | C12: 3217.35 | D12: 3189.72 | E12: 3132.43 | F12: 3047.52 | G12: 2990.23 | H12: 3274.63 | I12: 3331.92 | J12: 3416.83 | K12: 3247 | L12: 3104.8 | M12: 9.23123
A13: 3 | B13: ACC | C13: 1731.7 | D13: 1725.63 | E13: 1677.82 | F13: 1623.93 | G13: 1576.12 | H13: 1779.52 | I13: 1827.33 | J13: 1881.22 | K13: 1773.45 | L13: 1671.75 | M13: 20.34912
A14: 4 | B14: AIAENG | C14: 2650.65 | D14: 2669.88 | E14: 2620.77 | F14: 2590.88 | G14: 2541.77 | H14: 2699.77 | I14: 2748.88 | J14: 2778.77 | K14: 2719 | L14: 2640 | M14: 1.29408
A15: 5 | B15: APLAPOLLO | C15: 1189.25 | D15: 1207.42 | E15: 1162.83 | F15: 1136.42 | G15: 1091.83 | H15: 1233.83 | I15: 1278.42 | J15: 1304.83 | K15: 1252 | L15: 1181 | M15: 4.29379
A16: 6 | B16: AUBANK | C16: 592.9 | D16: 596.13 | E16: 586.27 | F16: 579.63 | G16: 569.77 | H16: 602.77 | I16: 612.63 | J16: 619.27 | K16: 606 | L16: 589.5 | M16: 13.60975
A17: 7 | B17: AARTIDRUGS | C17: 366.3 | D17: 366.58 | E17: 365.07 | F17: 363.83 | G17: 362.32 | H17: 367.82 | I17: 369.33 | J17: 370.57 | K17: 368.1 | L17: 365.35 | M17: 0.43042
A18: 8 | B18: AAVAS | C18: 1827.9 | D18: 1849.00 | E18: 1794.10 | F18: 1760.30 | G18: 1705.40 | H18: 1882.80 | I18: 1937.70 | J18: 1971.50 | K18: 1903.9 | L18: 1815.2 | M18: 1.42619
A19: 9 | B19: ABBOTINDIA | C19: 20210.55 | D19: 20329.63 | E19: 20008.07 | F19: 19805.58 | G19: 19484.02 | H19: 20532.12 | I19: 20853.68 | J19: 21056.17 | K19: 20651.2 | L19: 20127.15 | M19: 0.11412
A20: 10 | B20: ADANIENT | C20: 1363.85 | D20: 1288.53 | E20: 1179.07 | F20: 994.28 | G20: 884.82 | H20: 1473.32 | I20: 1582.78 | J20: 1767.57 | K20: 1398 | L20: 1103.75 | M20: 339.48366
A21: 11 | B21: ADANIGREEN | C21: 485.3 | D21: 469.90 | E21: 454.50 | F21: 423.70 | G21: 408.30 | H21: 500.70 | I21: 516.10 | J21: 546.90 | K21: 485.3 | L21: 439.1 | M21: 86.13869
A22: 12 | B22: ADANIPORTS | C22: 592.45 | D22: 586.28 | E22: 558.12 | F22: 523.78 | G22: 495.62 | H22: 620.62 | I22: 648.78 | J22: 683.12 | K22: 614.45 | L22: 551.95 | M22: 253.60275
A23: 13 | B23: ATGL | C23: 678.55 | D23: 678.55 | E23: 678.55 | F23: 678.55 | G23: 678.55 | H23: 678.55 | I23: 678.55 | J23: 678.55 | K23: 678.55 | L23: 678.55 | M23: 9.08341
A24: 14 | B24: ADANITRANS | C24: 642.9 | D24: 653.40 | E24: 632.40 | F24: 621.90 | G24: 600.90 | H24: 663.90 | I24: 684.90 | J24: 695.40 | K24: 674.4 | L24: 642.9 | M24: 46.07943
A25: 15 | B25: AWL | C25: 361.65 | D25: 350.18 | E25: 338.72 | F25: 315.78 | G25: 304.32 | H25: 373.12 | I25: 384.58 | J25: 407.52 | K25: 361.65 | L25: 327.25 | M25: 143.17673
A26: 16 | B26: ABCAPITAL | C26: 145.85 | D26: 144.68 | E26: 142.52 | F26: 139.18 | G26: 137.02 | H26: 148.02 | I26: 150.18 | J26: 153.52 | K26: 146.85 | L26: 141.35 | M26: 33.63671
A27: 17 | B27: ABFRL | C27: 229.7 | D27: 230.85 | E27: 227.75 | F27: 225.80 | G27: 222.70 | H27: 232.80 | I27: 235.90 | J27: 237.85 | K27: 233.95 | L27: 228.9 | M27: 14.05768
A28: 18 | B28: ABSLAMC | C28: 380 | D28: 381.18 | E28: 378.07 | F28: 376.13 | G28: 373.02 | H28: 383.12 | I28: 386.23 | J28: 388.17 | K28: 384.3 | L28: 379.25 | M28: 0.4411
A29: 19 | B29: AEGISCHEM | C29: 364.05 | D29: 361.00 | E29: 356.00 | F29: 347.95 | G29: 342.95 | H29: 369.05 | I29: 374.05 | J29: 382.10 | K29: 366 | L29: 352.95 | M29: 8.48244
A30: 20 | B30: AETHER | C30: 874.7 | D30: 877.27 | E30: 869.98 | F30: 865.27 | G30: 857.98 | H30: 881.98 | I30: 889.27 | J30: 893.98 | K30: 884.55 | L30: 872.55 | M30: 0.09929
A31: 21 | B31: AFFLE | C31: 1024.15 | D31: 1013.38 | E31: 973.77 | F31: 923.38 | G31: 883.77 | H31: 1063.77 | I31: 1103.38 | J31: 1153.77 | K31: 1053 | L31: 963 | M31: 3.45566
A32: 22 | B32: AJANTPHARM | C32: 1182.2 | D32: 1180.20 | E32: 1169.40 | F32: 1156.60 | G32: 1145.80 | H32: 1193.00 | I32: 1203.80 | J32: 1216.60 | K32: 1191 | L32: 1167.4 | M32: 0.58466
A33: 23 | B33: APLLTD | C33: 511.3 | D33: 511.00 | E33: 506.00 | F33: 500.70 | G33: 495.70 | H33: 516.30 | I33: 521.30 | J33: 526.60 | K33: 516 | L33: 505.7 | M33: 0.57433
A34: 24 | B34: ALKEM | C34: 3175 | D34: 3209.90 | E34: 3109.80 | F34: 3044.60 | G34: 2944.50 | H34: 3275.10 | I34: 3375.20 | J34: 3440.40 | K34: 3310 | L34: 3144.7 | M34: 1.31796
A35: 25 | B35: ALKYLAMINE | C35: 2501.8 | D35: 2507.87 | E35: 2488.93 | F35: 2476.07 | G35: 2457.13 | H35: 2520.73 | I35: 2539.67 | J35: 2552.53 | K35: 2526.8 | L35: 2495 | M35: 0.09451
A36: 26 | B36: ALLCARGO | C36: 370.05 | D36: 370.38 | E36: 365.82 | F36: 361.58 | G36: 357.02 | H36: 374.62 | I36: 379.18 | J36: 383.42 | K36: 374.95 | L36: 366.15 | M36: 4.65647
A37: 27 | B37: ALOKINDS | C37: 12.5 | D37: 12.70 | E37: 12.00 | F37: 11.50 | G37: 10.80 | H37: 13.20 | I37: 13.90 | J37: 14.40 | K37: 13.4 | L37: 12.2 | M37: 75.8393
A38: 28 | B38: AMARAJABAT | C38: 554.95 | D38: 555.97 | E38: 544.98 | F38: 535.02 | G38: 524.03 | H38: 565.93 | I38: 576.92 | J38: 586.88 | K38: 566.95 | L38: 546 | M38: 4.99926
A39: 29 | B39: AMBER | C39: 1885.75 | D39: 1878.58 | E39: 1857.17 | F39: 1828.58 | G39: 1807.17 | H39: 1907.17 | I39: 1928.58 | J39: 1957.17 | K39: 1900 | L39: 1850 | M39: 0.3808
A40: 30 | B40: AMBUJACEM | C40: 342.1 | D40: 339.95 | E40: 326.45 | F40: 310.80 | G40: 297.30 | H40: 355.60 | I40: 369.10 | J40: 384.75 | K40: 353.45 | L40: 324.3 | M40: 219.86286
A41: 31 | B41: ANGELONE | C41: 1019.55 | D41: 1021.78 | E41: 1007.77 | F41: 995.98 | G41: 981.97 | H41: 1033.57 | I41: 1047.58 | J41: 1059.37 | K41: 1035.8 | L41: 1010 | M41: 4.0567
A42: 32 | B42: ANURAS | C42: 645.15 | D42: 645.58 | E42: 639.57 | F42: 633.98 | G42: 627.97 | H42: 651.17 | I42: 657.18 | J42: 662.77 | K42: 651.6 | L42: 640 | M42: 3.7173
A43: 33 | B43: APOLLOHOSP | C43: 4401.65 | D43: 4412.12 | E43: 4350.83 | F43: 4300.02 | G43: 4238.73 | H43: 4462.93 | I43: 4524.22 | J43: 4575.03 | K43: 4473.4 | L43: 4361.3 | M43: 3.12308
A44: 34 | B44: APOLLOTYRE | C44: 313.35 | D44: 315.67 | E44: 310.03 | F44: 306.72 | G44: 301.08 | H44: 318.98 | I44: 324.62 | J44: 327.93 | K44: 321.3 | L44: 312.35 | M44: 23.60674
A45: 35 | B45: APTUS | C45: 242.05 | D45: 243.75 | E45: 239.50 | F45: 236.95 | G45: 232.70 | H45: 246.30 | I45: 250.55 | J45: 253.10 | K45: 248 | L45: 241.2 | M45: 0.66829
A46: 36 | B46: ASAHIINDIA | C46: 481.85 | D46: 479.65 | E46: 470.30 | F46: 458.75 | G46: 449.40 | H46: 491.20 | I46: 500.55 | J46: 512.10 | K46: 489 | L46: 468.1 | M46: 1.02076
A47: 37 | B47: ASHOKLEY | C47: 145.5 | D47: 144.15 | E47: 142.35 | F47: 139.20 | G47: 137.40 | H47: 147.30 | I47: 149.10 | J47: 152.25 | K47: 145.95 | L47: 141 | M47: 135.32276
A48: 38 | B48: ASIANPAINT | C48: 2828.8 | D48: 2798.42 | E48: 2757.83 | F48: 2686.87 | G48: 2646.28 | H48: 2869.38 | I48: 2909.97 | J48: 2980.93 | K48: 2839 | L48: 2727.45 | M48: 18.15923
A49: 39 | B49: ASTERDM | C49: 222.85 | D49: 223.97 | E49: 218.38 | F49: 213.92 | G49: 208.33 | H49: 228.43 | I49: 234.02 | J49: 238.48 | K49: 229.55 | L49: 219.5 | M49: 1.56835
A50: 40 | B50: ASTRAZEN | C50: 3344.65 | D50: 3340.12 | E50: 3315.08 | F50: 3285.52 | G50: 3260.48 | H50: 3369.68 | I50: 3394.72 | J50: 3424.28 | K50: 3365.15 | L50: 3310.55 | M50: 0.04121
A51: 41 | B51: ASTRAL | C51: 1888.5 | D51: 1882.78 | E51: 1867.77 | F51: 1847.03 | G51: 1832.02 | H51: 1903.52 | I51: 1918.53 | J51: 1939.27 | K51: 1897.8 | L51: 1862.05 | M51: 4.41927
A52: 42 | B52: ATUL | C52: 7032.95 | D52: 7045.67 | E52: 6967.43 | F52: 6901.92 | G52: 6823.68 | H52: 7111.18 | I52: 7189.42 | J52: 7254.93 | K52: 7123.9 | L52: 6980.15 | M52: 0.20568
A53: 43 | B53: AUROPHARMA | C53: 462.75 | D53: 462.18 | E53: 457.47 | F53: 452.18 | G53: 447.47 | H53: 467.47 | I53: 472.18 | J53: 477.47 | K53: 466.9 | L53: 456.9 | M53: 18.28482
A54: 44 | B54: AVANTIFEED | C54: 365.75 | D54: 366.92 | E54: 363.88 | F54: 362.02 | G54: 358.98 | H54: 368.78 | I54: 371.82 | J54: 373.68 | K54: 369.95 | L54: 365.05 | M54: 0.70529
A55: 45 | B55: DMART | C55: 3416.95 | D55: 3432.65 | E55: 3357.30 | F55: 3297.65 | G55: 3222.30 | H55: 3492.30 | I55: 3567.65 | J55: 3627.30 | K55: 3508 | L55: 3373 | M55: 3.28221
A56: 46 | B56: AXISBANK | C56: 844.1 | D56: 847.23 | E56: 836.87 | F56: 829.63 | G56: 819.27 | H56: 854.47 | I56: 864.83 | J56: 872.07 | K56: 857.6 | L56: 840 | M56: 130.12372
A57: 47 | B57: BASF | C57: 2301.05 | D57: 2301.70 | E57: 2285.40 | F57: 2269.75 | G57: 2253.45 | H57: 2317.35 | I57: 2333.65 | J57: 2349.30 | K57: 2318 | L57: 2286.05 | M57: 0.06223
A58: 48 | B58: BSE | C58: 440.75 | D58: 441.08 | E58: 435.22 | F58: 429.68 | G58: 423.82 | H58: 446.62 | I58: 452.48 | J58: 458.02 | K58: 446.95 | L58: 435.55 | M58: 8.49493
A59: 49 | B59: BAJAJ-AUTO | C59: 3661.2 | D59: 3676.60 | E59: 3610.20 | F59: 3559.20 | G59: 3492.80 | H59: 3727.60 | I59: 3794.00 | J59: 3845.00 | K59: 3743 | L59: 3625.6 | M59: 7.23245
A60: 50 | B60: BAJAJELEC | C60: 1090.95 | D60: 1095.63 | E60: 1076.82 | F60: 1062.68 | G60: 1043.87 | H60: 1109.77 | I60: 1128.58 | J60: 1142.72 | K60: 1114.45 | L60: 1081.5 | M60: 0.26714
A61: 51 | B61: BAJFINANCE | C61: 6112.1 | D61: 6149.57 | E61: 6052.53 | F61: 5992.97 | G61: 5895.93 | H61: 6209.13 | I61: 6306.17 | J61: 6365.73 | K61: 6246.6 | L61: 6090 | M61: 9.77852
A62: 52 | B62: BAJAJFINSV | C62: 1334.9 | D62: 1345.60 | E62: 1319.30 | F62: 1303.70 | G62: 1277.40 | H62: 1361.20 | I62: 1387.50 | J62: 1403.10 | K62: 1371.9 | L62: 1330 | M62: 15.9738
A63: 53 | B63: BAJAJHLDNG | C63: 6254.15 | D63: 6261.10 | E63: 5987.20 | F63: 5720.25 | G63: 5446.35 | H63: 6528.05 | I63: 6801.95 | J63: 7068.90 | K63: 6535 | L63: 5994.15 | M63: 1.78171
A64: 54 | B64: BALAMINES | C64: 2198.6 | D64: 2187.53 | E64: 2165.07 | F64: 2131.53 | G64: 2109.07 | H64: 2221.07 | I64: 2243.53 | J64: 2277.07 | K64: 2210 | L64: 2154 | M64: 0.27563
A65: 55 | B65: BALKRISIND | C65: 2014.35 | D65: 2023.75 | E65: 1994.45 | F65: 1974.55 | G65: 1945.25 | H65: 2043.65 | I65: 2072.95 | J65: 2092.85 | K65: 2053.05 | L65: 2003.85 | M65: 3.12408
A66: 56 | B66: BALRAMCHIN | C66: 357.05 | D66: 357.23 | E66: 352.17 | F66: 347.28 | G66: 342.22 | H66: 362.12 | I66: 367.18 | J66: 372.07 | K66: 362.3 | L66: 352.35 | M66: 8.22945
A67: 57 | B67: BANDHANBNK | C67: 230.9 | D67: 229.47 | E67: 226.93 | F67: 222.97 | G67: 220.43 | H67: 233.43 | I67: 235.97 | J67: 239.93 | K67: 232 | L67: 225.5 | M67: 42.06214
A68: 58 | B68: BANKBARODA | C68: 159 | D68: 159.15 | E68: 157.05 | F68: 155.10 | G68: 153.00 | H68: 161.10 | I68: 163.20 | J68: 165.15 | K68: 161.25 | L68: 157.2 | M68: 1792.42251
A69: 59 | B69: BANKINDIA | C69: 70.85 | D69: 69.93 | E69: 68.47 | F69: 66.08 | G69: 64.62 | H69: 72.32 | I69: 73.78 | J69: 76.17 | K69: 71.4 | L69: 67.55 | M69: 155.10921
A70: 60 | B70: MAHABANK | C70: 25.5 | D70: 25.37 | E70: 25.08 | F70: 24.67 | G70: 24.38 | H70: 25.78 | I70: 26.07 | J70: 26.48 | K70: 25.65 | L70: 24.95 | M70: 121.02585
A71: 61 | B71: BATAINDIA | C71: 1411.15 | D71: 1404.08 | E71: 1393.77 | F71: 1376.38 | G71: 1366.07 | H71: 1421.47 | I71: 1431.78 | J71: 1449.17 | K71: 1414.4 | L71: 1386.7 | M71: 2.25394
A72: 62 | B72: BAYERCROP | C72: 4279.95 | D72: 4303.58 | E72: 4204.22 | F72: 4128.48 | G72: 4029.12 | H72: 4379.32 | I72: 4478.68 | J72: 4554.42 | K72: 4402.95 | L72: 4227.85 | M72: 0.17462
A73: 63 | B73: BERGEPAINT | C73: 579.6 | D73: 571.03 | E73: 559.12 | F73: 538.63 | G73: 526.72 | H73: 591.52 | I73: 603.43 | J73: 623.92 | K73: 582.95 | L73: 550.55 | M73: 11.7418
A74: 64 | B74: BDL | C74: 934.5 | D74: 938.72 | E74: 919.83 | F74: 905.17 | G74: 886.28 | H74: 953.38 | I74: 972.27 | J74: 986.93 | K74: 957.6 | L74: 924.05 | M74: 7.86666
A75: 65 | B75: BEL | C75: 94.6 | D75: 95.05 | E75: 93.95 | F75: 93.30 | G75: 92.20 | H75: 95.70 | I75: 96.80 | J75: 97.45 | K75: 96.15 | L75: 94.4 | M75: 109.65145
A76: 66 | B76: BHARATFORG | C76: 816 | D76: 818.57 | E76: 810.28 | F76: 804.57 | G76: 796.28 | H76: 824.28 | I76: 832.57 | J76: 838.28 | K76: 826.85 | L76: 812.85 | M76: 11.04103
A77: 67 | B77: BHEL | C77: 69.8 | D77: 69.10 | E77: 67.95 | F77: 66.10 | G77: 64.95 | H77: 70.95 | I77: 72.10 | J77: 73.95 | K77: 70.25 | L77: 67.25 | M77: 177.0091
A78: 68 | B78: BPCL | C78: 317.35 | D78: 317.68 | E78: 313.72 | F78: 310.08 | G78: 306.12 | H78: 321.32 | I78: 325.28 | J78: 328.92 | K78: 321.65 | L78: 314.05 | M78: 39.26329
A79: 69 | B79: BHARATRAS | C79: 8808.55 | D79: 8815.55 | E79: 8694.10 | F79: 8579.65 | G79: 8458.20 | H79: 8930.00 | I79: 9051.45 | J79: 9165.90 | K79: 8937 | L79: 8701.1 | M79: 0.00341
A80: 70 | B80: BHARTIARTL | C80: 742.25 | D80: 746.33 | E80: 735.57 | F80: 728.88 | G80: 718.12 | H80: 753.02 | I80: 763.78 | J80: 770.47 | K80: 757.1 | L80: 739.65 | M80: 105.62614
A81: 71 | B81: BIOCON | C81: 229.15 | D81: 228.17 | E81: 224.28 | F81: 219.42 | G81: 215.53 | H81: 233.03 | I81: 236.92 | J81: 241.78 | K81: 232.05 | L81: 223.3 | M81: 516.17861
A82: 72 | B82: BIRLACORPN | C82: 870.45 | D82: 864.42 | E82: 851.13 | F82: 831.82 | G82: 818.53 | H82: 883.73 | I82: 897.02 | J82: 916.33 | K82: 877.7 | L82: 845.1 | M82: 0.87051
A83: 73 | B83: BSOFT | C83: 275.25 | D83: 277.05 | E83: 272.20 | F83: 269.15 | G83: 264.30 | H83: 280.10 | I83: 284.95 | J83: 288.00 | K83: 281.9 | L83: 274 | M83: 10.17556
A84: 74 | B84: BLUEDART | C84: 6208.85 | D84: 6210.47 | E84: 6094.38 | F84: 5979.92 | G84: 5863.83 | H84: 6324.93 | I84: 6441.02 | J84: 6555.48 | K84: 6326.55 | L84: 6096 | M84: 0.38901
A85: 75 | B85: BLUESTARCO | C85: 1436.3 | D85: 1444.38 | E85: 1423.77 | F85: 1411.23 | G85: 1390.62 | H85: 1456.92 | I85: 1477.53 | J85: 1490.07 | K85: 1465 | L85: 1431.85 | M85: 1.1196
A86: 76 | B86: BBTC | C86: 888.45 | D86: 880.15 | E86: 860.30 | F86: 832.15 | G86: 812.30 | H86: 908.30 | I86: 928.15 | J86: 956.30 | K86: 900 | L86: 852 | M86: 0.27475
A87: 77 | B87: BORORENEW | C87: 469.2 | D87: 464.57 | E87: 454.13 | F87: 439.07 | G87: 428.63 | H87: 479.63 | I87: 490.07 | J87: 505.13 | K87: 475 | L87: 449.5 | M87: 1.54181
A88: 78 | B88: BOSCHLTD | C88: 17996.25 | D88: 17990.32 | E88: 17841.23 | F88: 17686.22 | G88: 17537.13 | H88: 18145.33 | I88: 18294.42 | J88: 18449.43 | K88: 18139.4 | L88: 17835.3 | M88: 0.22621
A89: 79 | B89: BRIGADE | C89: 487.65 | D89: 485.55 | E89: 477.10 | F89: 466.55 | G89: 458.10 | H89: 496.10 | I89: 504.55 | J89: 515.10 | K89: 494 | L89: 475 | M89: 2.92725
A90: 80 | B90: BCG | C90: 22.95 | D90: 23.02 | E90: 22.63 | F90: 22.32 | G90: 21.93 | H90: 23.33 | I90: 23.72 | J90: 24.03 | K90: 23.4 | L90: 22.7 | M90: 190.27243
A91: 81 | B91: BRITANNIA | C91: 4461.75 | D91: 4439.00 | E91: 4402.75 | F91: 4343.75 | G91: 4307.50 | H91: 4498.00 | I91: 4534.25 | J91: 4593.25 | K91: 4475.25 | L91: 4380 | M91: 3.49283
A92: 82 | B92: MAPMYINDIA | C92: 1147.1 | D92: 1150.70 | E92: 1141.40 | F92: 1135.70 | G92: 1126.40 | H92: 1156.40 | I92: 1165.70 | J92: 1171.40 | K92: 1160 | L92: 1145 | M92: 0.39676
A93: 83 | B93: CCL | C93: 546.95 | D93: 544.43 | E93: 537.82 | F93: 528.68 | G93: 522.07 | H93: 553.57 | I93: 560.18 | J93: 569.32 | K93: 551.05 | L93: 535.3 | M93: 0.73275
A94: 84 | B94: CESC | C94: 69.35 | D94: 69.52 | E94: 68.93 | F94: 68.52 | G94: 67.93 | H94: 69.93 | I94: 70.52 | J94: 70.93 | K94: 70.1 | L94: 69.1 | M94: 25.55771
A95: 85 | B95: CGPOWER | C95: 305.25 | D95: 307.62 | E95: 296.43 | F95: 287.62 | G95: 276.43 | H95: 316.43 | I95: 327.62 | J95: 336.43 | K95: 318.8 | L95: 298.8 | M95: 784.90279
A96: 86 | B96: CRISIL | C96: 3387.2 | D96: 3385.07 | E96: 3290.13 | F96: 3193.07 | G96: 3098.13 | H96: 3482.13 | I96: 3577.07 | J96: 3674.13 | K96: 3480 | L96: 3288 | M96: 0.72055
A97: 87 | B97: CSBBANK | C97: 229.05 | D97: 228.18 | E97: 223.37 | F97: 217.68 | G97: 212.87 | H97: 233.87 | I97: 238.68 | J97: 244.37 | K97: 233 | L97: 222.5 | M97: 2.70341
A98: 88 | B98: CAMPUS | C98: 404.55 | D98: 407.50 | E98: 398.20 | F98: 391.85 | G98: 382.55 | H98: 413.85 | I98: 423.15 | J98: 429.50 | K98: 416.8 | L98: 401.15 | M98: 21.83105
A99: 89 | B99: CANFINHOME | C99: 575.2 | D99: 573.70 | E99: 568.75 | F99: 562.30 | G99: 557.35 | H99: 580.15 | I99: 585.10 | J99: 591.55 | K99: 578.65 | L99: 567.25 | M99: 4.28394
A100: 90 | B100: CANBK | C100: 279.55 | D100: 277.98 | E100: 275.57 | F100: 271.58 | G100: 269.17 | H100: 281.97 | I100: 284.38 | J100: 288.37 | K100: 280.4 | L100: 274 | M100: 61.61412
A101: 91 | B101: CAPLIPOINT | C101: 653.25 | D101: 656.38 | E101: 647.82 | F101: 642.38 | G101: 633.82 | H101: 661.82 | I101: 670.38 | J101: 675.82 | K101: 664.95 | L101: 650.95 | M101: 0.64582
A102: 92 | B102: CGCL | C102: 680.1 | D102: 681.48 | E102: 669.97 | F102: 659.83 | G102: 648.32 | H102: 691.62 | I102: 703.13 | J102: 713.27 | K102: 693 | L102: 671.35 | M102: 2.48815
A103: 93 | B103: CARBORUNIV | C103: 978.9 | D103: 980.33 | E103: 959.67 | F103: 940.43 | G103: 919.77 | H103: 999.57 | I103: 1020.23 | J103: 1039.47 | K103: 1001 | L103: 961.1 | M103: 1.80397
A104: 94 | B104: CASTROLIND | C104: 114.75 | D104: 115.45 | E104: 113.55 | F104: 112.35 | G104: 110.45 | H104: 116.65 | I104: 118.55 | J104: 119.75 | K104: 117.35 | L104: 114.25 | M104: 5.44764
A105: 95 | B105: CEATLTD | C105: 1383.6 | D105: 1400.98 | E105: 1363.22 | F105: 1342.83 | G105: 1305.07 | H105: 1421.37 | I105: 1459.13 | J105: 1479.52 | K105: 1438.75 | L105: 1380.6 | M105: 1.06298
A106: 96 | B106: CENTRALBK | C106: 25.9 | D106: 25.68 | E106: 25.32 | F106: 24.73 | G106: 24.37 | H106: 26.27 | I106: 26.63 | J106: 27.22 | K106: 26.05 | L106: 25.1 | M106: 58.20605
A107: 97 | B107: CDSL | C107: 989.4 | D107: 987.23 | E107: 974.57 | F107: 959.73 | G107: 947.07 | H107: 1002.07 | I107: 1014.73 | J107: 1029.57 | K107: 999.9 | L107: 972.4 | M107: 2.38335
A108: 98 | B108: CENTURYPLY | C108: 505.65 | D108: 508.17 | E108: 500.33 | F108: 495.02 | G108: 487.18 | H108: 513.48 | I108: 521.32 | J108: 526.63 | K108: 516 | L108: 502.85 | M108: 0.52633
A109: 99 | B109: CENTURYTEX | C109: 608 | D109: 606.37 | E109: 598.73 | F109: 589.47 | G109: 581.83 | H109: 615.63 | I109: 623.27 | J109: 632.53 | K109: 614 | L109: 597.1 | M109: 1.45528
A110: 100 | B110: CERA | C110: 6513.1 | D110: 6462.98 | E110: 6375.97 | F110: 6238.83 | G110: 6151.82 | H110: 6600.12 | I110: 6687.13 | J110: 6824.27 | K110: 6550 | L110: 6325.85 | M110: 0.47517
A111: 101 | B111: CHALET | C111: 366.7 | D111: 369.93 | E111: 360.92 | F111: 355.13 | G111: 346.12 | H111: 375.72 | I111: 384.73 | J111: 390.52 | K111: 378.95 | L111: 364.15 | M111: 1.64348
A112: 102 | B112: CHAMBLFERT | C112: 274.6 | D112: 273.28 | E112: 270.87 | F112: 267.13 | G112: 264.72 | H112: 277.02 | I112: 279.43 | J112: 283.17 | K112: 275.7 | L112: 269.55 | M112: 8.4681
A113: 103 | B113: CHEMPLASTS | C113: 387.6 | D113: 394.60 | E113: 376.40 | F113: 365.20 | G113: 347.00 | H113: 405.80 | I113: 424.00 | J113: 435.20 | K113: 412.8 | L113: 383.4 | M113: 2.55451
A114: 104 | B114: CHOLAHLDNG | C114: 574.95 | D114: 582.47 | E114: 563.48 | F114: 552.02 | G114: 533.03 | H114: 593.93 | I114: 612.92 | J114: 624.38 | K114: 601.45 | L114: 571 | M114: 4.72098
A115: 105 | B115: CHOLAFIN | C115: 756.5 | D115: 759.30 | E115: 748.60 | F115: 740.70 | G115: 730.00 | H115: 767.20 | I115: 777.90 | J115: 785.80 | K115: 770 | L115: 751.4 | M115: 8.45969
A116: 106 | B116: CIPLA | C116: 906.4 | D116: 918.47 | E116: 891.03 | F116: 875.67 | G116: 848.23 | H116: 933.83 | I116: 961.27 | J116: 976.63 | K116: 945.9 | L116: 903.1 | M116: 53.80673
A117: 107 | B117: CUB | C117: 138.45 | D117: 137.60 | E117: 136.05 | F117: 133.65 | G117: 132.10 | H117: 140.00 | I117: 141.55 | J117: 143.95 | K117: 139.15 | L117: 135.2 | M117: 34.00716
A118: 108 | B118: CLEAN | C118: 1377.85 | D118: 1380.43 | E118: 1368.47 | F118: 1359.08 | G118: 1347.12 | H118: 1389.82 | I118: 1401.78 | J118: 1411.17 | K118: 1392.4 | L118: 1371.05 | M118: 0.24501
A119: 109 | B119: COALINDIA | C119: 215.4 | D119: 214.78 | E119: 212.62 | F119: 209.83 | G119: 207.67 | H119: 217.57 | I119: 219.73 | J119: 222.52 | K119: 216.95 | L119: 212 | M119: 60.54079
A120: 110 | B120: COCHINSHIP | C120: 452.05 | D120: 457.25 | E120: 444.80 | F120: 437.55 | G120: 425.10 | H120: 464.50 | I120: 476.95 | J120: 484.20 | K120: 469.7 | L120: 450 | M120: 2.91258
A121: 111 | B121: COFORGE | C121: 4298.65 | D121: 4300.38 | E121: 4262.92 | F121: 4227.18 | G121: 4189.72 | H121: 4336.12 | I121: 4373.58 | J121: 4409.32 | K121: 4337.85 | L121: 4264.65 | M121: 2.48384
A122: 112 | B122: COLPAL | C122: 1473.5 | D122: 1469.85 | E122: 1457.70 | F122: 1441.90 | G122: 1429.75 | H122: 1485.65 | I122: 1497.80 | J122: 1513.60 | K122: 1482 | L122: 1454.05 | M122: 8.8556
A123: 113 | B123: CAMS | C123: 2260.05 | D123: 2246.75 | E123: 2221.40 | F123: 2182.75 | G123: 2157.40 | H123: 2285.40 | I123: 2310.75 | J123: 2349.40 | K123: 2272.1 | L123: 2208.1 | M123: 0.6411
A124: 114 | B124: CONCOR | C124: 590.5 | D124: 592.55 | E124: 585.65 | F124: 580.80 | G124: 573.90 | H124: 597.40 | I124: 604.30 | J124: 609.15 | K124: 599.45 | L124: 587.7 | M124: 15.00634
A125: 115 | B125: COROMANDEL | C125: 898.55 | D125: 901.02 | E125: 890.08 | F125: 881.62 | G125: 870.68 | H125: 909.48 | I125: 920.42 | J125: 928.88 | K125: 911.95 | L125: 892.55 | M125: 3.91761
A126: 116 | B126: CREDITACC | C126: 964.95 | D126: 969.95 | E126: 950.80 | F126: 936.65 | G126: 917.50 | H126: 984.10 | I126: 1003.25 | J126: 1017.40 | K126: 989.1 | L126: 955.8 | M126: 1.13904
A127: 117 | B127: CROMPTON | C127: 303.85 | D127: 303.50 | E127: 299.50 | F127: 295.15 | G127: 291.15 | H127: 307.85 | I127: 311.85 | J127: 316.20 | K127: 307.5 | L127: 299.15 | M127: 14.49139
A128: 118 | B128: CUMMINSIND | C128: 1570.1 | D128: 1572.05 | E128: 1554.85 | F128: 1539.60 | G128: 1522.40 | H128: 1587.30 | I128: 1604.50 | J128: 1619.75 | K128: 1589.25 | L128: 1556.8 | M128: 6.40541
A129: 119 | B129: CYIENT | C129: 944.3 | D129: 950.73 | E129: 933.57 | F129: 922.83 | G129: 905.67 | H129: 961.47 | I129: 978.63 | J129: 989.37 | K129: 967.9 | L129: 940 | M129: 2.58367
A130: 120 | B130: DCMSHRIRAM | C130: 815.25 | D130: 824.58 | E130: 798.47 | F130: 781.68 | G130: 755.57 | H130: 841.37 | I130: 867.48 | J130: 884.27 | K130: 850.7 | L130: 807.8 | M130: 0.39676
A131: 121 | B131: DLF | C131: 351.65 | D131: 351.45 | E131: 349.05 | F131: 346.45 | G131: 344.05 | H131: 354.05 | I131: 356.45 | J131: 359.05 | K131: 353.85 | L131: 348.85 | M131: 25.20202
A132: 122 | B132: DABUR | C132: 532.6 | D132: 529.95 | E132: 524.90 | F132: 517.20 | G132: 512.15 | H132: 537.65 | I132: 542.70 | J132: 550.40 | K132: 535 | L132: 522.25 | M132: 23.30523
A133: 123 | B133: DALBHARAT | C133: 1833.9 | D133: 1833.55 | E133: 1812.35 | F133: 1790.80 | G133: 1769.60 | H133: 1855.10 | I133: 1876.30 | J133: 1897.85 | K133: 1854.75 | L133: 1812 | M133: 3.59886
A134: 124 | B134: DEEPAKFERT | C134: 617.75 | D134: 619.20 | E134: 611.65 | F134: 605.55 | G134: 598.00 | H134: 625.30 | I134: 632.85 | J134: 638.95 | K134: 626.75 | L134: 613.1 | M134: 1.47656
A135: 125 | B135: DEEPAKNTR | C135: 1799.15 | D135: 1798.28 | E135: 1778.62 | F135: 1758.08 | G135: 1738.42 | H135: 1818.82 | I135: 1838.48 | J135: 1859.02 | K135: 1817.95 | L135: 1777.75 | M135: 3.13914
A136: 126 | B136: DELHIVERY | C136: 345.6 | D136: 344.88 | E136: 339.57 | F136: 333.53 | G136: 328.22 | H136: 350.92 | I136: 356.23 | J136: 362.27 | K136: 350.2 | L136: 338.85 | M136: 78.9973
A137: 127 | B137: DELTACORP | C137: 187.8 | D137: 185.83 | E137: 183.27 | F137: 178.73 | G137: 176.17 | H137: 190.37 | I137: 192.93 | J137: 197.47 | K137: 188.4 | L137: 181.3 | M137: 25.79734
A138: 128 | B138: DEVYANI | C138: 152.4 | D138: 151.47 | E138: 149.28 | F138: 146.17 | G138: 143.98 | H138: 154.58 | I138: 156.77 | J138: 159.88 | K138: 153.65 | L138: 148.35 | M138: 23.9462
A139: 129 | B139: DHANI | C139: 30.6 | D139: 30.72 | E139: 30.13 | F139: 29.67 | G139: 29.08 | H139: 31.18 | I139: 31.77 | J139: 32.23 | K139: 31.3 | L139: 30.25 | M139: 14.3877
A140: 130 | B140: DBL | C140: 195.65 | D140: 196.22 | E140: 194.43 | F140: 193.22 | G140: 191.43 | H140: 197.43 | I140: 199.22 | J140: 200.43 | K140: 198 | L140: 195 | M140: 1.40787
A141: 131 | B141: DIVISLAB | C141: 2825.6 | D141: 2841.53 | E141: 2800.57 | F141: 2775.53 | G141: 2734.57 | H141: 2866.57 | I141: 2907.53 | J141: 2932.57 | K141: 2882.5 | L141: 2816.5 | M141: 3.4004
A142: 132 | B142: DIXON | C142: 2890.65 | D142: 2851.62 | E142: 2799.23 | F142: 2707.82 | G142: 2655.43 | H142: 2943.03 | I142: 2995.42 | J142: 3086.83 | K142: 2904 | L142: 2760.2 | M142: 7.08324
A143: 133 | B143: LALPATHLAB | C143: 1989.35 | D143: 1963.12 | E143: 1926.23 | F143: 1863.12 | G143: 1826.23 | H143: 2026.23 | I143: 2063.12 | J143: 2126.23 | K143: 2000 | L143: 1900 | M143: 3.13031
A144: 134 | B144: DRREDDY | C144: 4316.6 | D144: 4351.87 | E144: 4264.73 | F144: 4212.87 | G144: 4125.73 | H144: 4403.73 | I144: 4490.87 | J144: 4542.73 | K144: 4439 | L144: 4300 | M144: 5.39975
A145: 135 | B145: EIDPARRY | C145: 502.35 | D145: 502.32 | E145: 496.63 | F145: 490.92 | G145: 485.23 | H145: 508.03 | I145: 513.72 | J145: 519.43 | K145: 508 | L145: 496.6 | M145: 1.36642
A146: 136 | B146: EIHOTEL | C146: 157.25 | D146: 158.32 | E146: 154.63 | F146: 152.02 | G146: 148.33 | H146: 160.93 | I146: 164.62 | J146: 167.23 | K146: 162 | L146: 155.7 | M146: 5.98459
A147: 137 | B147: EPL | C147: 160.45 | D147: 159.93 | E147: 157.72 | F147: 154.98 | G147: 152.77 | H147: 162.67 | I147: 164.88 | J147: 167.62 | K147: 162.15 | L147: 157.2 | M147: 2.71092
A148: 138 | B148: EASEMYTRIP | C148: 46.7 | D148: 46.68 | E148: 45.92 | F148: 45.13 | G148: 44.37 | H148: 47.47 | I148: 48.23 | J148: 49.02 | K148: 47.45 | L148: 45.9 | M148: 98.00502
A149: 139 | B149: EDELWEISS | C149: 64.5 | D149: 64.13 | E149: 63.37 | F149: 62.23 | G149: 61.47 | H149: 65.27 | I149: 66.03 | J149: 67.17 | K149: 64.9 | L149: 63 | M149: 10.48448
A150: 140 | B150: EICHERMOT | C150: 3105.9 | D150: 3126.02 | E150: 3071.03 | F150: 3036.17 | G150: 2981.18 | H150: 3160.88 | I150: 3215.87 | J150: 3250.73 | K150: 3181 | L150: 3091.15 | M150: 9.741
A151: 141 | B151: ELGIEQUIP | C151: 467.95 | D151: 457.25 | E151: 439.90 | F151: 411.85 | G151: 394.50 | H151: 485.30 | I151: 502.65 | J151: 530.70 | K151: 474.6 | L151: 429.2 | M151: 15.81926
A152: 142 | B152: EMAMILTD | C152: 399.35 | D152: 396.27 | E152: 386.63 | F152: 373.92 | G152: 364.28 | H152: 408.98 | I152: 418.62 | J152: 431.33 | K152: 405.9 | L152: 383.55 | M152: 3.57502
A153: 143 | B153: ENDURANCE | C153: 1248.85 | D153: 1248.03 | E153: 1218.07 | F153: 1187.28 | G153: 1157.32 | H153: 1278.82 | I153: 1308.78 | J153: 1339.57 | K153: 1278 | L153: 1217.25 | M153: 2.08129
A154: 144 | B154: ENGINERSIN | C154: 71.35 | D154: 71.28 | E154: 70.12 | F154: 68.88 | G154: 67.72 | H154: 72.52 | I154: 73.68 | J154: 74.92 | K154: 72.45 | L154: 70.05 | M154: 12.59176
A155: 145 | B155: EQUITASBNK | C155: 71.5 | D155: 71.35 | E155: 69.30 | F155: 67.10 | G155: 65.05 | H155: 73.55 | I155: 75.60 | J155: 77.80 | K155: 73.4 | L155: 69.15 | M155: 173.66572
A156: 146 | B156: ESCORTS | C156: 2075.35 | D156: 2060.45 | E156: 1992.90 | F156: 1910.45 | G156: 1842.90 | H156: 2142.90 | I156: 2210.45 | J156: 2292.90 | K156: 2128 | L156: 1978 | M156: 13.70275
A157: 147 | B157: EXIDEIND | C157: 175.35 | D157: 174.73 | E157: 172.72 | F157: 170.08 | G157: 168.07 | H157: 177.37 | I157: 179.38 | J157: 182.02 | K157: 176.75 | L157: 172.1 | M157: 46.39642
A158: 148 | B158: FDC | C158: 262.75 | D158: 264.18 | E158: 259.17 | F158: 255.58 | G158: 250.57 | H158: 267.77 | I158: 272.78 | J158: 276.37 | K158: 269.2 | L158: 260.6 | M158: 0.55134
A159: 149 | B159: NYKAA | C159: 139.95 | D159: 140.38 | E159: 138.27 | F159: 136.58 | G159: 134.47 | H159: 142.07 | I159: 144.18 | J159: 145.87 | K159: 142.5 | L159: 138.7 | M159: 51.14855
A160: 150 | B160: FEDERALBNK | C160: 129.15 | D160: 128.92 | E160: 127.83 | F160: 126.52 | G160: 125.43 | H160: 130.23 | I160: 131.32 | J160: 132.63 | K160: 130 | L160: 127.6 | M160: 81.78756
A161: 151 | B161: FACT | C161: 234.15 | D161: 231.43 | E161: 228.72 | F161: 223.28 | G161: 220.57 | H161: 236.87 | I161: 239.58 | J161: 245.02 | K161: 234.15 | L161: 226 | M161: 3.12158
A162: 152 | B162: FINEORG | C162: 4625.2 | D162: 4659.28 | E162: 4556.97 | F162: 4488.73 | G162: 4386.42 | H162: 4727.52 | I162: 4829.83 | J162: 4898.07 | K162: 4761.6 | L162: 4591.05 | M162: 0.37276
A163: 153 | B163: FINCABLES | C163: 705.7 | D163: 702.23 | E163: 694.47 | F163: 683.23 | G163: 675.47 | H163: 713.47 | I163: 721.23 | J163: 732.47 | K163: 710 | L163: 691 | M163: 4.11292
A164: 154 | B164: FINPIPE | C164: 169.05 | D164: 168.95 | E164: 165.50 | F164: 161.95 | G164: 158.50 | H164: 172.50 | I164: 175.95 | J164: 179.50 | K164: 172.4 | L164: 165.4 | M164: 4.62984
A165: 155 | B165: FSL | C165: 112.65 | D165: 112.47 | E165: 110.93 | F165: 109.22 | G165: 107.68 | H165: 114.18 | I165: 115.72 | J165: 117.43 | K165: 114 | L165: 110.75 | M165: 14.98986
A166: 156 | B166: FORTIS | C166: 267.25 | D166: 266.90 | E166: 262.70 | F166: 258.15 | G166: 253.95 | H166: 271.45 | I166: 275.65 | J166: 280.20 | K166: 271.1 | L166: 262.35 | M166: 8.27201
A167: 157 | B167: GRINFRA | C167: 1036.15 | D167: 1034.42 | E167: 994.78 | F167: 953.42 | G167: 913.78 | H167: 1075.78 | I167: 1115.42 | J167: 1156.78 | K167: 1074.05 | L167: 993.05 | M167: 2.98661
A168: 158 | B168: GAIL | C168: 102.65 | D168: 103.05 | E168: 101.90 | F168: 101.15 | G168: 100.00 | H168: 103.80 | I168: 104.95 | J168: 105.70 | K168: 104.2 | L168: 102.3 | M168: 176.17907
A169: 159 | B169: GMMPFAUDLR | C169: 1632.3 | D169: 1611.08 | E169: 1566.02 | F169: 1499.73 | G169: 1454.67 | H169: 1677.37 | I169: 1722.43 | J169: 1788.72 | K169: 1656.15 | L169: 1544.8 | M169: 1.46066
A170: 160 | B170: GMRINFRA | C170: 37.9 | D170: 37.78 | E170: 37.57 | F170: 37.23 | G170: 37.02 | H170: 38.12 | I170: 38.33 | J170: 38.67 | K170: 38 | L170: 37.45 | M170: 57.79017
A171: 161 | B171: GALAXYSURF | C171: 2365.2 | D171: 2368.73 | E171: 2346.47 | F171: 2327.73 | G171: 2305.47 | H171: 2387.47 | I171: 2409.73 | J171: 2428.47 | K171: 2391 | L171: 2350 | M171: 0.08125
A172: 162 | B172: GARFIBRES | C172: 2939.65 | D172: 2940.87 | E172: 2906.83 | F172: 2874.02 | G172: 2839.98 | H172: 2973.68 | I172: 3007.72 | J172: 3040.53 | K172: 2974.9 | L172: 2908.05 | M172: 0.08595
A173: 163 | B173: GICRE | C173: 145.7 | D173: 145.02 | E173: 143.23 | F173: 140.77 | G173: 138.98 | H173: 147.48 | I173: 149.27 | J173: 151.73 | K173: 146.8 | L173: 142.55 | M173: 15.67596
A174: 164 | B174: GLAND | C174: 1318.05 | D174: 1310.68 | E174: 1272.37 | F174: 1226.68 | G174: 1188.37 | H174: 1356.37 | I174: 1394.68 | J174: 1440.37 | K174: 1349 | L174: 1265 | M174: 9.14979
A175: 165 | B175: GLAXO | C175: 1336.25 | D175: 1331.77 | E175: 1313.53 | F175: 1290.82 | G175: 1272.58 | H175: 1354.48 | I175: 1372.72 | J175: 1395.43 | K175: 1350 | L175: 1309.05 | M175: 1.03192
A176: 166 | B176: GLENMARK | C176: 428.75 | D176: 428.25 | E176: 421.50 | F176: 414.25 | G176: 407.50 | H176: 435.50 | I176: 442.25 | J176: 449.50 | K176: 435 | L176: 421 | M176: 9.6757
A177: 167 | B177: GOCOLORS | C177: 917 | D177: 909.50 | E177: 889.70 | F177: 862.40 | G177: 842.60 | H177: 936.80 | I177: 956.60 | J177: 983.90 | K177: 929.3 | L177: 882.2 | M177: 2.02549
A178: 168 | B178: GODFRYPHLP | C178: 1775.5 | D178: 1756.08 | E178: 1722.42 | F178: 1669.33 | G178: 1635.67 | H178: 1809.17 | I178: 1842.83 | J178: 1895.92 | K178: 1789.75 | L178: 1703 | M178: 0.9498
A179: 169 | B179: GODREJAGRO | C179: 437.95 | D179: 436.43 | E179: 433.62 | F179: 429.28 | G179: 426.47 | H179: 440.77 | I179: 443.58 | J179: 447.92 | K179: 439.25 | L179: 432.1 | M179: 0.38606
A180: 170 | B180: GODREJCP | C180: 923.3 | D180: 921.63 | E180: 916.17 | F180: 909.03 | G180: 903.57 | H180: 928.77 | I180: 934.23 | J180: 941.37 | K180: 927.1 | L180: 914.5 | M180: 10.66639
A181: 171 | B181: GODREJIND | C181: 419.25 | D181: 420.00 | E181: 417.65 | F181: 416.05 | G181: 413.70 | H181: 421.60 | I181: 423.95 | J181: 425.55 | K181: 422.35 | L181: 418.4 | M181: 0.31025
A182: 172 | B182: GODREJPROP | C182: 1100.4 | D182: 1099.92 | E182: 1090.83 | F182: 1081.27 | G182: 1072.18 | H182: 1109.48 | I182: 1118.57 | J182: 1128.13 | K182: 1109 | L182: 1090.35 | M182: 3.16964
A183: 173 | B183: GRANULES | C183: 280.1 | D183: 281.47 | E183: 277.83 | F183: 275.57 | G183: 271.93 | H183: 283.73 | I183: 287.37 | J183: 289.63 | K183: 285.1 | L183: 279.2 | M183: 4.35298
A184: 174 | B184: GRAPHITE | C184: 288.2 | D184: 289.83 | E184: 285.42 | F184: 282.63 | G184: 278.22 | H184: 292.62 | I184: 297.03 | J184: 299.82 | K184: 294.25 | L184: 287.05 | M184: 2.51501
A185: 175 | B185: GRASIM | C185: 1578.55 | D185: 1573.70 | E185: 1562.95 | F185: 1547.35 | G185: 1536.60 | H185: 1589.30 | I185: 1600.05 | J185: 1615.65 | K185: 1584.45 | L185: 1558.1 | M185: 7.39148
A186: 176 | B186: GESHIP | C186: 551.2 | D186: 553.90 | E186: 538.90 | F186: 526.60 | G186: 511.60 | H186: 566.20 | I186: 581.20 | J186: 593.50 | K186: 568.9 | L186: 541.6 | M186: 2.24207
A187: 177 | B187: GREENPANEL | C187: 280.45 | D187: 276.93 | E187: 270.87 | F187: 261.28 | G187: 255.22 | H187: 286.52 | I187: 292.58 | J187: 302.17 | K187: 283 | L187: 267.35 | M187: 2.82516
A188: 178 | B188: GRINDWELL | C188: 1804.7 | D188: 1823.67 | E188: 1771.93 | F188: 1739.17 | G188: 1687.43 | H188: 1856.43 | I188: 1908.17 | J188: 1940.93 | K188: 1875.4 | L188: 1790.9 | M188: 0.66984
A189: 179 | B189: GUJALKALI | C189: 619.9 | D189: 618.30 | E189: 614.60 | F189: 609.30 | G189: 605.60 | H189: 623.60 | I189: 627.30 | J189: 632.60 | K189: 622 | L189: 613 | M189: 0.51364
A190: 180 | B190: GAEL | C190: 228.25 | D190: 228.38 | E190: 226.12 | F190: 223.98 | G190: 221.72 | H190: 230.52 | I190: 232.78 | J190: 234.92 | K190: 230.65 | L190: 226.25 | M190: 1.81099
A191: 181 | B191: FLUOROCHEM | C191: 3145.15 | D191: 3142.05 | E191: 3099.10 | F191: 3053.05 | G191: 3010.10 | H191: 3188.10 | I191: 3231.05 | J191: 3277.10 | K191: 3185 | L191: 3096 | M191: 2.02723
A192: 182 | B192: GUJGASLTD | C192: 504.9 | D192: 504.72 | E192: 497.83 | F192: 490.77 | G192: 483.88 | H192: 511.78 | I192: 518.67 | J192: 525.73 | K192: 511.6 | L192: 497.65 | M192: 11.11464
A193: 183 | B193: GNFC | C193: 525.7 | D193: 527.13 | E193: 520.27 | F193: 514.83 | G193: 507.97 | H193: 532.57 | I193: 539.43 | J193: 544.87 | K193: 534 | L193: 521.7 | M193: 8.75221
A194: 184 | B194: GPPL | C194: 104.95 | D194: 104.07 | E194: 102.23 | F194: 99.52 | G194: 97.68 | H194: 106.78 | I194: 108.62 | J194: 111.33 | K194: 105.9 | L194: 101.35 | M194: 15.83047
A195: 185 | B195: GSFC | C195: 125.15 | D195: 125.95 | E195: 123.60 | F195: 122.05 | G195: 119.70 | H195: 127.50 | I195: 129.85 | J195: 131.40 | K195: 128.3 | L195: 124.4 | M195: 12.31042
A196: 186 | B196: GSPL | C196: 282.85 | D196: 279.38 | E196: 275.27 | F196: 267.68 | G196: 263.57 | H196: 286.97 | I196: 291.08 | J196: 298.67 | K196: 283.5 | L196: 271.8 | M196: 10.21432
A197: 187 | B197: HEG | C197: 963.1 | D197: 962.48 | E197: 956.42 | F197: 949.73 | G197: 943.67 | H197: 969.17 | I197: 975.23 | J197: 981.92 | K197: 968.55 | L197: 955.8 | M197: 0.60634
A198: 188 | B198: HCLTECH | C198: 1077.6 | D198: 1080.87 | E198: 1064.83 | F198: 1052.07 | G198: 1036.03 | H198: 1093.63 | I198: 1109.67 | J198: 1122.43 | K198: 1096.9 | L198: 1068.1 | M198: 207.93703
A199: 189 | B199: HDFCAMC | C199: 1809.75 | D199: 1803.85 | E199: 1790.90 | F199: 1772.05 | G199: 1759.10 | H199: 1822.70 | I199: 1835.65 | J199: 1854.50 | K199: 1816.8 | L199: 1785 | M199: 4.10054
A200: 190 | B200: HDFCBANK | C200: 1599.6 | D200: 1597.87 | E200: 1590.43 | F200: 1581.27 | G200: 1573.83 | H200: 1607.03 | I200: 1614.47 | J200: 1623.63 | K200: 1605.3 | L200: 1588.7 | M200: 94.96996
A201: 191 | B201: HDFCLIFE | C201: 488.8 | D201: 488.35 | E201: 485.00 | F201: 481.20 | G201: 477.85 | H201: 492.15 | I201: 495.50 | J201: 499.30 | K201: 491.7 | L201: 484.55 | M201: 32.71808
A202: 192 | B202: HFCL | C202: 63.85 | D202: 63.65 | E202: 63.00 | F202: 62.15 | G202: 61.50 | H202: 64.50 | I202: 65.15 | J202: 66.00 | K202: 64.3 | L202: 62.8 | M202: 30.57751
A203: 193 | B203: HLEGLAS | C203: 515.95 | D203: 523.98 | E203: 502.97 | F203: 489.98 | G203: 468.97 | H203: 536.97 | I203: 557.98 | J203: 570.97 | K203: 545 | L203: 511 | M203: 0.53505
A204: 194 | B204: HAPPSTMNDS | C204: 856.05 | D204: 857.57 | E204: 847.13 | F204: 838.22 | G204: 827.78 | H204: 866.48 | I204: 876.92 | J204: 885.83 | K204: 868 | L204: 848.65 | M204: 2.01853
A205: 195 | B205: HATSUN | C205: 900.1 | D205: 890.25 | E205: 875.50 | F205: 850.90 | G205: 836.15 | H205: 914.85 | I205: 929.60 | J205: 954.20 | K205: 905 | L205: 865.65 | M205: 0.26214
A206: 196 | B206: HAVELLS | C206: 1197.05 | D206: 1190.00 | E206: 1174.00 | F206: 1150.95 | G206: 1134.95 | H206: 1213.05 | I206: 1229.05 | J206: 1252.10 | K206: 1206 | L206: 1166.95 | M206: 11.24099
... 320 more rows

Sheet Bulk Deals
E6: Back To Main Page
A7: Subject : | B7: BULK DEAL | D7: =Main!B10 -> 2023-03-01
A9: Date | B9: Scrip code | C9: Scrip Name | D9: Client Name | E9: Buy / Sell | F9: Quantity Traded | G9: Trade Price / Wt.Avg.trade price | H9: Exchange
A10: 2023-02-28 | B10: 539506 | C10: ADCON | D10: BIJENDRA KATTA | E10: BUY | F10: 250,000 | G10: 1.84 | H10: BSE
A11: 2023-02-28 | B11: 543668 | C11: BBTCL | D11: AMARJIT BANTHIA HUF | E11: BUY | F11: 120,000 | G11: 220.49 | H11: BSE
A12: 2023-02-28 | B12: 543668 | C12: BBTCL | D12: JIGNESH AMRUTLAL THOBHANI | E12: SELL | F12: 132,000 | G12: 220.3 | H12: BSE
A13: 2023-02-28 | B13: 539405 | C13: DITCO | D13: SURESH KUMAR MUNDHRA HUF | E13: BUY | F13: 21,000 | G13: 17.93 | H13: BSE
A14: 2023-02-28 | B14: 539405 | C14: DITCO | D14: RAHULSINGLA | E14: SELL | F14: 19,000 | G14: 17.93 | H14: BSE
A15: 2023-02-28 | B15: 508980 | C15: FRONTCAP | D15: ATUL VASANT BHAGWAT | E15: SELL | F15: 300,000 | G15: 4.95 | H15: BSE
A16: 2023-02-28 | B16: 508980 | C16: FRONTCAP | D16: RAHUL ANANTRAI MEHTA | E16: BUY | F16: 100,000 | G16: 4.95 | H16: BSE
A17: 2023-02-28 | B17: 538609 | C17: GAJANANSEC | D17: VIVEK KANDA | E17: BUY | F17: 20,000 | G17: 12.14 | H17: BSE
A18: 2023-02-28 | B18: 538609 | C18: GAJANANSEC | D18: RUPAM BISWAS | E18: SELL | F18: 94,584 | G18: 12.14 | H18: BSE
A19: 2023-02-28 | B19: 538609 | C19: GAJANANSEC | D19: JALPABENNIKUNJBHAIBHUVA | E19: BUY | F19: 20,000 | G19: 12.14 | H19: BSE
A20: 2023-02-28 | B20: 538609 | C20: GAJANANSEC | D20: VIVEK KANDA | E20: BUY | F20: 20,000 | G20: 12.14 | H20: BSE
A21: 2023-02-28 | B21: 540614 | C21: GGENG | D21: VISHESH GUPTA | E21: BUY | F21: 3,000,000 | G21: 1.12 | H21: BSE
A22: 2023-02-28 | B22: 540266 | C22: GLCL | D22: VENKAT RAMAN | E22: SELL | F22: 50,000 | G22: 42.5 | H22: BSE
A23: 2023-02-28 | B23: 540266 | C23: GLCL | D23: NOOPUR BHAGWANDAS KANSARA | E23: BUY | F23: 48,180 | G23: 42.97 | H23: BSE
A24: 2023-02-28 | B24: 540266 | C24: GLCL | D24: NOOPUR BHAGWANDAS KANSARA | E24: SELL | F24: 35,000 | G24: 44.3 | H24: BSE
A25: 2023-02-28 | B25: 530263 | C25: GLOBALCA | D25: SANDHIL CONSULTANCY SERVICES PRIVATE LIMITED . | E25: SELL | F25: 180,000 | G25: 27.85 | H25: BSE
A26: 2023-02-28 | B26: 530663 | C26: GOYALASS | D26: SAGAR GURUNG | E26: SELL | F26: 447,817 | G26: 2.09 | H26: BSE
A27: 2023-02-28 | B27: 530663 | C27: GOYALASS | D27: MISTERKAPOORKESHRI | E27: BUY | F27: 309,763 | G27: 2.1 | H27: BSE
A28: 2023-02-28 | B28: 526967 | C28: HEERAISP | D28: DAXESH DAHYALAL SHAH | E28: SELL | F28: 158,000 | G28: 12 | H28: BSE
A29: 2023-02-28 | B29: 526967 | C29: HEERAISP | D29: NAYANABEN HARISHBHAI MENDPARA | E29: BUY | F29: 46,500 | G29: 12 | H29: BSE
A30: 2023-02-28 | B30: 526967 | C30: HEERAISP | D30: CHANDRA SEKHAR | E30: BUY | F30: 68,150 | G30: 11.94 | H30: BSE
A31: 2023-02-28 | B31: 543286 | C31: JETMALL | D31: MANISHA RAJIV UDANI | E31: SELL | F31: 30,000 | G31: 24 | H31: BSE
A32: 2023-02-28 | B32: 539814 | C32: LELAVOIR | D32: NEETU SHRESTHA | E32: SELL | F32: 49,108 | G32: 40.57 | H32: BSE
A33: 2023-02-28 | B33: 539814 | C33: LELAVOIR | D33: NAGESHWARRAO SRIKRISHNA DUVVURI | E33: BUY | F33: 73,569 | G33: 40.22 | H33: BSE
A34: 2023-02-28 | B34: 538895 | C34: MIHIKA | D34: DHARMISTHABEN KANUBHAI KACHHIA | E34: BUY | F34: 90,251 | G34: 22.74 | H34: BSE
A35: 2023-02-28 | B35: 539767 | C35: MNIL | D35: BP EQUITIES PVT. LTD. | E35: BUY | F35: 28,485 | G35: 14.77 | H35: BSE
A36: 2023-02-28 | B36: 539767 | C36: MNIL | D36: BP EQUITIES PVT. LTD. | E36: SELL | F36: 28,485 | G36: 14.77 | H36: BSE
A37: 2023-02-28 | B37: 539767 | C37: MNIL | D37: SONAL AMITBHAI MEHTA | E37: BUY | F37: 20,000 | G37: 14.86 | H37: BSE
A38: 2023-02-28 | B38: 539767 | C38: MNIL | D38: GUNIBEN DHIRAJLAL MEHTA | E38: BUY | F38: 20,000 | G38: 14.82 | H38: BSE
A39: 2023-02-28 | B39: 539767 | C39: MNIL | D39: SPEXTRA MULTIBIZ PRIVATE LIMITED | E39: BUY | F39: 42,876 | G39: 13.55 | H39: BSE
A40: 2023-02-28 | B40: 539767 | C40: MNIL | D40: SPEXTRA MULTIBIZ PRIVATE LIMITED | E40: SELL | F40: 41,341 | G40: 14.9 | H40: BSE
A41: 2023-02-28 | B41: 539767 | C41: MNIL | D41: PARIKH RAJNIKANT BABULAL | E41: BUY | F41: 30,000 | G41: 14.78 | H41: BSE
A42: 2023-02-28 | B42: 504378 | C42: NYSSACORP | D42: ABDURRAHMAN MOHD SHAFI TAIBANI | E42: SELL | F42: 39,688 | G42: 4.89 | H42: BSE
A43: 2023-02-28 | B43: 504378 | C43: NYSSACORP | D43: ABDURRAHMAN MOHD SHAFI TAIBANI | E43: BUY | F43: 153,223 | G43: 4.83 | H43: BSE
A44: 2023-02-28 | B44: 538923 | C44: SOFCOM | D44: PRITI APURVBHAI SHAH | E44: BUY | F44: 100,305 | G44: 91.35 | H44: BSE
A45: 2023-02-28 | B45: 538923 | C45: SOFCOM | D45: AMI NAMAN SHAH | E45: SELL | F45: 30,504 | G45: 90.7 | H45: BSE
A46: 2023-02-28 | B46: 538923 | C46: SOFCOM | D46: NITESH JAGMOHAN VASHISTHA | E46: SELL | F46: 32,819 | G46: 90.46 | H46: BSE
A47: 2023-02-28 | B47: 538923 | C47: SOFCOM | D47: DHYANVI UMESH PATEL | E47: BUY | F47: 880 | G47: 90.79 | H47: BSE
A48: 2023-02-28 | B48: 538923 | C48: SOFCOM | D48: DHYANVI UMESH PATEL | E48: SELL | F48: 22,500 | G48: 91.75 | H48: BSE
A49: 2023-02-28 | B49: 543545 | C49: VEERKRUPA | D49: MEGHKUMAR MAHENDRAKUMAR SHAH | E49: SELL | F49: 50,000 | G49: 105.54 | H49: BSE
A50: 2023-02-28 | B50: 543545 | C50: VEERKRUPA | D50: NNM SECURITIES PVT LTD | E50: BUY | F50: 54,000 | G50: 107.15 | H50: BSE
A51: 2023-02-28 | B51: 543545 | C51: VEERKRUPA | D51: AKSHAY RAJENDRABHAI OSWAL | E51: SELL | F51: 52,000 | G51: 107.2 | H51: BSE
A52: 2023-02-28 | B52: 543545 | C52: VEERKRUPA | D52: AKSHAY RAJENDRABHAI OSWAL | E52: BUY | F52: 46,000 | G52: 102.48 | H52: BSE
A53: 2023-02-28 | B53: 542803 | C53: VEL | D53: SHANI BHATI | E53: BUY | F53: 49,385 | G53: 17.55 | H53: BSE
A54: 2023-02-28 | B54: 542803 | C54: VEL | D54: VAX ENTERPRISE PRIVATE LIMITED | E54: BUY | F54: 124,414 | G54: 17.55 | H54: BSE
A55: 2023-02-28 | B55: 542803 | C55: VEL | D55: MULTIPLIER SHARE & STOCK ADVISORS PRIVATE LIMITED | E55: SELL | F55: 178,479 | G55: 17.55 | H55: BSE
A56: 2023-02-28 | B56: AGARWALFT | C56: Agarwal Float Glass I Ltd | D56: ARYAN AGARWAL | E56: BUY | F56: 48,000 | G56: 42.24 | H56: NSE
A57: 2023-02-28 | B57: BIOCON | C57: Biocon Limited | D57: INTEGRATED CORE STRATEGIES (ASIA) PTE. LTD. | E57: BUY | F57: 8,061,599 | G57: 229.26 | H57: NSE
A58: 2023-02-28 | B58: GOYALALUM | C58: Goyal Aluminiums Limited | D58: TOUCHLINE SECURITIES PRIVATE LIMITED | E58: BUY | F58: 182,996 | G58: 270.85 | H58: NSE
A59: 2023-02-28 | B59: ISFT | C59: Intrasoft Tech. Ltd | D59: RISHI KAJARIA & SONS (HUF) | E59: BUY | F59: 82,811 | G59: 119.96 | H59: NSE
A60: 2023-02-28 | B60: OLECTRA | C60: Olectra Greentech Limited | D60: GRAVITON RESEARCH CAPITAL LLP | E60: BUY | F60: 713,064 | G60: 514.74 | H60: NSE
A61: 2023-02-28 | B61: PARTYCRUS | C61: Party Cruisers Limited | D61: NNM SECURITIES PVT LTD | E61: BUY | F61: 22,000 | G61: 119.46 | H61: NSE
A62: 2023-02-28 | B62: PARTYCRUS | C62: Party Cruisers Limited | D62: AKSHAYKUMAR RAJENDRABHAI OSWAL | E62: BUY | F62: 60,000 | G62: 118.82 | H62: NSE
A63: 2023-02-28 | B63: SURYODAY | C63: Suryoday Small Fin Bk Ltd | D63: SHAH GEETA CHETAN | E63: BUY | F63: 1,050,000 | G63: 97.38 | H63: NSE
A64: 2023-02-28 | B64: UFLEX | C64: UFLEX Limited | D64: GRAVITON RESEARCH CAPITAL LLP | E64: BUY | F64: 469,342 | G64: 378.09 | H64: NSE
A65: 2023-02-28 | B65: VAISHALI | C65: Vaishali Pharma Limited | D65: M/S. PRARTHANA ENTERPRISES | E65: BUY | F65: 84,500 | G65: 186.98 | H65: NSE
A66: 2023-02-28 | B66: VINNY | C66: Vinny Overseas Limited | D66: ANTARA INDIA EVERGREEN FUND LTD | E66: BUY | F66: 540,000 | G66: 16.6 | H66: NSE
A67: 2023-02-28 | B67: AGARWALFT | C67: Agarwal Float Glass I Ltd | D67: SOMANI VENTURES AND INNOVATIONS LIMITED | E67: SELL | F67: 69,000 | G67: 42.29 | H67: NSE
A68: 2023-02-28 | B68: ANMOL | C68: Anmol India Limited | D68: RADHIKA GUPTA | E68: SELL | F68: 65,926 | G68: 155.6 | H68: NSE
A69: 2023-02-28 | B69: GOYALALUM | C69: Goyal Aluminiums Limited | D69: TOUCHLINE SECURITIES PRIVATE LIMITED | E69: SELL | F69: 184,810 | G69: 270.54 | H69: NSE
A70: 2023-02-28 | B70: OLECTRA | C70: Olectra Greentech Limited | D70: GRAVITON RESEARCH CAPITAL LLP | E70: SELL | F70: 713,064 | G70: 515.01 | H70: NSE
A71: 2023-02-28 | B71: PARTYCRUS | C71: Party Cruisers Limited | D71: NNM SECURITIES PVT LTD | E71: SELL | F71: 74,000 | G71: 118.33 | H71: NSE
A72: 2023-02-28 | B72: PARTYCRUS | C72: Party Cruisers Limited | D72: AKSHAYKUMAR RAJENDRABHAI OSWAL | E72: SELL | F72: 60,000 | G72: 117.3 | H72: NSE
A73: 2023-02-28 | B73: UFLEX | C73: UFLEX Limited | D73: GRAVITON RESEARCH CAPITAL LLP | E73: SELL | F73: 469,342 | G73: 378.09 | H73: NSE
A74: 2023-02-28 | B74: VAISHALI | C74: Vaishali Pharma Limited | D74: M/S. PRARTHANA ENTERPRISES | E74: SELL | F74: 24,500 | G74: 184.09 | H74: NSE
A75: 2023-02-28 | B75: VINNY | C75: Vinny Overseas Limited | D75: EUROPLUS ONE REALITY PVT LTD | E75: SELL | F75: 982,335 | G75: 16.69 | H75: NSE

Sheet Call Tracker (Equity & F&O)
M5: Back To Main Page
A6: Retail Research Technical Calls & Fundamental Performance Report for the month of Feb-2023
M7: =Main!B10 -> 2023-03-01
B8: Positional Call
A9: Sr.no | B9: Date | D9: Company | E9: Rec | F9: Rec Price | G9: Stop Loss*** | H9: Call Closed At | I9: Target | J9: Remark | K9: Profit / Loss per Share | L9: All charges | M9: Net Gain / Loss % | N9: Status | O9: Closed Date | P9: Market Closing Price
A10: 1 | B10: 2022-10-27 | D10: ASHOKLEY | E10: Buy | F10: 147 | G10: 137 | H10: 154.5 | I10: 160-170 | J10: Profit of Rs.7.5/- | K10: =H10-F10 -> 7.5 | L10: =(F10*-0.7)/100 -> -1.03 | M10: =(K10+L10)/F10 -> 4.40% | N10: Successful | O10: 2022-02-02 | R10: N
A11: 2 | B11: 2022-11-25 | D11: SANOFI | E11: Buy | F11: 5670 | G11: 5250 | H11: =(5905+5595)/2 -> 5750 | I11: 6200-6500 | J11: Profit of Rs.80/- | K11: =H11-F11 -> 80 | L11: =(F11*-0.7)/100 -> -39.69 | M11: =(K11+L11)/F11 -> 0.71% | N11: Successful | O11: 2023-02-24 | R11: H
A12: 3 | B12: 2022-12-01 | D12: TCS | E12: Buy<> | F12: 3380 | G12: 3140 | H12: 3565 | I12: 3800-4000 | J12: Part profit of Rs.185/- | K12: =H12-F12 -> 185 | L12: =(F12*-0.7)/100 -> -23.66 | M12: =(K12+L12)/F12 -> 4.77% | N12: Successful | O12: 2023-02-16 | R12: H
A13: 4 | B13: 2023-01-10 | D13: BHARTIARTL | E13: Buy | F13: 780-800 | G13: 735 | I13: 870-900 | J13: Open | R13: H
A14: 5 | B14: 2023-01-16 | D14: NAVINFLUOR | E14: Buy | F14: 4025 | G14: 3770 | H14: 4260 | I14: 4300-4500 | J14: Profit of Rs.235/- | K14: =H14-F14 -> 235 | L14: =(F14*-0.7)/100 -> -28.18 | M14: =(K14+L14)/F14 -> 5.14% | N14: Successful | O14: 2023-02-07 | R14: N
A15: 6 | B15: 2023-01-19 | D15: SRF | E15: Buy | F15: 2140 | G15: 2000 | H15: 2277 | I15: 2300-2400 | J15: Profit of Rs.137/- | K15: 137 | L15: -14.98 | M15: 5.70% | N15: Successful | O15: 2023-02-10 | R15: N
A16: 7 | B16: 2023-01-24 | D16: PIIND | E16: Accu | F16: 3045 | G16: 2890 | H16: 3245 | I16: 3300-3400 | J16: Profit of Rs.200/- | K16: =H16-F16 -> 200 | L16: =(F16*-0.7)/100 -> -21.32 | M16: =(K16+L16)/F16 -> 5.87% | N16: Successful | O16: 2023-02-15 | R16: H
A17: 8 | B17: 2023-01-24 | D17: KIMS | E17: Buy | F17: 1435 | G17: 1340 | H17: 1512.5 | I17: 1580-1650 | J17: Part Profit of Rs.77.5/- | K17: =H17-F17 -> 77.5 | L17: =(F17*-0.7)/100 -> -10.05 | M17: =(K17+L17)/F17 -> 4.70% | N17: Successful | O17: 2023-01-31 | R17: N
A18: 9 | B18: 2023-01-25 | D18: REDINGTON | E18: Accu | F18: 177.5 | G18: 167 | H18: 189.5 | I18: 195-200 | J18: Profit of Rs.12/- | K18: =H18-F18 -> 12 | L18: =(F18*-0.7)/100 -> -1.24 | M18: =(K18+L18)/F18 -> 6.06% | N18: Successful | O18: 2023-02-01 | R18: H
A19: 10 | B19: 2023-01-27 | D19: HDFCAMC | E19: Accu | F19: 1910 | G19: 1790 | H19: 1785 | I19: 2050-2150 | J19: Loss of Rs.125/- | K19: -125 | L19: -13.37 | M19: -7.24% | N19: Unsuccessful | O19: 2023-02-23 | R19: H
A20: 11 | B20: 2023-02-01 | D20: FLUOROCHEM | E20: Accu | F20: 2645 | G20: 2480 | H20: 2840 | I20: 2900-3000 | J20: Profit of Rs.195/- | K20: =H20-F20 -> 195 | L20: =(F20*-0.7)/100 -> -18.52 | M20: =(K20+L20)/F20 -> 6.67% | N20: Successful | O20: 2023-02-07 | R20: H
A21: 12 | B21: 2023-02-01 | D21: AXISBANK | E21: Accu | F21: 825-850 | G21: 790 | I21: 900-950 | J21: Open | R21: H
A22: 13 | B22: 2023-02-02 | D22: SBIN | E22: Accu | F22: 522.5 | G22: 478 | H22: 553 | I22: 570-600 | J22: Profit of Rs.30.5/- | K22: =H22-F22 -> 30.5 | L22: =(F22*-0.7)/100 -> -3.66 | M22: =(K22+L22)/F22 -> 5.14% | N22: Successful | O22: 2023-02-10 | R22: H
A23: 14 | B23: 2023-02-06 | D23: LTIM | E23: Accu | F23: 4500 | G23: 4190 | H23: 4785 | I23: 4800-5000 | J23: Profit of Rs.285/- | K23: =H23-F23 -> 285 | L23: =(F23*-0.7)/100 -> -31.50 | M23: =(K23+L23)/F23 -> 5.63% | N23: Successful | O23: 2023-02-16 | R23: H
A24: 15 | B24: 2023-02-06 | D24: JSWSTEEL | E24: Accu | F24: 695-717.5 | G24: 660 | I24: 770-800 | J24: Open | R24: H
A25: 16 | B25: 2023-02-06 | D25: ACC | E25: Accu | F25: 1890 | G25: 1745 | H25: 2025 | I25: 2100-2200 | J25: Profit of Rs.135/- | K25: =H25-F25 -> 135 | L25: =(F25*-0.7)/100 -> -13.23 | M25: =(K25+L25)/F25 -> 6.44% | N25: Successful | O25: 2023-02-07 | R25: H
A26: 17 | B26: 2023-02-08 | D26: INTELLECT | E26: Accu | F26: 452.2 | G26: 415 | H26: 474 | I26: 490-510 | J26: Profit of Rs.21.8/- | K26: =H26-F26 -> 21.8 | L26: =(F26*-0.7)/100 -> -3.17 | M26: =(K26+L26)/F26 -> 4.12% | N26: Successful | O26: 2023-02-14 | R26: H
A27: 18 | B27: 2023-02-09 | D27: ACC | E27: Accu | F27: 1852.5 | G27: 1745 | H27: 1735 | I27: 2100-2200 | J27: Loss of Rs.117.5/- | K27: =H27-F27 -> -117.5 | L27: =(F27*-0.7)/100 -> -12.97 | M27: =(K27+L27)/F27 -> -7.04% | N27: Unsuccessful | O27: 2023-02-23 | R27: H
A28: 19 | B28: 2023-02-15 | D28: PIIND | E28: Accu | F28: 3085 | G28: 2890 | H28: 3265 | I28: 3300-3400 | J28: Profit of Rs.180/- | K28: =H28-F28 -> 180 | L28: =(F28*-0.7)/100 -> -21.60 | M28: =(K28+L28)/F28 -> 5.13% | N28: Successful | O28: 2023-02-16 | R28: H
A29: 20 | B29: 2023-02-16 | D29: PIDILITIND | E29: Accu | F29: 2250-2310 | G29: 2170 | I29: 2450-2500 | J29: Open | R29: H
A30: 21 | B30: 2023-02-20 | D30: SHARDACROP | E30: Accu | F30: 452.5-472.5 | G30: 425 | I30: 520-550 | J30: Open | R30: H
A31: 22 | B31: 2023-02-21 | D31: CANBK | E31: Accu | F31: 281-288 | G31: 268 | I31: 315-335 | J31: Open | R31: N
A32: 23 | B32: 2023-02-21 | D32: HAPPIESTMNDS | E32: Accu | F32: 865-899 | G32: 830 | I32: 960-1000 | J32: Open | R32: H
A33: 24 | B33: 2023-02-23 | D33: REDINGTON | E33: Accu | F33: 170 | G33: 158 | H33: 182 | I33: 180-185 | J33: Profit of Rs.12/- | K33: =H33-F33 -> 12 | L33: =(F33*-0.7)/100 -> -1.19 | M33: =(K33+L33)/F33 -> 6.36% | N33: Successful | O33: 2023-02-24 | R33: H
A34: 25 | B34: 2023-02-24 | D34: PIIND | E34: Accu | F34: 3110-3010 | G34: 2890 | I34: 3300-3400 | J34: Open | R34: H
A35: 26 | B35: 2023-02-27 | D35: SBIN | E35: Accu | F35: 502.5-522.5 | G35: 478 | I35: 570-600 | J35: Open | R35: H
A39: CLBS = Closing Basis ***
A40: Dividend adjusted <> | F40: Reinitiated $
A41: Part book {} | D41: s | F41: Revised stoploss #
B43: Momentum Call
A44: Sr.no | B44: Date | D44: Company | E44: Rec | F44: Rec Price | G44: Stop Loss | H44: Call Closed At | I44: Target | J44: Remark | K44: Profit / Loss per Share/Lot | L44: All charges | M44: Net Gain / Loss % | N44: Status | O44: Closed Date
A45: 1 | B45: 2023-01-31 | D45: SBIN | E45: Buy | F45: 551 | G45: 530 | H45: 530 | I45: 575-585 | J45: Loss of Rs.21 | K45: =H45-F45 -> -21 | L45: =(F45*-0.7)/100 -> -3.86 | M45: =(K45+L45)/F45 -> -4.51% | N45: Unsuccessful | O45: 2023-02-01 | R45: H
A46: 2 | B46: 2023-02-01 | D46: LT | E46: Buy | F46: 2110 | G46: 2035 | H46: 2175 | I46: 2200-2250 | J46: Profit of Rs.65/- | K46: 65 | L46: =(F46*-0.07)/100 -> -1.48 | M46: 3.01% | N46: Successful | O46: 2023-02-01 | R46: H
A47: 3 | B47: 2023-02-01 | D47: AVANTIFEED | E47: Buy | F47: 406 | G47: 390 | H47: 388 | I47: 425-435 | J47: Loss of Rs.18 | K47: =H47-F47 -> -18 | L47: =(F47*-0.07)/100 -> -0.28 | M47: =(K47+L47)/F47 -> -4.50% | N47: Unsuccessful | O47: 2023-02-01 | R47: H
A48: 4 | B48: 2023-02-01 | D48: SIEMENS | E48: Buy | F48: 2965 | G48: 2850 | H48: 3044 | I48: 3100-3150 | J48: Profit of Rs.79/- | K48: 79 | L48: =(F48*-0.7)/100 -> -20.76 | M48: 1.96% | N48: Successful | O48: 2023-02-03 | R48: H
A49: 5 | B49: 2023-02-02 | D49: RELIANCE | E49: Buy | F49: 2315 | G49: 2245 | H49: 2400 | I49: 2400-2450 | J49: Profit of Rs.85/- | K49: =H49-F49 -> 85 | L49: -16.21 | M49: =(K49+L49)/F49 -> 2.97% | N49: Successful | O49: 2023-02-15 | R49: H
A50: 6 | B50: 2023-02-02 | D50: LT | E50: Buy | F50: 2125 | G50: 2060 | H50: 2192.5 | I50: 2220-2260 | J50: Profit of Rs.67.50/- | K50: =H50-F50 -> 67.5 | L50: -14.88 | M50: =(K50+L50)/F50 -> 2.48% | N50: Successful | O50: 2023-02-13 | R50: H
A51: 7 | B51: 2023-02-07 | D51: PRESTIGE | E51: Buy | F51: 399 | G51: 387 | H51: 413 | I51: 415-425 | J51: Profit of Rs.14/- | K51: =H51-F51 -> 14 | L51: -2.79 | M51: =(K51+L51)/F51 -> 2.81% | N51: Successful | O51: 2023-02-10 | R51: H
A52: 8 | B52: 2023-02-07 | D52: M&M | E52: Buy | F52: 1365 | G52: 1330 | H52: 1395 | I52: 1410-1430 | J52: Profit of Rs.30/- | K52: 30 | L52: -9.56 | M52: 1.50% | N52: Successful | O52: 2023-02-16 | R52: H
A53: 9 | B53: 2023-02-08 | D53: BHARTIARTL | E53: Buy | F53: 772.5 | G53: 748 | H53: 745 | I53: 800-810 | J53: Loss of Rs.27.5 | K53: -27.5 | L53: -5.41 | M53: -4.26% | N53: Unsuccessful | O53: 2023-02-28 | R53: H
A54: 10 | B54: 2023-02-14 | D54: CIPLA | E54: Buy | F54: 1023 | G54: 995 | H54: 965 | I54: 1060-1080 | J54: Loss of Rs.58 | K54: =H54-F54 -> -58 | L54: =(F54*-0.07)/100 -> -0.72 | M54: =(K54+L54)/F54 -> -5.74% | N54: Unsuccessful | O54: 2023-02-20 | R54: H
A55: 11 | B55: 2023-02-15 | D55: INTELLECT | E55: Buy | F55: 455 | G55: 442 | H55: 465.5 | I55: 470-475 | J55: Profit of Rs.10.5/- | K55: =H55-F55 -> 10.5 | L55: =(F55*-0.07)/100 -> -0.32 | M55: =(K55+L55)/F55 -> 2.24% | N55: Successful | O55: 2023-02-15 | R55: H
A56: 12 | B56: 2023-02-15 | D56: FLUOROCHEM | E56: Buy | F56: 2860 | G56: 2770 | H56: 2950 | I56: 3000-3050 | J56: Profit of Rs.90/- | K56: 90 | L56: =(F56*-0.7)/100 -> -20.02 | M56: 2.45% | N56: Successful | O56: 2023-02-16 | R56: H
A57: 13 | B57: 2023-02-16 | D57: BAJAJFINSV | E57: Buy | F57: 1420 | G57: 1379 | H57: 1362.5 | I57: 1470-1490 | J57: Loss of Rs.57.5/- | K57: -57.5 | L57: =(F57*-0.7)/100 -> -9.94 | M57: -4.75% | N57: Unsuccessful | O57: 2023-02-22 | R57: H
A58: 14 | B58: 2023-02-17 | D58: TECHM | E58: Buy | F58: 1113 | G58: 1075 | H58: 1153 | I58: 1160-1180 | J58: Profit of Rs.40/- | K58: =H58-F58 -> 40 | L58: =(F58*-0.7)/100 -> -7.79 | M58: =(K58+L58)/F58 -> 2.89% | N58: Successful | O58: 2023-02-20 | R58: H
A59: 15 | B59: 2023-02-17 | D59: APLLTD | E59: Buy | F59: 506.5 | G59: 492 | H59: 520.5 | I59: 520-530 | J59: Profit of Rs.14/- | K59: =H59-F59 -> 14 | L59: =(F59*-0.7)/100 -> -3.55 | M59: =(K59+L59)/F59 -> 2.06% | N59: Successful | O59: 2023-02-21 | R59: H
A60: 16 | B60: 2023-02-20 | D60: HCLTECH | E60: Buy | F60: 1121 | G60: 1090 | H60: 1085 | I60: 1160-1180 | J60: Loss of Rs.36/- | K60: -36 | L60: =(F60*-0.7)/100 -> -7.85 | M60: -3.91% | N60: Unsuccessful | O60: 2023-02-27 | R60: H
A61: 17 | B61: 2023-02-28 | D61: RELIANCE | E61: Buy | F61: 2354-2360 | G61: 2270 | I61: 2450-2500 | J61: Open | R61: H
A65: CLBS = Closing Basis *** | H65: *
A66: Dividend adjusted <> | F66: Reinitiated $
F67: Revised stoploss #
A69: Master Trade High Risk
A70: Sr.no | B70: Date | D70: Company | E70: Rec | F70: Rec Price | G70: Stop Loss | H70: Call Closed At | I70: Target | J70: Remark | K70: Profit / Loss per share | L70: All charges | M70: Gain / Loss per Lot | N70: Lot | O70: Status | P70: Closed Date
A71: 1 | B71: 2023-02-09 | D71: RELIANCE FEB FUT | E71: Buy | F71: 2346 | G71: 2297 | H71: 2395 | I71: 2420-2450 | J71: Profit of Rs.49/- | K71: =H71-F71 -> 49 | L71: =(H71*N71)*0.07% -> 419.13 | M71: =(K71*N71)-L71 -> 11830.9 | N71: 250 | O71: Successful | P71: 2023-02-15 | R71: H
A72: 2 | B72: 2023-02-20 | D72: M&M MAR FUT | E72: Buy | F72: 1349 | G72: 1331 | H72: 1363 | I72: 1380-1390 | J72: Profit of Rs.14/- | K72: =H72-F72 -> 14 | L72: =(H72*N72)*0.07% -> 667.87 | M72: =(K72*N72)-L72 -> 9132.1 | N72: 700 | O72: Successful | P72: 2023-02-20 | R72: H
A73: 3 | B73: 2023-02-20 | D73: BANDHANBNK MAR FUT | E73: Sell | F73: 239.25 | G73: 242 | H73: 233.5 | I73: 230-228 | J73: Profit of Rs.4/- | K73: =F73-H73 -> 5.75 | L73: 294.21 | M73: =((4*N73)-394.21) -> 6805.79 | N73: 1800 | O73: Successful | P73: 2023-02-21 | R73: H
D74: BANDHANBNK 230 PE MAR | E74: Sell | F74: 6.25 | H74: 8 | K74: =F74-H74 -> -1.75 | L74: 100.00 | R74: H
A75: 4 | B75: 2023-02-20 | D75: SIEMENS MAR FUT | E75: Buy | F75: 3227.5 | G75: 3185 | H75: 3263.5 | I75: 3260-3300 | J75: Profit of Rs.36/- | K75: =H75-F75 -> 36 | L75: =(H75*N75)*0.07% -> 628.22 | M75: =(K75*N75)-L75 -> 9271.8 | N75: 275 | O75: Successful | P75: 2023-02-21 | R75: N
A76: 5 | B76: 2023-02-21 | D76: IGL MAR FUT | E76: Buy | F76: 442-443 | G76: 432 | I76: 455-463 | J76: Open | R76: N
A77: 6 | B77: 2023-02-21 | D77: IRCTC MAR FUT | E77: Sell | F77: 645 | G77: 662 | H77: 634.5 | I77: 630-620 | J77: Profit of Rs.10.5/- | K77: =F77-H77 -> 10.5 | L77: =(H77*N77)*0.07% -> 399.74 | M77: =(K77*N77)-L77 -> 9050.3 | N77: 900 | O77: Successful | P77: 2023-02-22 | R77: H
A78: 7 | B78: 2023-02-22 | D78: ONGC MAR FUT | E78: Buy | F78: 154 | G78: 150.5 | H78: 156.25 | I78: 160 | J78: Profit of Rs.2.25/- | K78: =H78-F78 -> 2.25 | L78: 421.09 | M78: 8241.4 | N78: 3850 | O78: Successful | P78: 2023-02-23 | R78: N
A79: 8 | B79: 2023-02-22 | D79: BATAINDIA MAR FUT | E79: Buy | F79: 1420-1425 | G79: 1380 | I79: 1470-1480 | J79: Open | R79: H
A80: 9 | B80: 2023-02-22 | D80: RELIANCE MAR FUT | E80: Buy | F80: 2425 | G80: 2375 | H80: 2372.5 | I80: 2480-2500 | J80: Loss of Rs.52.5/- | K80: =H80-F80 -> -52.5 | L80: =(H80*N80)*0.07% -> 415.19 | M80: =(K80*N80)-L80 -> -13540.2 | N80: 250 | O80: Unsuccessful | P80: 2023-02-27 | R80: H
A81: 10 | B81: 2023-02-22 | D81: M&M MAR FUT | E81: Buy | F81: 1339 | G81: 1320 | H81: 1320 | I81: 1370-1380 | J81: Loss of Rs.19/- | K81: =H81-F81 -> -19 | L81: =(H81*N81)*0.07% -> 646.80 | M81: =(K81*N81)-L81 -> -13946.8 | N81: 700 | O81: Unsuccessful | P81: 2023-02-23 | R81: N
A82: 11 | B82: 2023-02-22 | D82: MOTHERSON MAR FUT | E82: Sell | F82: 82.7 | G82: 84.7 | H82: 81.5 | I82: 79-78 | J82: Profit of Rs.1.2/- | K82: =F82-H82 -> 1.2 | L82: 385.09 | M82: 7714.9 | N82: 6750 | O82: Successful | P82: 2023-02-23 | R82: H
A83: 12 | B83: 2023-02-28 | D83: SIEMENS MAR FUT | E83: Buy | F83: 3215 | G83: 3170 | H83: 3245 | I83: 3260-3290 | J83: Profit of Rs.30/- | K83: =H83-F83 -> 30 | L83: 624.66 | M83: 7625.3 | N83: 275 | O83: Successful | P83: 2023-02-28 | R83: N
A88: Master Trade Medium Risk
A89: Sr.no | B89: Date | D89: Company | E89: Rec | F89: Rec Price | G89: Stop Loss | H89: Call Closed At | I89: Target | J89: Remark | K89: Profit/ Loss per lot | L89: All charges | M89: Gain / Loss per Lot | N89: Lot | O89: Status | P89: Closed Date
A90: 1 | B90: 2023-01-25 | D90: BEL 107 CE FEB | E90: Buy | F90: 0.95 | G90: 0.2 | H90: 0.95 | I90: 2-2.50 | J90: Neutral/- | K90: =H90-F90 -> 0 | L90: 100.00 | M90: =(K90*N90)-L90 -> -100.0 | N90: 5700 | O90: Neutral | P90: 2023-02-01 | R90: H
A91: 2 | B91: 2023-01-27 | D91: NIFTY 17800 CE 2 FEB | E91: Buy | F91: 107.5 | H91: 202.5 | J91: Profit of Rs.21 /- | K91: =H91-F91 -> 95 | L91: 100.00 | M91: 850.0 | N91: 50 | O91: Successful | P91: 2023-02-01 | R91: N
D92: NIFTY 17300 PE 2 FEB | E92: Buy | F92: 77.5 | H92: 3.5 | K92: =H92-F92 -> -74 | L92: 100.00 | N92: 50
A93: 3 | B93: 2023-02-01 | D93: NIFTY 17800 PE 2 FEB | E93: Buy | F93: 96 | G93: 18 | H93: 147.5 | I93: 200-250 | J93: Profit of Rs.51.5 /- | K93: =H93-F93 -> 51.5 | L93: 100.00 | M93: 2475.0 | N93: 50 | O93: Successful | P93: 2023-02-01 | R93: H
A94: 4 | B94: 2023-02-03 | D94: RELIANCE 2360 CE FEB | E94: Buy | F94: 41 | G94: 24 | H94: 46 | I94: 70-80 | J94: Profit of Rs.5 /- | K94: =H94-F94 -> 5 | L94: 100.00 | M94: =(K94*N94)-100 -> 1150.0 | N94: 250 | O94: Successful | P94: 2023-02-08 | R94: H
A95: 5 | B95: 2023-02-09 | D95: HDFCLIFE 510 PE FEB | E95: Buy | F95: 6.4 | G95: 3 | H95: 7.7 | I95: 10-12.0 | J95: Profit of Rs.1.3/- | K95: =H95-F95 -> 1.3 | L95: 100.00 | M95: =(K95*N95)-100 -> 1200.0 | N95: 1000 | O95: Successful | P95: 2023-02-14 | R95: H
A96: 6 | B96: 2023-02-13 | D96: NIFTY 17800 CE 16 FEB | E96: Buy | F96: 75 | G96: 35 | H96: 95 | I96: 120-140 | J96: Profit of Rs.20/- | K96: =H96-F96 -> 20 | L96: 100.00 | M96: =(K96*N96)-100 -> 900.0 | N96: 50 | O96: Successful | P96: 2023-02-14 | R96: H
A97: 7 | B97: 2023-02-13 | D97: RELIANCE 2340 CE FEB | E97: Buy | F97: 29.5 | G97: 9 | H97: 38 | I97: 55-65 | J97: Profit of Rs.8.5/- | K97: 8.5 | L97: 100.00 | M97: 2025.0 | N97: 250 | O97: Successful | P97: 2023-02-14 | R97: H
A98: 8 | B98: 2023-02-14 | D98: HDFCBANK 1680 CE FEB | E98: Buy | F98: 19 | G98: 9 | H98: 16 | I98: 30-40 | J98: Loss of Rs.3/- | K98: =H98-F98 -> -3 | L98: 100.00 | M98: =(K98*N98)-100 -> -1750.0 | N98: 550 | O98: Unsuccessful | P98: 2023-02-16 | R98: H
A99: 9 | B99: 2023-02-15 | D99: NIFTY 17950 PE 16 FEB | E99: Buy | F99: 55 | G99: 17 | H99: 7 | I99: 90-120 | J99: Loss of Rs.48/- | K99: =H99-F99 -> -48 | L99: 100.00 | M99: =(K99*N99)-100 -> -2500.0 | N99: 50 | O99: Unsuccessful | P99: 2023-02-16 | R99: H
A100: 10 | B100: 2023-02-20 | D100: NIFTY 17900 CE FEB | E100: Buy | F100: 72 | H100: 0 | J100: Loss of Rs.43/- | K100: -72 | L100: 100.00 | M100: =(-43*50)-200 -> -2350.0 | N100: 50 | O100: Unsuccessful | P100: 2023-02-23 | R100: N
D101: NIFTY 18050 CE FEB | E101: Sell | F101: 29 | H101: 0 | K101: =F101-H101 -> 29 | L101: 100.00 | N101: 50 | R101: N
A102: 11 | B102: 2023-02-21 | D102: LT 2260 CE MAR | E102: Buy | F102: 48 | G102: 32 | H102: 32 | I102: 75-90 | J102: Loss of Rs.16/- | K102: =H102-F102 -> -16 | L102: 100.00 | M102: =(K102*N102)-100 -> -4900.0 | N102: 300 | O102: Unsuccessful | P102: 2023-02-23 | R102: N
A103: 12 | B103: 2023-02-22 | D103: NIFTY 17700 CE FEB | E103: Buy | F103: 72 | G103: 32 | H103: 32 | I103: 120-140 | J103: Loss of Rs.40/- | K103: =H103-F103 -> -40 | L103: 100.00 | M103: =(K103*N103)-100 -> -2100.0 | N103: 50 | O103: Unsuccessful | P103: 2023-02-22 | R103: N
A104: 13 | B104: 2023-02-22 | D104: RELIANCE 2440 CE MAR | E104: Buy | F104: 48 | G104: 28 | H104: 28 | I104: 70-90 | J104: Loss of Rs.20/- | K104: =H104-F104 -> -20 | L104: 100.00 | M104: =(K104*N104)-100 -> -5100.0 | N104: 250 | O104: Unsuccessful | P104: 2023-02-22 | R104: H
A105: 14 | B105: 2023-02-23 | D105: NIFTY 17550 CE FEB | E105: Buy | F105: 22 | H105: 42 | I105: 50-60 | J105: Profit of Rs.20/- | K105: =H105-F105 -> 20 | L105: 100.00 | M105: =(K105*N105)-100 -> 900.0 | N105: 50 | O105: Successful | P105: 2023-02-23
A106: 15 | B106: 2023-02-24 | D106: NIFTY 17550 CE 2-MAR | E106: Buy | F106: 90 | G106: 55 | H106: 55 | I106: 150-170 | J106: Loss of Rs.35/- | K106: -35 | L106: 100.00 | M106: -1850.0 | N106: 50 | O106: Unsuccessful | P106: 2023-02-27
A107: 16 | B107: 2023-02-27 | D107: BANKNIFTY 40000 CE 2-MAR | E107: Buy | F107: 255 | G107: 150 | H107: 305 | I107: 400-450 | J107: Profit of Rs.50/- | K107: =H107-F107 -> 50 | L107: 100.00 | M107: =(K107*N107)-100 -> 1150.0 | N107: 25 | O107: Successful | P107: 2023-02-27 | R107: N
A108: 17 | B108: 2023-02-28 | D108: BANKNIFTY 40200 CE 2-MAR | E108: Buy | F108: 310 | G108: 210 | H108: 210 | I108: 450-500 | J108: Loss of Rs.100/- | K108: -100 | L108: 100.00 | M108: -2600.0 | N108: 25 | O108: Unsuccessful | P108: 2023-02-28 | R108: H
A109: 18 | B109: 2023-02-28 | D109: BANKNIFTY 40100 CE 2-MAR | E109: Buy | F109: 280 | G109: 190 | H109: 370 | I109: 400-500 | J109: Profit of Rs.90/- | K109: =H109-F109 -> 90 | L109: 100.00 | M109: =(K109*N109)-100 -> 2150.0 | N109: 25 | O109: Successful | P109: 2023-02-28 | R109: H
A110: 19 | B110: 2023-02-28 | D110: LT 2160 CE MAR | E110: Buy | F110: 37-39 | G110: 21 | I110: 60-70 | J110: Open | R110: N
A111: 20 | B111: 2023-02-28 | D111: RELIANCE 2400 CE MAR | E111: Buy | F111: 38-40 | J111: Open | R111: H
D112: RELIANCE 2460 CE MAR | E112: Sell | F112: 19-21
A113: 21 | B113: 2023-02-28 | D113: ACC 1900 CE MAR | E113: Buy | F113: 20.5 | H113: 28 | I113: 50-60 | J113: Profit of Rs.7.5/- | K113: =H113-F113 -> 7.5 | L113: 100.00 | M113: =(K113*N113)-100 -> 1775.0 | N113: 250 | O113: Successful | P113: 2023-02-28 | R113: H
A114: 22 | B114: 2023-02-28 | D114: ACC 1900 CE MAR | E114: Buy | F114: 21-23 | I114: 50-60 | J114: Open | R114: H
A117: Techno -Funda (positional)
A118: Sr.no | B118: Date | D118: Company | E118: Rec | F118: Rec Price | G118: Stop Loss*** | H118: Call Closed At | I118: Target | J118: Remark | K118: Profit / Loss per Share/Lot | L118: All charges | M118: Net Gain / Loss % | N118: Status | O118: Closed Date | P118: Market Closing Price
A119: 1 | B119: 2022-10-06 | D119: AMBIKCO | E119: Buy | F119: 1420-1620 | G119: 1220 | I119: 2000-2300 | J119: Open | R119: H
A121: CLBS = Closing Basis *** | F121: Reinitiated $
A122: Dividend adjusted <> | F122: Revised stoploss # | H122: .................
B126: Investment Idea
A127: Sr.no | B127: Date | D127: Company | E127: Rec | F127: Rec Price | G127: Point of Review | H127: Close Rate | I127: Target | J127: Remark | K127: Profit / Loss per Share | L127: Gain / Loss % | M127: Status | N127: Closed Date
A128: 1 | B128: 2013-11-01 | D128: L&T Finance Holding | E128: Accu | F128: 82.00 | G128: - | H128: 100 | I128: 100.00 | J128: Target Achieved | K128: =H128-F128 -> 18.00 | L128: =K128/F128 -> 21.95% | M128: Successful | N128: 2016-10-14
A129: 2 | B129: 2014-06-04 | D129: Finolex Inds | E129: Buy | F129: 257.00 | G129: - | H129: 300 | I129: 300.00 | J129: Target Achieved | K129: 43.00 | L129: 16.73% | M129: Successful | N129: 2014-07-02
A130: 3 | B130: 2014-07-08 | D130: JK Cement | E130: Buy | F130: 393.00 | G130: - | H130: 468 | I130: 468.00 | J130: Target Achieved | K130: 75.00 | L130: 19.08% | M130: Successful | N130: 2014-08-12
A131: 4 | B131: 2014-08-06 | D131: Finolex Cables | E131: Buy | F131: 205.00 | G131: - | H131: 275 | I131: 250.00 | J131: Target Achieved | K131: 70.00 | L131: 34.15% | M131: Successful | N131: 2014-11-19
A132: 5 | B132: 2014-09-04 | D132: Exide Inds | E132: Buy | F132: 162.00 | G132: - | H132: 190 | I132: 190.00 | J132: Target Achieved | K132: 28.00 | L132: 17.28% | M132: Successful | N132: 2015-01-02
A133: 6 | B133: 2014-09-04 | D133: Deepak Nitrite | E133: Buy | F133: 75.00 | G133: - | H133: 91.5 | I133: 95-100 | J133: Profit of Rs.16.50/- | K133: 16.50 | L133: 22.00% | M133: Successful | N133: 2014-11-11
A134: 7 | B134: 2014-10-01 | D134: Mercks | E134: Buy | F134: 850.00 | G134: - | H134: 982.5 | I134: 1050.00 | J134: Profit of Rs.132.50/- | K134: 132.50 | L134: 15.59% | M134: Successful | N134: 2015-02-04
A135: 8 | B135: 2014-10-01 | D135: Grindwell Norton | E135: Buy | F135: 475.00 | G135: - | H135: 515 | I135: 600.00 | J135: Profit of Rs.40/- | K135: 40.00 | L135: 8.42% | M135: Successful | N135: 2014-10-27
A136: 9 | B136: 2014-10-01 | D136: Snowman Logistics | E136: Buy | F136: 86.00 | G136: - | H136: 99 | I136: 140.00 | J136: Profit of Rs.13.00/- | K136: 13.00 | L136: 15.12% | M136: Successful | N136: 2014-10-27
A137: 10 | B137: 2014-10-14 | D137: Birla Corp | E137: Buy | F137: 496.60 | G137: - | H137: 621 | I137: 580.00 | J137: Target Achieved | K137: 124.40 | L137: 25.05% | M137: Successful | N137: 2016-08-23
A138: 11 | B138: 2014-10-14 | D138: Ultratech Cem | E138: Buy | F138: 2481.90 | G138: - | H138: 2840 | I138: 2870.00 | J138: Profit of Rs.358.10/- | K138: 358.10 | L138: 14.43% | M138: Successful | N138: 2015-01-13
A139: 12 | B139: 2014-10-16 | D139: Sintex Inds | E139: Buy | F139: 84.50 | G139: - | H139: 93 | I139: 110.00 | J139: Profit of Rs.8.50/- | K139: 8.50 | L139: 10.06% | M139: Successful | N139: 2014-10-27
A140: 13 | B140: 2014-10-16 | D140: HSIL | E140: Buy | F140: 401.00 | G140: - | H140: 428 | I140: 450.00 | J140: Profit of Rs.27.00/- | K140: 27.00 | L140: 6.73% | M140: Successful | N140: 2015-01-16
A141: 14 | B141: 2014-10-16 | D141: Eveready Inds | E141: Buy | F141: 101.00 | G141: - | H141: 112 | I141: 120.00 | J141: Profit of Rs.11.00/- | K141: 11.00 | L141: 10.89% | M141: Successful | N141: 2014-10-27
A142: 15 | B142: 2014-11-11 | D142: Pennar Inds | E142: Buy | F142: 59.00 | G142: - | H142: 76 | I142: 76.00 | J142: Target Achieved | K142: 17.00 | L142: 28.81% | M142: Successful | N142: 2017-10-24
A143: 16 | B143: 2014-11-11 | D143: Snowman Logistics | E143: Buy | F143: 99.00 | G143: - | H143: 120 | I143: 120.00 | J143: Profit of Rs.21/- | K143: 21.00 | L143: 21.21% | M143: Successful | N143: 2014-11-17
A144: 17 | B144: 2014-11-13 | D144: Dharamsi Morarji Chem | E144: Buy | F144: 22.00 | G144: - | H144: 33.55 | I144: 32.00 | J144: Profit of Rs 11.55/- | K144: 11.55 | L144: 52.50% | M144: Successful | N144: 2015-07-03
A145: 18 | B145: 2014-12-03 | D145: Tatachem | E145: Buy | F145: 440.00 | G145: - | H145: 520 | I145: 520.00 | J145: Profit of Rs 80.00/- | K145: 80.00 | L145: 18.18% | M145: Successful | N145: 2015-07-23
A146: 19 | B146: 2014-12-03 | D146: Advanta | E146: Buy | F146: 360.00 | G146: - | H146: 427 | I146: 425.00 | J146: Profit of Rs.67.00/- | K146: 67.00 | L146: 18.61% | M146: Successful | N146: 2015-02-23
A147: 20 | B147: 2015-01-08 | D147: GDL | E147: Buy | F147: 360.00 | G147: - | H147: 455 | I147: 420.00 | J147: Profit of Rs.95.00/- | K147: 95.00 | L147: 26.39% | M147: Successful | N147: 2015-01-20
A148: 21 | B148: 2015-01-08 | D148: NRB Bearing | E148: Buy | F148: 130.00 | H148: 175.5 | I148: 165.00 | J148: Profit of Rs 45.50/- | K148: 45.50 | L148: 35.00% | M148: Successful | N148: 2017-12-19
A149: 22 | B149: 2015-02-05 | D149: GSFC | E149: Accu | F149: 98.00 | H149: 120 | I149: 120.00 | J149: Target Achieved | K149: 22.00 | L149: 22.45% | M149: Successful | N149: 2017-01-18
A150: 23 | B150: 2015-02-05 | D150: Sundrmfast | E150: Accu | F150: 196.00 | H150: 262 | I150: 255.00 | J150: Target Achieved | K150: 66.00 | L150: 33.67% | M150: Successful | N150: 2016-08-17
A151: 24 | B151: 2015-03-04 | D151: GPPL | E151: Accu | F151: 235 | H151: 77.00 | I151: 280-285 | J151: Loss of Rs.158/- | K151: -158.00 | L151: -67.23% | M151: Unsuccessful | N151: 2019-02-26
A152: 25 | B152: 2015-03-04 | D152: ORIENTCEM | E152: Accu | F152: 185.00 | H152: 224 | I152: 220-225 | J152: Target Achieved | K152: 39.00 | L152: 21.08% | M152: Successful | N152: 2016-10-04
A153: 26 | B153: 2015-03-27 | D153: PFS | E153: Accu | F153: 49.5 | H153: 15.85 | I153: 67.00 | J153: Loss of Rs.33.65/- | K153: -33.65 | L153: -68% | M153: Unsuccessful | N153: 2019-06-11
A154: 27 | B154: 2015-03-30 | D154: Walchandnagar Ind Ltd | E154: Accu | F154: 183.50 | H154: 219 | I154: 218.00 | J154: Profit of Rs.35.50/- | K154: 35.50 | L154: 19.35% | M154: Successful | N154: 2015-04-09
A155: 28 | B155: 2015-04-20 | D155: Kalpataru Power Transmission Ltd | E155: Accu | F155: =(227+237)/2 -> 232.00 | H155: 298 | I155: 298.00 | J155: Target Achieved | K155: 66.00 | L155: 28.45% | M155: Successful | N155: 2017-03-29
A156: 29 | B156: 2015-05-04 | D156: Mastek Ltd | E156: Buy | F156: 385.00 | H156: =212.5+331 -> 543.5 | I156: 510.00 | J156: Profit of Rs 158.50/- | K156: 158.50 | L156: 41.17% | M156: Successful | N156: 2015-08-19
A157: 30 | B157: 2015-05-04 | D157: Suprajit Eng | E157: Buy | F157: 115.50 | H157: 146 | I157: 142.00 | J157: Profit of Rs 30.50/- | K157: 30.50 | L157: 26.41% | M157: Successful | N157: 2015-07-17
A158: 31 | B158: 2015-05-27 | D158: TCI | E158: Buy | F158: 237.50 | H158: 279.5 | I158: 278.00 | J158: Target Achieved | K158: 42.00 | L158: 17.68% | M158: Successful | N158: 2015-08-06
A159: 32 | B159: 2015-06-19 | D159: HSIL | E159: Accu | F159: 340.00 | H159: 448 | I159: 448.00 | J159: Target Achieved | K159: 108.00 | L159: 31.76% | M159: Successful | N159: 2017-10-10
A160: 33 | B160: 2015-07-06 | D160: Capital First | E160: Accu | F160: 390.00 | H160: 460 | I160: 460.00 | J160: Target Achieved | K160: 70.00 | L160: 17.95% | M160: Successful | N160: 2016-04-18
A161: 34 | B161: 2015-07-10 | D161: Dolphin OffShore | E161: Accu | F161: 122.5 | H161: 61.00 | I161: 172.00 | J161: Loss of Rs.61.50/- | K161: -61.50 | L161: -50.20% | M161: Unsuccessful | N161: 2018-08-21
A162: 35 | B162: 2015-08-03 | D162: Allcargo logistics | E162: Accu | F162: 297.50 | H162: 350 | I162: 360.00 | J162: Profit of Rs 52.50/- | K162: 52.50 | L162: 17.65% | M162: Successful | N162: 2015-08-16
A163: 36 | B163: 2015-08-03 | D163: Camline Fine | E163: Accu | F163: 115.50 | H163: 149 | I163: 140.00 | J163: Profit of Rs 33.50/- | K163: 33.50 | L163: 29.00% | M163: Successful | N163: 2017-01-05
A164: 37 | B164: 2015-09-04 | D164: TCI | E164: Accu | F164: 226.00 | H164: 292 | I164: 292.00 | J164: Target Achieved | K164: 66.00 | L164: 29.20% | M164: Successful | N164: 2015-10-09
A165: 38 | B165: 2015-09-07 | D165: Kalpataru Power Transmission Ltd | E165: Accu | F165: 232.50 | H165: 312.5 | I165: 310.00 | J165: Target Achieved | K165: 80.00 | L165: 34.41% | M165: Successful | N165: 2017-03-29
A166: 39 | B166: 2015-09-21 | D166: LLOYD ELECTRIC & ENG LTD | E166: Accu | F166: 196.50 | H166: 238 | I166: 238.00 | J166: Target Achieved | K166: 41.50 | L166: 21.12% | M166: Successful | N166: 2015-10-14
A167: 40 | B167: 2015-09-24 | D167: L&T Finance Holding | E167: Accu | F167: 65.00 | H167: 82 | I167: 82.00 | J167: Target Achieved | K167: 17.00 | L167: 26.15% | M167: Successful | N167: 2016-07-27
A168: 41 | B168: 2015-10-14 | D168: KEC International ltd | E168: Accu | F168: 144.00 | H168: 182.5 | I168: 181.00 | J168: Target Achieved | K168: 38.50 | L168: 26.74% | M168: Successful | N168: 2017-03-23
A169: 42 | B169: 2015-10-14 | D169: Gruh Finance | E169: Accu | F169: 264.00 | H169: 311 | I169: 311.00 | J169: Target Achieved | K169: 47.00 | L169: 17.80% | M169: Successful | N169: 2016-08-22
A170: 43 | B170: 2015-11-10 | D170: Pidilitind | E170: Buy | F170: 549.50 | H170: 630 | I170: 630.00 | J170: Target Achieved | K170: 80.50 | L170: 14.65% | M170: Successful | N170: 2016-02-19
A171: 44 | B171: 2015-12-04 | D171: Zensar Technology | E171: Accu | F171: 1027.50 | H171: 1315 | I171: 1250.00 | J171: Target Achieved | K171: 287.50 | L171: 27.98% | M171: Successful | N171: 2018-05-24
A172: 45 | B172: 2015-12-29 | D172: Vinati Organics Ltd | E172: Accu | F172: 465.00 | H172: 540 | I172: 540.00 | J172: Target Achieved | K172: 75.00 | L172: 16.13% | M172: Successful | N172: 2016-06-09
A173: 46 | B173: 2016-01-11 | D173: GSFC | E173: Buy | F173: 81.00 | H173: 110 | I173: 110.00 | J173: Target Achieved | K173: 29.00 | L173: 35.80% | M173: Successful | N173: 2017-01-10
A174: 47 | B174: 2016-01-13 | D174: SSWL | E174: Buy | F174: 417.50 | H174: 547 | I174: 535.00 | J174: Target Achieved | K174: 129.50 | L174: 31.02% | M174: Successful | N174: 2016-07-27
A175: 48 | B175: 2016-02-08 | D175: Persistent System Ltd | E175: Accu | F175: 650.00 | H175: 800 | I175: 800.00 | J175: Target Achieved | K175: 150.00 | L175: 23.08% | M175: Successful | N175: 2018-02-23
A176: 49 | B176: 2016-03-04 | D176: UPL | E176: Accu | F176: 437.50 | H176: 504.5 | I176: 522.00 | J176: Profit of Rs.67/- | K176: 67.00 | L176: 15.31% | M176: Successful | N176: 2016-04-20
A177: 50 | B177: 2016-03-09 | D177: Ashoka Buildcon Ltd | E177: Accu | F177: 189.50 | H177: 218 | I177: 218.00 | J177: Target Achieved | K177: 28.50 | L177: 15.04% | M177: Successful | N177: 2017-10-26
A178: 51 | B178: 2016-04-11 | D178: PTC INDIA FIN SERV LTD | E178: Accu | F178: 36.5 | H178: 15.85 | I178: 60.00 | J178: Loss of Rs.20.65/- | K178: -20.65 | L178: -56.58% | M178: Unsuccessful | N178: 2019-06-11
A179: 52 | B179: 2016-04-12 | D179: CAMLINFINE $ | E179: Accu | F179: 93.00 | H179: 149 | I179: 140.00 | J179: Profit of Rs 56/- | K179: 56.00 | L179: 60.22% | M179: Successful | N179: 2017-01-05
A180: 53 | B180: 2016-04-12 | D180: Greaves Cotton Ltd. | E180: Accu | F180: 130.00 | H180: 150 | I180: 150-155 | J180: Target Achieved | K180: 20.00 | L180: 15.38% | M180: Successful | N180: 2016-07-13
A181: 54 | B181: 2016-04-13 | D181: DHFL | E181: Accu | F181: 196.00 | H181: 299 | I181: 299.00 | J181: Target Achieved | K181: 103.00 | L181: 52.55% | M181: Successful | N181: 2016-09-07
A182: 55 | B182: 2016-04-13 | D182: Magma | E182: Accu | F182: 88.00 | H182: 103 | I182: 103.00 | J182: Target Achieved | K182: 15.00 | L182: 17.05% | M182: Successful | N182: 2016-06-09
A183: 56 | B183: 2016-05-02 | D183: KEC International ltd $ | E183: Accu | F183: 127.50 | H183: 148 | I183: 148-150 | J183: Target Achieved | K183: =H183-F183 -> 20.50 | L183: =K183/F183 -> 16.08% | M183: Successful | N183: 2016-07-13
A184: 57 | B184: 2016-05-03 | D184: Mindtree | E184: Accu | F184: 675.00 | H184: 815 | I184: 790-800 | J184: Target Achieved | K184: =H184-F184 -> 140.00 | L184: =K184/F184 -> 20.74% | M184: Successful | N184: 2018-02-23
A185: 58 | B185: 2016-06-01 | D185: Atulauto | E185: Accu | F185: 500 | H185: 232.50 | I185: 565-570 | J185: Loss of Rs.267.50 /- | K185: =H185-F185 -> -267.50 | L185: =K185/F185 -> -53.50% | M185: Unsuccessful | N185: 2019-09-27
A186: 59 | B186: 2016-06-06 | D186: TRITURBINE | E186: Accu | F186: 110.00 | H186: 126.5 | I186: 125.00 | J186: Profit of Rs.16.50/- | K186: =H186-F186 -> 16.50 | L186: =K186/F186 -> 15.00% | M186: Successful | N186: 2016-07-01
A187: 60 | B187: 2016-06-17 | D187: Pennar Industries Ltd | E187: Accu | F187: 44.00 | H187: 69.5 | I187: 69.50 | J187: Profit of Rs.25.50/- | K187: =H187-F187 -> 25.50 | L187: =K187/F187 -> 57.95% | M187: Successful | N187: 2017-08-30
A188: 61 | B188: 2016-06-28 | D188: EVEREADY | E188: Accu | F188: 262.50 | H188: 340 | I188: 333.00 | J188: Profit of Rs.77.50/- | K188: 77.50 | L188: 29.52% | M188: Successful | N188: 2017-10-09
A189: 62 | B189: 2016-06-28 | D189: FIEMIND | E189: Accu | F189: 840.00 | H189: 1230 | I189: 1230.00 | J189: Target Achieved | K189: 390.00 | L189: 46.43% | M189: Successful | N189: 2016-10-06
A190: 63 | B190: 2016-07-05 | D190: Bajaj Corp Ltd | E190: Accu | F190: 395 | H190: =(468.5+342.5)/2 -> 405.50 | I190: 510.00 | J190: Profit of Rs.10.50/- | K190: =H190-F190 -> 10.50 | L190: =K190/F190 -> 3% | M190: Neutral | N190: 2019-05-21
A191: 64 | B191: 2016-08-02 | D191: GPPL $ | E191: Buy | F191: =169.5-12.8 -> 156.7 | H191: 77.00 | I191: 198-200 | J191: Loss of Rs.79.7/- | K191: -79.70 | L191: -50.86% | M191: Unsuccessful | N191: 2019-02-26
A192: 65 | B192: 2016-08-04 | D192: WONDERLA HOLIDAYS LTD | E192: Accu | F192: 400 | H192: 305.00 | I192: 475.00 | J192: Loss of Rs.95/- | K192: -95.00 | L192: -23.75% | M192: Unsuccessful | N192: 2019-05-21
A193: 66 | B193: 2016-08-11 | D193: CAMLINFINE | E193: Accu | F193: 86.50 | H193: 130 | I193: 130.00 | J193: Profit of Rs.43.50/- | K193: 43.50 | L193: 50.29% | M193: Successful | N193: 2017-12-22
A194: 67 | B194: 2016-08-18 | D194: GRANULES | E194: Accu | F194: 133.5 | H194: 126.50 | I194: 178.00 | J194: Exit | K194: -7.00 | L194: -5.24% | M194: Unsuccessful | N194: 2016-09-02
A195: 68 | B195: 2016-08-31 | D195: VA TECH WABAG | E195: Accu | F195: 560.00 | H195: 725 | I195: 725.00 | J195: Target Achieved | K195: 165.00 | L195: 29.46% | M195: Successful | N195: 2016-03-27
A196: 69 | B196: 2016-09-01 | D196: SKIPPER LIMITED | E196: Accu | F196: 160.50 | H196: 210 | I196: 210.00 | J196: Target Achieved | K196: 49.50 | L196: 30.84% | M196: Successful | N196: 2017-05-16
A197: 70 | B197: 2016-10-03 | D197: IFBIND | E197: Accu | F197: 430.00 | H197: 596 | I197: 575.00 | J197: Profit of Rs.166/- | K197: 166.00 | L197: 38.60% | M197: Successful | N197: 2017-02-03
A198: 71 | B198: 2016-10-14 | D198: ASIANTILES | E198: Accu | F198: 280.00 | H198: 345 | I198: 345.00 | J198: Target Achieved | K198: =H198-F198 -> 65.00 | L198: =K198/F198 -> 23.21% | M198: Successful | N198: 2017-03-20
A199: 72 | B199: 2016-10-14 | D199: DEEPIND | E199: Accu | F199: 245.00 | H199: 325.5 | I199: 330.00 | J199: Profit of Rs.80.5/- | K199: 80.50 | L199: =K199/F199 -> 32.86% | M199: Successful | N199: 2017-02-03
A200: 73 | B200: 2016-10-17 | D200: DCBBANK | E200: Accu | F200: 125.00 | H200: 160 | I200: 160.00 | J200: Target Achieved | K200: 35.00 | L200: 28.00% | M200: Successful | N200: 2017-03-09
A201: 74 | B201: 2016-10-17 | D201: ORIENTREF | E201: Accu | F201: 114.00 | H201: 145 | I201: 145.00 | J201: Target Achieved | K201: 31.00 | L201: =K201/F201 -> 27.19% | M201: Successful | N201: 2017-05-04
A202: 75 | B202: 2016-10-17 | D202: GANECOS | E202: Accu | F202: 212.00 | H202: 280 | I202: 276.00 | J202: Profit of Rs.68/- | K202: 68.00 | L202: =K202/F202 -> 32.08% | M202: Successful | N202: 2017-05-03
A203: 76 | B203: 2016-11-04 | D203: NBCC | E203: Accu | F203: 155.00 | H203: 210 | I203: 210.00 | J203: Profit of Rs.55/- | K203: 55.00 | L203: =K203/F203 -> 35.48% | M203: Successful | N203: 2017-07-28
A204: 77 | B204: 2016-12-06 | D204: PRECAM | E204: Accu | F204: 150.5 | H204: 72.50 | I204: 174.00 | J204: Loss of Rs.78/- | K204: -78.00 | L204: -51.83% | M204: Unsuccessful | N204: 2018-08-21
A205: 78 | B205: 2016-12-08 | D205: INFRATEL | E205: Accu | F205: 380.00 | H205: 478 | I205: 468.00 | J205: Target Achieved | K205: =H205-F205 -> 98.00 | L205: =K205/F205 -> 25.79% | M205: Successful | N205: 2017-10-17
A206: 79 | B206: 2016-12-30 | D206: GODREJPROP | E206: Accu | F206: 305.00 | H206: 375 | I206: 375.00 | J206: Target Achieved | K206: =H206-F206 -> 70.00 | L206: =K206/F206 -> 22.95% | M206: Successful | N206: 2017-02-02
A207: 80 | B207: 2017-01-04 | D207: DEEPAKNTR | E207: Accu | F207: 99.50 | H207: 158 | I207: 158.00 | J207: Target Achieved | K207: =H207-F207 -> 58.50 | L207: =K207/F207 -> 58.79% | M207: Successful | N207: 2017-06-12
A208: 81 | B208: 2017-01-04 | D208: DEEPAKNTR | E208: Accu | F208: 99.50 | H208: 158 | I208: 158.00 | J208: Target Achieved | K208: 58.50 | L208: 58.79% | M208: Successful | N208: 2017-06-12
A209: 82 | B209: 2017-02-20 | D209: RECLTD | E209: Accu | F209: 140.50 | H209: 220 | I209: 220.00 | J209: Target Achieved | K209: =H209-F209 -> 79.50 | L209: =K209/F209 -> 56.58% | M209: Successful | N209: 2017-05-09
A210: 83 | B210: 2017-02-20 | D210: SUBROS | E210: Accu | F210: 202.50 | H210: 234 | I210: 234.00 | J210: Target Achieved | K210: 31.50 | L210: 15.56% | M210: Successful | N210: 2017-04-11
A211: 84 | B211: 2017-03-24 | D211: VRLLOG | E211: Accu | F211: 300.50 | H211: 417.5 | I211: 420.00 | J211: Profit of Rs.117/- | K211: =H211-F211 -> 117.00 | L211: =K211/F211 -> 38.94% | M211: Successful | N211: 2017-12-01
A212: 85 | B212: 2017-03-24 | D212: FIEMIND | E212: Accu | F212: 850.00 | H212: 1042.5 | I212: 1023.00 | J212: Profit of Rs 192.50/- | K212: 192.50 | L212: 22.65% | M212: Successful | N212: 2017-04-05
A213: 86 | B213: 2017-04-05 | D213: RATNAMANI | E213: Accu | F213: 785.00 | H213: 930 | I213: 920.00 | J213: Profit of Rs.145/- | K213: =H213-F213 -> 145.00 | L213: =K213/F213 -> 18.47% | M213: Successful | N213: 2017-08-29
A214: 87 | B214: 2017-04-06 | D214: ZEEMEDIA | E214: Accu | F214: 40 | H214: 13.10 | I214: 60.00 | J214: Loss of Rs.26.9/- | K214: -26.90 | L214: -67.25% | M214: Unsuccessful | N214: 2018-02-07
A215: 88 | B215: 2017-04-12 | D215: DABUR | E215: Accu | F215: 289.50 | H215: 354 | I215: 360.00 | J215: Profit of Rs.64.5/- | K215: =H215-F215 -> 64.50 | L215: =K215/F215 -> 22.28% | M215: Successful | N215: 2017-11-01
A216: 89 | B216: 2017-04-20 | D216: KPRMILL | E216: Accu | F216: 700.00 | H216: 840 | I216: 840.00 | J216: Profit of Rs.140/- | K216: 140.00 | L216: 20.00% | M216: Successful | N216: 2017-06-07
A217: 90 | B217: 2017-06-01 | D217: ESSELPACK | E217: Accu | F217: 130.00 | H217: 144.25 | I217: 170.00 | J217: Profit of Rs.14.25/- | K217: 14.25 | L217: 10.96% | M217: Successful | N217: 2019-07-29
A218: 91 | B218: 2017-06-15 | D218: KEI | E218: Accu | F218: 214.50 | H218: 262 | I218: 262.00 | J218: Profit of Rs.47.5/- | K218: 47.50 | L218: 22.14% | M218: Successful | N218: 2017-08-30
A219: 92 | B219: 2017-07-17 | D219: MAYURUNIQ | E219: Accu | F219: 370.00 | H219: 447.5 | I219: 450.00 | J219: Target Achieved | K219: 77.50 | L219: 20.95% | M219: Successful | N219: 2017-10-27
A220: 93 | B220: 2017-07-27 | D220: RAMCOCEM | E220: Accu | F220: 657.50 | H220: 825 | I220: 820.00 | J220: Target Achieved | K220: 167.50 | L220: 25.48% | M220: Successful | N220: 2017-12-21
A221: 94 | B221: 2017-08-17 | D221: FINPIPE | E221: Accu | F221: 605.00 | H221: 750 | I221: 750.00 | J221: Profit of Rs.145/- | K221: 145.00 | L221: 23.97% | M221: Successful | N221: 2017-10-19
A222: 95 | B222: 2017-09-01 | D222: SHK | E222: Accu | F222: 255 | H222: 217.25 | I222: 320.00 | J222: Loss of Rs.37.75/- | K222: -37.75 | L222: -15% | M222: Unsuccessful | N222: 2019-07-15
... 88 more rows
